Service Area,Service Division,Expense Type,Expense Code,Detailed Expense Type,Payment Date,Transaction Number,Amount Exc Vat,Supplier Name
Adults Wellbeing and Health,Financing-Adult Services,Creditors,952037,Creditor-housing benefit-redec,01-Nov-2012,2514381-HV01,"1,230.00",D GRIBBEN & SON DECORATORS.
Adults Wellbeing and Health,Social Inclusion,Supplies and Services,308011,Furniture,01-Nov-2012,2514394-037769,501.00,GODFREY SYRETT LTD.
Assistant Chief Executive,Partnerships & Community Engagement Div.,Cap Exp on Grants & Other Financial Assistance (REFCUS),918004,Contributions to other bodies,01-Nov-2012,2514420-12NB-GAMP012,"11,604.00",NEWTON AYCLIFFE CRICKET CLUB.
Children and Young Peoples Services,CYPS - Local Authority,Transport,230007,Contract Hire,01-Nov-2012,2514359-127,"2,100.00",A & P TAXIS.
Children and Young Peoples Services,CYPS - Local Authority,Transport,230007,Contract Hire,01-Nov-2012,2514362-C12/SA,970.20,AABAT TAXIS.
Children and Young Peoples Services,CYPS - Local Authority,Transport,230007,Contract Hire,01-Nov-2012,2514362-C38/SB,"1,980.00",AABAT TAXIS.
Children and Young Peoples Services,CYPS - Local Authority,Transport,230007,Contract Hire,01-Nov-2012,2514362-C39/SC,"1,500.00",AABAT TAXIS.
Children and Young Peoples Services,CYPS - Local Authority,Transport,230007,Contract Hire,01-Nov-2012,2514362-C40/SD,752.40,AABAT TAXIS.
Children and Young Peoples Services,CYPS - Local Authority,Transport,230007,Contract Hire,01-Nov-2012,2514362-C41/SE,"1,594.86",AABAT TAXIS.
Children and Young Peoples Services,CYPS - Local Authority,Transport,230007,Contract Hire,01-Nov-2012,2514362-C42/SEB,750.31,AABAT TAXIS.
Children and Young Peoples Services,CYPS - Local Authority,Transport,230007,Contract Hire,01-Nov-2012,2514362-D1/SG,"1,520.00",AABAT TAXIS.
Children and Young Peoples Services,CYPS - Local Authority,Transport,230007,Contract Hire,01-Nov-2012,2514362-D11/SV,"1,311.00",AABAT TAXIS.
Children and Young Peoples Services,CYPS - Local Authority,Transport,230007,Contract Hire,01-Nov-2012,2514362-D2/SH,"1,660.60",AABAT TAXIS.
Children and Young Peoples Services,CYPS - Local Authority,Transport,230007,Contract Hire,01-Nov-2012,2514362-D3/SJ,"1,176.00",AABAT TAXIS.
Children and Young Peoples Services,CYPS - Local Authority,Transport,230007,Contract Hire,01-Nov-2012,2514362-D4/SK,"1,025.00",AABAT TAXIS.
Children and Young Peoples Services,CYPS - Local Authority,Transport,230007,Contract Hire,01-Nov-2012,2514365-24,640.00,ANDY CABS.
Children and Young Peoples Services,CYPS - Local Authority,Transport,230007,Contract Hire,01-Nov-2012,2514366-287,"1,140.00",AT TAXIS LTD.
Children and Young Peoples Services,CYPS - Local Authority,Transport,230007,Contract Hire,01-Nov-2012,2514366-288,"1,400.00",AT TAXIS LTD.
Children and Young Peoples Services,CYPS - Local Authority,Transport,230007,Contract Hire,01-Nov-2012,2514366-289,"1,500.00",AT TAXIS LTD.
Children and Young Peoples Services,CYPS - Local Authority,Transport,230007,Contract Hire,01-Nov-2012,2514367-02601012,760.00,AVALON TAXIS.
Children and Young Peoples Services,CYPS - Local Authority,Transport,230007,Contract Hire,01-Nov-2012,2514367-2610012,600.00,AVALON TAXIS.
Children and Young Peoples Services,CYPS - Local Authority,Transport,230007,Contract Hire,01-Nov-2012,2514368-60,"1,246.00",BL TAXIS.
Children and Young Peoples Services,CYPS - Local Authority,Transport,230007,Contract Hire,01-Nov-2012,2514370-0381,663.00,BRIANS MINIBUSES.
Children and Young Peoples Services,CYPS - Local Authority,Transport,230007,Contract Hire,01-Nov-2012,2514371-BIL0014,"1,366.00",CA MUSGROVE.
Children and Young Peoples Services,CYPS - Local Authority,Transport,230007,Contract Hire,01-Nov-2012,2514372-57,"1,300.00",CASTLE CARS.
Children and Young Peoples Services,CYPS - Local Authority,Transport,230007,Contract Hire,01-Nov-2012,2514375-43494,"4,960.00",CJ GRIERSON.
Children and Young Peoples Services,CYPS - Local Authority,Transport,230007,Contract Hire,01-Nov-2012,2514375-43495,"2,100.00",CJ GRIERSON.
Children and Young Peoples Services,CYPS - Local Authority,Transport,230007,Contract Hire,01-Nov-2012,2514375-43496,"2,076.80",CJ GRIERSON.
Children and Young Peoples Services,CYPS - Local Authority,Transport,230007,Contract Hire,01-Nov-2012,2514375-43497,"1,780.00",CJ GRIERSON.
Children and Young Peoples Services,CYPS - Local Authority,Transport,230007,Contract Hire,01-Nov-2012,2514375-43499,"1,980.00",CJ GRIERSON.
Children and Young Peoples Services,CYPS - Local Authority,Transport,230007,Contract Hire,01-Nov-2012,2514376-191,"1,100.00",COLIN HOLMES.
Children and Young Peoples Services,CYPS - Local Authority,Transport,230007,Contract Hire,01-Nov-2012,2514382-1219,"1,400.00",DA TAXIS.
Children and Young Peoples Services,CYPS - Local Authority,Transport,230007,Contract Hire,01-Nov-2012,2514383-21,"1,800.00",DAVES TAXIS.
Children and Young Peoples Services,CYPS - Local Authority,Transport,230007,Contract Hire,01-Nov-2012,2514386-60,"1,065.00",ELITE TAXIS.
Children and Young Peoples Services,CYPS - Local Authority,Transport,230007,Contract Hire,01-Nov-2012,2514388-002OCT12,"1,000.00",EMMA`S CABS.
Children and Young Peoples Services,CYPS - Local Authority,Transport,230007,Contract Hire,01-Nov-2012,2514390-10/12,"1,000.00",FREEDOM PRIVATE HIRE.
Children and Young Peoples Services,CYPS - Local Authority,Transport,230007,Contract Hire,01-Nov-2012,2514392-685,"1,142.20",GEM TRAVEL.
Children and Young Peoples Services,CYPS - Local Authority,Transport,230007,Contract Hire,01-Nov-2012,2514393-W082/002,"1,400.00",GMC TAXIS NORTH EAST.
Children and Young Peoples Services,CYPS - Local Authority,Transport,230007,Contract Hire,01-Nov-2012,2514393-W084/002,"1,976.00",GMC TAXIS NORTH EAST.
Children and Young Peoples Services,CYPS - Local Authority,Transport,230007,Contract Hire,01-Nov-2012,2514396-027-29/10/12,"1,520.00",I CLYDESDALE T/A BURNOPFIELD TAXIS.
Children and Young Peoples Services,CYPS - Local Authority,Transport,230007,Contract Hire,01-Nov-2012,2514396-028-31/10/12,"1,600.00",I CLYDESDALE T/A BURNOPFIELD TAXIS.
Children and Young Peoples Services,CYPS - Local Authority,Transport,230007,Contract Hire,01-Nov-2012,2514396-029-29/10/12,"1,827.40",I CLYDESDALE T/A BURNOPFIELD TAXIS.
Children and Young Peoples Services,CYPS - Local Authority,Transport,230007,Contract Hire,01-Nov-2012,2514400-103,576.00,JDS PRIVATE HIRE DURHAM.
Children and Young Peoples Services,CYPS - Local Authority,Transport,230007,Contract Hire,01-Nov-2012,2514401-2042,"1,520.28",JEFF ANDERSON COACHES LTD.
Children and Young Peoples Services,CYPS - Local Authority,Transport,230007,Contract Hire,01-Nov-2012,2514401-2043,"1,520.28",JEFF ANDERSON COACHES LTD.
Children and Young Peoples Services,CYPS - Local Authority,Construction Work,908105,Construction work,01-Nov-2012,2514402-INS2-BJ,"54,012.25",JOHN WADE (HAULAGE) LTD.
Children and Young Peoples Services,CYPS - Local Authority,Transport,230007,Contract Hire,01-Nov-2012,2514403-S007-002,"1,863.00",KEITH HAMMOND.
Children and Young Peoples Services,CYPS - Local Authority,Transport,230007,Contract Hire,01-Nov-2012,2514404-01012,"1,300.00",KEITH STONELY.
Children and Young Peoples Services,CYPS - Local Authority,Transport,230007,Contract Hire,01-Nov-2012,2514406-2-25/10/12,"1,800.00",L & R PRIVATE HIRE.
Children and Young Peoples Services,CYPS - Local Authority,Transport,230007,Contract Hire,01-Nov-2012,2514406-2-25/10/12M024C,"1,100.00",L & R PRIVATE HIRE.
Children and Young Peoples Services,CYPS - Local Authority,Transport,230007,Contract Hire,01-Nov-2012,2514408-030,"1,540.00",LEE`S TAXIS.
Children and Young Peoples Services,CYPS - Local Authority,Transport,230007,Contract Hire,01-Nov-2012,2514408-031,868.00,LEE`S TAXIS.
Children and Young Peoples Services,CYPS - Local Authority,Transport,230007,Contract Hire,01-Nov-2012,2514409-2761,"1,080.00",LINCAB TAXIS.
Children and Young Peoples Services,CYPS - Local Authority,Transport,230007,Contract Hire,01-Nov-2012,2514409-2767,"1,180.00",LINCAB TAXIS.
Children and Young Peoples Services,CYPS - Local Authority,Transport,230007,Contract Hire,01-Nov-2012,2514410-1273,"1,600.00",LOCAL TRANSPORT LTD.
Children and Young Peoples Services,CYPS - Local Authority,Transport,230007,Contract Hire,01-Nov-2012,2514410-1274,"3,202.80",LOCAL TRANSPORT LTD.
Children and Young Peoples Services,CYPS - Local Authority,Transport,230007,Contract Hire,01-Nov-2012,2514411-992,"2,000.00",LP TRAVEL LTD.
Children and Young Peoples Services,CYPS - Local Authority,Transport,230007,Contract Hire,01-Nov-2012,2514416-01,900.00,MOOR PRIVATE HIRE.
Children and Young Peoples Services,CYPS - Local Authority,Transport,230007,Contract Hire,01-Nov-2012,2514419-201,"1,170.00",MR S BALL.
Children and Young Peoples Services,CYPS - Local Authority,Transport,230007,Contract Hire,01-Nov-2012,2514431-TB24,920.00,STEVEN WILSON T/A WILSONS TAXIS..
Children and Young Peoples Services,CYPS - Local Authority,Construction Work,908105,Construction work,01-Nov-2012,2514434-INS7-G-J,"208,545.35",SURGO CONSTRUCTION LTD.
Children and Young Peoples Services,CYPS - Local Authority,Construction Work,908105,Construction work,01-Nov-2012,2514434-INS7-KM,"213,502.61",SURGO CONSTRUCTION LTD.
Children and Young Peoples Services,CYPS - Local Authority,Transport,230007,Contract Hire,01-Nov-2012,2514435-65238,"2,374.05",TGM GROUP LTD T/A CLASSIC COACHES (CONTINENTAL) LTD.
Children and Young Peoples Services,CYPS - Local Authority,Transport,230007,Contract Hire,01-Nov-2012,2514435-65968,"2,499.00",TGM GROUP LTD T/A CLASSIC COACHES (CONTINENTAL) LTD.
Children and Young Peoples Services,CYPS - Local Authority,Transport,230007,Contract Hire,01-Nov-2012,2514436-011/12,"1,300.00",TL TAXIS.
Children and Young Peoples Services,CYPS - Local Authority,Transport,230007,Contract Hire,01-Nov-2012,2514439-000511,"1,660.00",WATSON OF SPENNYMOOR.
Children and Young Peoples Services,CYPS - Local Authority,Transport,230007,Contract Hire,01-Nov-2012,2514440-4150,"1,420.00",WEARDALE PRIVATE HIRE.
Children and Young Peoples Services,Dedicated Schools Grant,Transport,230007,Contract Hire,01-Nov-2012,2514362-C44/SF,868.50,AABAT TAXIS.
Children and Young Peoples Services,Dedicated Schools Grant,Transport,230007,Contract Hire,01-Nov-2012,2514363-25,936.00,ACE TAXIS..
Children and Young Peoples Services,Dedicated Schools Grant,Transport,230007,Contract Hire,01-Nov-2012,2514388-9058OCT12,756.00,EMMA`S CABS.
Corporate Resources,Financing- Resources,Supplies and Services,384197,Miscellaneous Expenses,01-Nov-2012,2514398-4901,640.00,INGRAMS REMOVERS & STORERS.
Corporate Resources,ICT Services incl. Design and Print,Supplies and Services,342215,Computers and Communications,01-Nov-2012,2514364-3886/12540,"1,077.50",AE ROBB & ASSOCIATES.
Neighbourhood Services,Direct Services,Supplies and Services,304221,Equipment and Materials,01-Nov-2012,2514373-99735,691.73,CHAS LONG & SON (AGGREGATES) LTD.
Neighbourhood Services,Direct Services,Stock,926900,Stock in hand-Inventory system,01-Nov-2012,2514384-450632,519.49,DONWOOD (DOUBLE GLAZING) LTD.
Neighbourhood Services,Direct Services,Supplies and Services,304221,Equipment and Materials,01-Nov-2012,2514385-059-105691,"11,737.54",EDMUNDSON ELECTRICAL LTD.
Neighbourhood Services,Direct Services,Stock,926900,Stock in hand-Inventory system,01-Nov-2012,2514391-SINV-051730,843.54,GELPACK EXCELSIOR LTD.
Neighbourhood Services,Direct Services,Supplies and Services,304254,Equipment and Materials,01-Nov-2012,2514421-115433,512.46,NORTH EAST VENDING LTD.
Neighbourhood Services,Direct Services,Third Party Payments,430100,Rendered by Private Contractors,01-Nov-2012,2514428-2653,"3,200.00",RINGLAND SCAFFOLDING.
Neighbourhood Services,"Environment,Health & Consumer Protection",Employees,040149,"Recruitment, Instruction and Training",01-Nov-2012,2514407-WEBINV001379,"1,080.00",LANTRA.
Neighbourhood Services,Sport & Leisure,Supplies and Services,328041,"Clothing, Uniforms and Laundry",01-Nov-2012,2514438-92631,"2,764.64",TROJAN@WORK LTD.
Neighbourhood Services,Technical Services,Supplies and Services,304221,Equipment and Materials,01-Nov-2012,2514413-KZJK02739,740.00,MARSHALLS MONO LTD.
Neighbourhood Services,Technical Services,Supplies and Services,304221,Equipment and Materials,01-Nov-2012,2514423-INV0059579,"1,790.00",PAREX LTD.
Neighbourhood Services,Technical Services,Supplies and Services,304221,Equipment and Materials,01-Nov-2012,2514429-25214726967,637.00,SIG FIXINGS.
Neighbourhood Services,Technical Services,Supplies and Services,342051,Computers and Communications,01-Nov-2012,2514430-77861,877.00,STANDING STONE DRAWING OFFICE SUPPLIES LTD.
Neighbourhood Services,Technical Services,Supplies and Services,304221,Equipment and Materials,01-Nov-2012,2514432-919,797.00,SUPAMOLE DIRECTIONAL DRILLING SPECIALISTS.
RED HRA,HRA Capital,Other Expenses,914001,Other capital expenses,01-Nov-2012,2514425-A,770.00,PARK HEAD HOTEL.
Regeneration & Economic Development,Economic Development and Housing,Construction Work,908105,Construction work,01-Nov-2012,2514415-INS2-V-E,"7,315.87",MGL DEMOLITION LTD.
Adults Wellbeing and Health,Commissioning inc Supporting People,Supplies and Services,338027,Services,02-Nov-2012,2514827-29,863.00,SYLVAN SKILLS.
Adults Wellbeing and Health,Commissioning inc Supporting People,Supplies and Services,338027,Services,02-Nov-2012,2514876-10365,"2,112.72",WEARDALE COMMUNITY PARTNERSHIP LTD.
Adults Wellbeing and Health,Head of Adults,Premises,106099,Centrally Controlled Rep and Maint,02-Nov-2012,2514798-94935783,"2,936.35",SCHNEIDER ELECTRIC LTD.
Children and Young Peoples Services,CYPS - Local Authority,Transport,230007,Contract Hire,02-Nov-2012,2514473-DCCOCT1,"1,260.00",ATLAS TAXIS BISHOP AUCKLAND.
Children and Young Peoples Services,CYPS - Local Authority,Transport,230007,Contract Hire,02-Nov-2012,2514473-DCCOCT3,"1,479.05",ATLAS TAXIS BISHOP AUCKLAND.
Children and Young Peoples Services,CYPS - Local Authority,Transport,230007,Contract Hire,02-Nov-2012,2514473-DCCOCT4,"2,096.00",ATLAS TAXIS BISHOP AUCKLAND.
Children and Young Peoples Services,CYPS - Local Authority,Transport,230007,Contract Hire,02-Nov-2012,2514473-DCCOCT5,600.00,ATLAS TAXIS BISHOP AUCKLAND.
Children and Young Peoples Services,CYPS - Local Authority,Transport,230007,Contract Hire,02-Nov-2012,2514484-12,"1,152.00",BEELINE TAXIS.
Children and Young Peoples Services,CYPS - Local Authority,Transport,230007,Contract Hire,02-Nov-2012,2514511-142,700.00,CENTRAL TAXIS (PETERLEE) LTD.
Children and Young Peoples Services,CYPS - Local Authority,Transport,230007,Contract Hire,02-Nov-2012,2514511-143,"1,000.00",CENTRAL TAXIS (PETERLEE) LTD.
Children and Young Peoples Services,CYPS - Local Authority,Transport,230007,Contract Hire,02-Nov-2012,2514519-6/W008OCT12,"2,073.60",CLARKS MINIBUSES & TAXIS.
Children and Young Peoples Services,CYPS - Local Authority,Transport,230007,Contract Hire,02-Nov-2012,2514523-556,"1,900.00",CLIVE HUBERY.
Children and Young Peoples Services,CYPS - Local Authority,Transport,230007,Contract Hire,02-Nov-2012,2514528-C/7277,"5,129.43",COCHRANES T/A KELVIN TRAVEL.
Children and Young Peoples Services,CYPS - Local Authority,Transport,230007,Contract Hire,02-Nov-2012,2514528-C/7278,"2,280.00",COCHRANES T/A KELVIN TRAVEL.
Children and Young Peoples Services,CYPS - Local Authority,Transport,230007,Contract Hire,02-Nov-2012,2514528-C/7279,"4,522.00",COCHRANES T/A KELVIN TRAVEL.
Children and Young Peoples Services,CYPS - Local Authority,Transport,230007,Contract Hire,02-Nov-2012,2514546-DZ002,960.00,D & Z TAXIS.
Children and Young Peoples Services,CYPS - Local Authority,Transport,230007,Contract Hire,02-Nov-2012,2514547-1218,"1,800.00",DA TAXIS.
Children and Young Peoples Services,CYPS - Local Authority,Transport,230007,Contract Hire,02-Nov-2012,2514547-1221,"1,045.00",DA TAXIS.
Children and Young Peoples Services,CYPS - Local Authority,Transport,230007,Contract Hire,02-Nov-2012,2514548-003,680.00,DA TRAVEL.
Children and Young Peoples Services,CYPS - Local Authority,Transport,230007,Contract Hire,02-Nov-2012,2514548-004,960.00,DA TRAVEL.
Children and Young Peoples Services,CYPS - Local Authority,Transport,230007,Contract Hire,02-Nov-2012,2514548-005,720.00,DA TRAVEL.
Children and Young Peoples Services,CYPS - Local Authority,Transport,230007,Contract Hire,02-Nov-2012,2514554-1640,"1,848.20",DAVES MINIBUSES.
Children and Young Peoples Services,CYPS - Local Authority,Transport,230007,Contract Hire,02-Nov-2012,2514554-1641,"1,899.20",DAVES MINIBUSES.
Children and Young Peoples Services,CYPS - Local Authority,Transport,230007,Contract Hire,02-Nov-2012,2514554-1642,"1,349.80",DAVES MINIBUSES.
Children and Young Peoples Services,CYPS - Local Authority,Transport,230007,Contract Hire,02-Nov-2012,2514554-1643,"1,890.80",DAVES MINIBUSES.
Children and Young Peoples Services,CYPS - Local Authority,Transport,230007,Contract Hire,02-Nov-2012,2514554-1644,"1,495.20",DAVES MINIBUSES.
Children and Young Peoples Services,CYPS - Local Authority,Transport,230007,Contract Hire,02-Nov-2012,2514555-2,"1,200.00",DAVEY`S TAXIS.
Children and Young Peoples Services,CYPS - Local Authority,Transport,230007,Contract Hire,02-Nov-2012,2514566-16379,"2,699.80",DURHAM CITY COACHES.
Children and Young Peoples Services,CYPS - Local Authority,Transport,230007,Contract Hire,02-Nov-2012,2514566-16380,"8,157.60",DURHAM CITY COACHES.
Children and Young Peoples Services,CYPS - Local Authority,Transport,230007,Contract Hire,02-Nov-2012,2514566-16381,"2,699.80",DURHAM CITY COACHES.
Children and Young Peoples Services,CYPS - Local Authority,Transport,230007,Contract Hire,02-Nov-2012,2514566-16382,"3,099.80",DURHAM CITY COACHES.
Children and Young Peoples Services,CYPS - Local Authority,Transport,230007,Contract Hire,02-Nov-2012,2514644-133,"1,040.00",JDS PRIVATE HIRE DURHAM.
Children and Young Peoples Services,CYPS - Local Authority,Transport,230007,Contract Hire,02-Nov-2012,2514644-134,"1,360.00",JDS PRIVATE HIRE DURHAM.
Children and Young Peoples Services,CYPS - Local Authority,Transport,230007,Contract Hire,02-Nov-2012,2514644-135,"1,686.00",JDS PRIVATE HIRE DURHAM.
Children and Young Peoples Services,CYPS - Local Authority,Transport,230007,Contract Hire,02-Nov-2012,2514644-137,"1,364.00",JDS PRIVATE HIRE DURHAM.
Children and Young Peoples Services,CYPS - Local Authority,Transport,230007,Contract Hire,02-Nov-2012,2514644-139,875.00,JDS PRIVATE HIRE DURHAM.
Children and Young Peoples Services,CYPS - Local Authority,Transport,230007,Contract Hire,02-Nov-2012,2514649-9,780.00,JOHN RIDLEY.
Children and Young Peoples Services,CYPS - Local Authority,Transport,230007,Contract Hire,02-Nov-2012,2514650-29,"1,165.00",JOHNS TAXIS (CHESTER LE STREET).
Children and Young Peoples Services,CYPS - Local Authority,Transport,230007,Contract Hire,02-Nov-2012,2514653-PH2,"1,920.00",JOVIAL PRIVATE HIRE.
Children and Young Peoples Services,CYPS - Local Authority,Transport,230007,Contract Hire,02-Nov-2012,2514653-TM2,660.00,JOVIAL PRIVATE HIRE.
Children and Young Peoples Services,CYPS - Local Authority,Transport,230007,Contract Hire,02-Nov-2012,2514656-8-31/10/12,"1,400.00",K & B TAXIS.
Children and Young Peoples Services,CYPS - Local Authority,Transport,230007,Contract Hire,02-Nov-2012,2514658-13,760.00,KEVIN PARKIN.
Children and Young Peoples Services,CYPS - Local Authority,Transport,230007,Contract Hire,02-Nov-2012,2514664-002,800.00,KT TAXIS.
Children and Young Peoples Services,CYPS - Local Authority,Transport,230007,Contract Hire,02-Nov-2012,2514666-2-25/10/12M035D,"1,100.00",L & R PRIVATE HIRE.
Children and Young Peoples Services,CYPS - Local Authority,Transport,230007,Contract Hire,02-Nov-2012,2514670-077,"2,640.00",LD TAXIS.
Children and Young Peoples Services,CYPS - Local Authority,Transport,230007,Contract Hire,02-Nov-2012,2514670-078,"1,510.00",LD TAXIS.
Children and Young Peoples Services,CYPS - Local Authority,Transport,230007,Contract Hire,02-Nov-2012,2514670-079,"1,080.00",LD TAXIS.
Children and Young Peoples Services,CYPS - Local Authority,Transport,230007,Contract Hire,02-Nov-2012,2514679-2768,"1,360.00",LINCAB TAXIS.
Children and Young Peoples Services,CYPS - Local Authority,Transport,230007,Contract Hire,02-Nov-2012,2514681-1271,"2,195.20",LOCAL TRANSPORT LTD.
Children and Young Peoples Services,CYPS - Local Authority,Transport,230007,Contract Hire,02-Nov-2012,2514681-1275,980.00,LOCAL TRANSPORT LTD.
Children and Young Peoples Services,CYPS - Local Authority,Transport,230007,Contract Hire,02-Nov-2012,2514684-4-25/10/12,"1,160.00",LORRAINES TAXIS.
Children and Young Peoples Services,CYPS - Local Authority,Transport,230007,Contract Hire,02-Nov-2012,2514689-16,"2,254.00",M BUTCHER.
Children and Young Peoples Services,CYPS - Local Authority,Transport,230007,Contract Hire,02-Nov-2012,2514694-221043,800.00,MARKS TAXIS.
Children and Young Peoples Services,CYPS - Local Authority,Transport,230007,Contract Hire,02-Nov-2012,2514694-481043,800.00,MARKS TAXIS.
Children and Young Peoples Services,CYPS - Local Authority,Transport,230007,Contract Hire,02-Nov-2012,2514698-002,"1,800.00",MARTIN`S TAXIS.
Children and Young Peoples Services,CYPS - Local Authority,Construction Work,908105,Construction work,02-Nov-2012,2514701-INS1-F-P,870.88,MGL DEMOLITION LTD.
Children and Young Peoples Services,CYPS - Local Authority,Transport,230007,Contract Hire,02-Nov-2012,2514703-00496,"1,596.00",MICHAELS TRAVEL.
Children and Young Peoples Services,CYPS - Local Authority,Transport,230007,Contract Hire,02-Nov-2012,2514708-KDC011012,"2,561.40",MJ TIMNEY.
Children and Young Peoples Services,CYPS - Local Authority,Transport,230007,Contract Hire,02-Nov-2012,2514712-21,616.00,MR DAVID CULLEN.
Children and Young Peoples Services,CYPS - Local Authority,Transport,230007,Contract Hire,02-Nov-2012,2514713-005OCT12,"2,608.00",MR JG HOWARTH.
Children and Young Peoples Services,CYPS - Local Authority,Transport,230007,Contract Hire,02-Nov-2012,2514714-101204,"1,140.00",MR JOHN CHISHOLM.
Children and Young Peoples Services,CYPS - Local Authority,Transport,230007,Contract Hire,02-Nov-2012,2514714-101206,"1,040.00",MR JOHN CHISHOLM.
Children and Young Peoples Services,CYPS - Local Authority,Transport,230007,Contract Hire,02-Nov-2012,2514715-N081/10/12,"1,300.00",MR M ALLISON.
Children and Young Peoples Services,CYPS - Local Authority,Transport,230007,Contract Hire,02-Nov-2012,2514715-N084/10/12,940.00,MR M ALLISON.
Children and Young Peoples Services,CYPS - Local Authority,Transport,230007,Contract Hire,02-Nov-2012,2514717-AA203,"1,840.00",MR T GUNN.
Children and Young Peoples Services,CYPS - Local Authority,Transport,230007,Contract Hire,02-Nov-2012,2514729-2164,"2,094.40",NIGHTINGALE COACHES.
Children and Young Peoples Services,CYPS - Local Authority,Transport,230007,Contract Hire,02-Nov-2012,2514729-2165,"2,104.00",NIGHTINGALE COACHES.
Children and Young Peoples Services,CYPS - Local Authority,Transport,230007,Contract Hire,02-Nov-2012,2514729-2166,"1,300.00",NIGHTINGALE COACHES.
Children and Young Peoples Services,CYPS - Local Authority,Transport,230007,Contract Hire,02-Nov-2012,2514751-N057DOCT12,"1,600.00",PAUL SMITH T/A LANGLEY TAXIS.
Children and Young Peoples Services,CYPS - Local Authority,Transport,230007,Contract Hire,02-Nov-2012,2514752-1112,"2,400.00",PAUL WATSON TRAVEL.
Children and Young Peoples Services,CYPS - Local Authority,Transport,230007,Contract Hire,02-Nov-2012,2514752-1113,980.00,PAUL WATSON TRAVEL.
Children and Young Peoples Services,CYPS - Local Authority,Transport,230007,Contract Hire,02-Nov-2012,2514752-1114,"2,600.00",PAUL WATSON TRAVEL.
Children and Young Peoples Services,CYPS - Local Authority,Transport,230007,Contract Hire,02-Nov-2012,2514752-1115,"2,400.00",PAUL WATSON TRAVEL.
Children and Young Peoples Services,CYPS - Local Authority,Transport,230007,Contract Hire,02-Nov-2012,2514753-ST23/12,"1,648.80",PB PRIVATE HIRE.
Children and Young Peoples Services,CYPS - Local Authority,Transport,230007,Contract Hire,02-Nov-2012,2514756-10,"1,200.00",PETER HOLMES.
Children and Young Peoples Services,CYPS - Local Authority,Transport,230007,Contract Hire,02-Nov-2012,2514764-002,517.50,PM TAXIS.
Children and Young Peoples Services,CYPS - Local Authority,Transport,230007,Contract Hire,02-Nov-2012,2514767-120906,"1,566.00",PRATTS TAXIS.
Children and Young Peoples Services,CYPS - Local Authority,Transport,230007,Contract Hire,02-Nov-2012,2514767-120907,"1,266.00",PRATTS TAXIS.
Children and Young Peoples Services,CYPS - Local Authority,Transport,230007,Contract Hire,02-Nov-2012,2514824-136,"1,896.20",STEPHEN MAUDE LTD T/A MAUDES COACHES.
Children and Young Peoples Services,CYPS - Local Authority,Transport,230007,Contract Hire,02-Nov-2012,2514824-137,"2,086.20",STEPHEN MAUDE LTD T/A MAUDES COACHES.
Children and Young Peoples Services,CYPS - Local Authority,Transport,230007,Contract Hire,02-Nov-2012,2514824-138,"1,920.00",STEPHEN MAUDE LTD T/A MAUDES COACHES.
Children and Young Peoples Services,CYPS - Local Authority,Transport,230007,Contract Hire,02-Nov-2012,2514824-139,960.00,STEPHEN MAUDE LTD T/A MAUDES COACHES.
Children and Young Peoples Services,Dedicated Schools Grant,Transport,230007,Contract Hire,02-Nov-2012,2514465-FH10/12,"1,596.00",ANDY`S TAXIS.
Children and Young Peoples Services,Dedicated Schools Grant,Transport,230007,Contract Hire,02-Nov-2012,2514541-002-30/10/12,"1,760.00",CRAIG`S CABS.
Children and Young Peoples Services,Dedicated Schools Grant,Transport,230007,Contract Hire,02-Nov-2012,2514642-L008B,"1,360.00",JAFFAS TAXIS.
Children and Young Peoples Services,Dedicated Schools Grant,Transport,230007,Contract Hire,02-Nov-2012,2514697-008,798.00,MARTIN TAYLOR TAXI.
Children and Young Peoples Services,Dedicated Schools Grant,Transport,230007,Contract Hire,02-Nov-2012,2514714-101202,"1,824.00",MR JOHN CHISHOLM.
Children and Young Peoples Services,Dedicated Schools Grant,Transport,230007,Contract Hire,02-Nov-2012,2514714-101203,646.00,MR JOHN CHISHOLM.
Children and Young Peoples Services,Dedicated Schools Grant,Supplies and Services,304639,Equipment and Materials,02-Nov-2012,2514759-2590683300,570.40,PHONAK UK LTD.
Corporate Resources,ICT Services incl. Design and Print,Supplies and Services,332029,"Printing, Stationery and Gen Off Exps",02-Nov-2012,2514578-85901,"1,042.50",ENCORE ENVELOPES LTD.
Corporate Resources,ICT Services incl. Design and Print,Supplies and Services,332029,"Printing, Stationery and Gen Off Exps",02-Nov-2012,2514578-85902,973.50,ENCORE ENVELOPES LTD.
Neighbourhood Services,Direct Services,Third Party Payments,430100,Rendered by Private Contractors,02-Nov-2012,2514485-16081514,779.20,BELL TRUCK SALES LTD.
Neighbourhood Services,Direct Services,Third Party Payments,430100,Rendered by Private Contractors,02-Nov-2012,2514560-215541,"4,169.65",DENNIS EAGLE LTD.
Neighbourhood Services,Direct Services,Third Party Payments,430100,Rendered by Private Contractors,02-Nov-2012,2514570-74352,540.00,DYER ENGINEERING LTD.
Neighbourhood Services,Direct Services,Stock,926004,Stock,02-Nov-2012,2514572-S177714,605.38,ECON ENGINEERING LTD.
Neighbourhood Services,Direct Services,Third Party Payments,430100,Rendered by Private Contractors,02-Nov-2012,2514579-17748,"1,198.93",ENTERPRISE ACCIDENT REPAIR CENTRE LTD.
Neighbourhood Services,Direct Services,Third Party Payments,430100,Rendered by Private Contractors,02-Nov-2012,2514579-17751,653.95,ENTERPRISE ACCIDENT REPAIR CENTRE LTD.
Neighbourhood Services,Direct Services,Third Party Payments,430100,Rendered by Private Contractors,02-Nov-2012,2514579-17778,832.30,ENTERPRISE ACCIDENT REPAIR CENTRE LTD.
Neighbourhood Services,Direct Services,Third Party Payments,430100,Rendered by Private Contractors,02-Nov-2012,2514579-17785,694.42,ENTERPRISE ACCIDENT REPAIR CENTRE LTD.
Neighbourhood Services,Direct Services,Stock,926004,Stock,02-Nov-2012,2514595-216111273,"1,199.00",FUCHS LUBRICANTS (UK) PLC.
Neighbourhood Services,Direct Services,Stock,926004,Stock,02-Nov-2012,2514600-8493616,"23,348.83",GB OILS T/A BRETT FUELS.
Neighbourhood Services,Direct Services,Stock,926004,Stock,02-Nov-2012,2514600-8493631,"1,138.90",GB OILS T/A BRETT FUELS.
Neighbourhood Services,Direct Services,Stock,926004,Stock,02-Nov-2012,2514600-8500388,"41,522.40",GB OILS T/A BRETT FUELS.
Neighbourhood Services,Direct Services,Stock,926004,Stock,02-Nov-2012,2514600-8505834,"14,612.50",GB OILS T/A BRETT FUELS.
Neighbourhood Services,Direct Services,Stock,926004,Stock,02-Nov-2012,2514600-8505844,"2,440.20",GB OILS T/A BRETT FUELS.
Neighbourhood Services,Direct Services,Third Party Payments,430100,Rendered by Private Contractors,02-Nov-2012,2514602-B78511,544.54,GEESINK NORBA LTD.
Neighbourhood Services,Direct Services,Supplies and Services,304221,Equipment and Materials,02-Nov-2012,2514610-J3465,"1,740.80",GROVE REED.
Neighbourhood Services,Direct Services,Stock,926900,Stock in hand-Inventory system,02-Nov-2012,2514627-072641,"5,073.20",HYDRAM ENGINEERING.
Neighbourhood Services,Direct Services,Third Party Payments,430100,Rendered by Private Contractors,02-Nov-2012,2514687-1679,"4,470.00",LYNCH HEALTHCARE LTD.
Neighbourhood Services,Direct Services,Stock,926004,Stock,02-Nov-2012,2514725-INVDUR0031197,533.88,NE TRUCK SPARES LTD.
Neighbourhood Services,Direct Services,Transport,210057,Repair and Maintenance of Vehicles,02-Nov-2012,2514725-INVDUR0031198,513.90,NE TRUCK SPARES LTD.
Neighbourhood Services,Direct Services,Third Party Payments,430100,Rendered by Private Contractors,02-Nov-2012,2514768-120592,650.00,PREMIER TRAFFIC MANAGEMENT LTD.
Neighbourhood Services,Direct Services,Third Party Payments,430100,Rendered by Private Contractors,02-Nov-2012,2514768-121556,"14,829.52",PREMIER TRAFFIC MANAGEMENT LTD.
Neighbourhood Services,Direct Services,Supplies and Services,304259,Equipment and Materials,02-Nov-2012,2514771-19795,828.40,PROCTOR FLOORING LTD.
Neighbourhood Services,Direct Services,Premises,108099,Service Repairs and Maintenance,02-Nov-2012,2514773-1348,"3,430.00",PROTEN ENVIRONMENTAL LTD T/A PROTEN SERVICES.
Neighbourhood Services,Direct Services,Transport,210057,Repair and Maintenance of Vehicles,02-Nov-2012,2514784-763666,618.26,RICKERBY LTD.
Neighbourhood Services,Projects and Business services,Employees,080025,Agency Staff,02-Nov-2012,2514530-521428,"163,976.98",COMENSURA LTD.
Neighbourhood Services,Sport & Leisure,Premises,106099,Centrally Controlled Rep and Maint,02-Nov-2012,2514594-2020,822.00,FT LEISURE LTD.
Neighbourhood Services,Sport & Leisure,Premises,106099,Centrally Controlled Rep and Maint,02-Nov-2012,2514734-10020672,896.45,NORSTEAD.
Neighbourhood Services,Sport & Leisure,Premises,106099,Centrally Controlled Rep and Maint,02-Nov-2012,2514798-94963810,"2,637.38",SCHNEIDER ELECTRIC LTD.
Neighbourhood Services,Technical Services,Supplies and Services,304221,Equipment and Materials,02-Nov-2012,2514449-LLI262875,"1,013.40",A THOMPSON & SONS LTD.
Neighbourhood Services,Technical Services,Supplies and Services,304221,Equipment and Materials,02-Nov-2012,2514449-LLI264335,"2,611.98",A THOMPSON & SONS LTD.
Neighbourhood Services,Technical Services,Supplies and Services,304221,Equipment and Materials,02-Nov-2012,2514455-17055763,697.51,AGGREGATE INDUSTRIES UK LTD.
Neighbourhood Services,Technical Services,Supplies and Services,304221,Equipment and Materials,02-Nov-2012,2514455-17158050,"2,299.49",AGGREGATE INDUSTRIES UK LTD.
Neighbourhood Services,Technical Services,Third Party Payments,430100,Rendered by Private Contractors,02-Nov-2012,2514882-31567,"1,486.00",WILLOWCRETE MFG CO LTD.
Neighbourhood Services,Technical Services,Supplies and Services,304221,Equipment and Materials,02-Nov-2012,2514883-KZJK002769,"4,028.00",WOODHOUSE UK PLC.
RED HRA,Housing Revenue Account,Supplies and Services,338091,Services,02-Nov-2012,2514741-91173575,"2,200.00",(USE 46576) NORTHUMBRIA UNIVERSITY.
RED HRA,HRA Capital,Construction Work,908105,Construction work,02-Nov-2012,2514603-SIGN/00031113,"1,465.86",GENTOO CONSTRUCTION LTD.
RED HRA,HRA Capital,Construction Work,908105,Construction work,02-Nov-2012,2514603-SIGN/00031114,"86,887.89",GENTOO CONSTRUCTION LTD.
Regeneration & Economic Development,"Spatial Policy, Planning, Assets & Environment",Premises,125009,Rents,02-Nov-2012,2514707-22715,"7,767.25",MJ MAPP LLP.
Regeneration & Economic Development,"Spatial Policy, Planning, Assets & Environment",Premises,106099,Centrally Controlled Rep and Maint,02-Nov-2012,2514818-G0515980,"1,024.91",SITEXORBIS LTD.
Adults Wellbeing and Health,Commissioning inc Supporting People,Third Party Payments,442002,Supporting People,05-Nov-2012,2514913-1945039,"19,676.48",BID SERVICES WITH DEAF PEOPLE.
Adults Wellbeing and Health,Commissioning inc Supporting People,Supplies and Services,384199,Miscellaneous Expenses,05-Nov-2012,2514934-0101785497,"1,403.00",CLEAR CHANNEL UK LTD.
Adults Wellbeing and Health,Commissioning inc Supporting People,Third Party Payments,443001,Supporting People,05-Nov-2012,2514944-1944754,"1,200.00",COMMUNITY INTEGRATED CARE LTD.
Adults Wellbeing and Health,Commissioning inc Supporting People,Third Party Payments,443001,Supporting People,05-Nov-2012,2514944-1944757,"1,600.00",COMMUNITY INTEGRATED CARE LTD.
Adults Wellbeing and Health,Commissioning inc Supporting People,Third Party Payments,443001,Supporting People,05-Nov-2012,2514944-1944761,"2,800.00",COMMUNITY INTEGRATED CARE LTD.
Adults Wellbeing and Health,Commissioning inc Supporting People,Third Party Payments,443001,Supporting People,05-Nov-2012,2514944-1944779,"3,200.00",COMMUNITY INTEGRATED CARE LTD.
Adults Wellbeing and Health,Commissioning inc Supporting People,Third Party Payments,442002,Supporting People,05-Nov-2012,2514952-1945209,"22,957.44",CREATIVE SUPPORT LTD.
Adults Wellbeing and Health,Commissioning inc Supporting People,Third Party Payments,443001,Supporting People,05-Nov-2012,2514956-1945128,"4,456.80",DEACONSTAR LTD.
Adults Wellbeing and Health,Commissioning inc Supporting People,Third Party Payments,442002,Supporting People,05-Nov-2012,2514959-1945205,"3,820.28",DERWENTSIDE DOMESTIC ABUSE SERVICE.
Adults Wellbeing and Health,Commissioning inc Supporting People,Third Party Payments,442002,Supporting People,05-Nov-2012,2514962-1945069,"50,431.04",DISC LTD.
Adults Wellbeing and Health,Commissioning inc Supporting People,Third Party Payments,443001,Supporting People,05-Nov-2012,2514964-1944991,"1,576.40",DURHAM ACTION ON SINGLE HOUSING.
Adults Wellbeing and Health,Commissioning inc Supporting People,Third Party Payments,443001,Supporting People,05-Nov-2012,2514964-1944993,"1,576.40",DURHAM ACTION ON SINGLE HOUSING.
Adults Wellbeing and Health,Commissioning inc Supporting People,Third Party Payments,443001,Supporting People,05-Nov-2012,2514964-1944994,"1,576.40",DURHAM ACTION ON SINGLE HOUSING.
Adults Wellbeing and Health,Commissioning inc Supporting People,Third Party Payments,441001,Supporting People,05-Nov-2012,2514964-1945043,"19,417.64",DURHAM ACTION ON SINGLE HOUSING.
Adults Wellbeing and Health,Commissioning inc Supporting People,Third Party Payments,441001,Supporting People,05-Nov-2012,2514967-1944998,"5,402.40",EAST DURHAM COMMUNITY INITIATIVES LTD.
Adults Wellbeing and Health,Commissioning inc Supporting People,Third Party Payments,442002,Supporting People,05-Nov-2012,2514980-1944959,"26,422.88",FOUNDATION.
Adults Wellbeing and Health,Commissioning inc Supporting People,Third Party Payments,441001,Supporting People,05-Nov-2012,2514992-1945136,"9,190.44",HARBOUR SUPPORT SV.
Adults Wellbeing and Health,Commissioning inc Supporting People,Third Party Payments,442002,Supporting People,05-Nov-2012,2514992-1945141,"4,883.56",HARBOUR SUPPORT SV.
Adults Wellbeing and Health,Commissioning inc Supporting People,Third Party Payments,443001,Supporting People,05-Nov-2012,2515000-1945118,"9,253.44",HIGHLEA CARE LTD.
Adults Wellbeing and Health,Commissioning inc Supporting People,Third Party Payments,443001,Supporting People,05-Nov-2012,2515001-1945071,"1,029.12",HOME HOUSING ASSOCIATION LTD.
Adults Wellbeing and Health,Commissioning inc Supporting People,Third Party Payments,443001,Supporting People,05-Nov-2012,2515012-1944748,"1,125.72",INTEGRATION TRUST.
Adults Wellbeing and Health,Commissioning inc Supporting People,Third Party Payments,443001,Supporting People,05-Nov-2012,2515032-1944724,"16,166.28",KINDSTREAM CARE LTD.
Adults Wellbeing and Health,Commissioning inc Supporting People,Third Party Payments,443001,Supporting People,05-Nov-2012,2515032-1944739,"4,135.56",KINDSTREAM CARE LTD.
Adults Wellbeing and Health,Commissioning inc Supporting People,Supplies and Services,384199,Miscellaneous Expenses,05-Nov-2012,2515045-2012/010,"1,250.00",LUCY JENKINS.
Adults Wellbeing and Health,Commissioning inc Supporting People,Third Party Payments,443001,Supporting People,05-Nov-2012,2515050-1945028,"2,484.76",MENCAP.
Adults Wellbeing and Health,Commissioning inc Supporting People,Third Party Payments,443001,Supporting People,05-Nov-2012,2515050-1945030,"2,524.44",MENCAP.
Adults Wellbeing and Health,Commissioning inc Supporting People,Third Party Payments,443001,Supporting People,05-Nov-2012,2515050-1945031,907.96,MENCAP.
Adults Wellbeing and Health,Commissioning inc Supporting People,Third Party Payments,442002,Supporting People,05-Nov-2012,2515051-1945208,"7,460.12",MENTAL HEALTH MATTERS.
Adults Wellbeing and Health,Commissioning inc Supporting People,Third Party Payments,442002,Supporting People,05-Nov-2012,2515059-1944828,"5,561.68",MOVING ON.
Adults Wellbeing and Health,Commissioning inc Supporting People,Third Party Payments,443001,Supporting People,05-Nov-2012,2515068-1945117,733.76,REDACTED - PAYMENT TO INDIVIDUAL
Adults Wellbeing and Health,Commissioning inc Supporting People,Third Party Payments,441001,Supporting People,05-Nov-2012,2515080-1945134,"8,360.88",NORCARE LTD.
Adults Wellbeing and Health,Commissioning inc Supporting People,Third Party Payments,441001,Supporting People,05-Nov-2012,2515080-1945135,"10,697.08",NORCARE LTD.
Adults Wellbeing and Health,Commissioning inc Supporting People,Third Party Payments,442002,Supporting People,05-Nov-2012,2515080-1945137,"3,181.20",NORCARE LTD.
Adults Wellbeing and Health,Commissioning inc Supporting People,Third Party Payments,442002,Supporting People,05-Nov-2012,2515080-1945138,"2,021.08",NORCARE LTD.
Adults Wellbeing and Health,Commissioning inc Supporting People,Third Party Payments,444002,Supporting People,05-Nov-2012,2515090-1945044,864.00,OAKLEA TRUST.
Adults Wellbeing and Health,Commissioning inc Supporting People,Third Party Payments,444002,Supporting People,05-Nov-2012,2515090-1945046,"4,320.00",OAKLEA TRUST.
Adults Wellbeing and Health,Commissioning inc Supporting People,Third Party Payments,444002,Supporting People,05-Nov-2012,2515090-1945048,"1,728.00",OAKLEA TRUST.
Adults Wellbeing and Health,Commissioning inc Supporting People,Third Party Payments,444002,Supporting People,05-Nov-2012,2515090-1945059,"1,296.00",OAKLEA TRUST.
Adults Wellbeing and Health,Commissioning inc Supporting People,Third Party Payments,444002,Supporting People,05-Nov-2012,2515090-1945064,"1,296.00",OAKLEA TRUST.
Adults Wellbeing and Health,Commissioning inc Supporting People,Supplies and Services,338047,Services,05-Nov-2012,2515102-012-12,998.85,PILOT THEATRE LTD.
Adults Wellbeing and Health,Commissioning inc Supporting People,Third Party Payments,442002,Supporting People,05-Nov-2012,2515111-1944953,"9,214.24",RICHMOND FELLOWSHIP.
Adults Wellbeing and Health,Commissioning inc Supporting People,Third Party Payments,444002,Supporting People,05-Nov-2012,2515111-1945088,"4,432.56",RICHMOND FELLOWSHIP.
Adults Wellbeing and Health,Commissioning inc Supporting People,Third Party Payments,441001,Supporting People,05-Nov-2012,2515111-1945100,"9,923.84",RICHMOND FELLOWSHIP.
Adults Wellbeing and Health,Commissioning inc Supporting People,Third Party Payments,442002,Supporting People,05-Nov-2012,2515134-1944850,"9,594.32",SHAID.
Adults Wellbeing and Health,Commissioning inc Supporting People,Third Party Payments,443001,Supporting People,05-Nov-2012,2515146-1944858,"9,593.28",ST ANNES SHELTER & HOUSING ACTION.
Adults Wellbeing and Health,Commissioning inc Supporting People,Third Party Payments,443001,Supporting People,05-Nov-2012,2515151-1944936,"8,131.20",STONHAM HOUSING ASSOCIATION LTD.
Adults Wellbeing and Health,Commissioning inc Supporting People,Third Party Payments,441001,Supporting People,05-Nov-2012,2515151-1944947,"56,460.28",STONHAM HOUSING ASSOCIATION LTD.
Adults Wellbeing and Health,Commissioning inc Supporting People,Third Party Payments,442002,Supporting People,05-Nov-2012,2515151-1945114,"94,589.34",STONHAM HOUSING ASSOCIATION LTD.
Adults Wellbeing and Health,Commissioning inc Supporting People,Third Party Payments,441001,Supporting People,05-Nov-2012,2515151-1945179,"5,753.44",STONHAM HOUSING ASSOCIATION LTD.
Adults Wellbeing and Health,Commissioning inc Supporting People,Third Party Payments,442002,Supporting People,05-Nov-2012,2515151-1945180,"30,454.80",STONHAM HOUSING ASSOCIATION LTD.
Adults Wellbeing and Health,Commissioning inc Supporting People,Third Party Payments,443001,Supporting People,05-Nov-2012,2515151-1945181,"23,085.92",STONHAM HOUSING ASSOCIATION LTD.
Adults Wellbeing and Health,Commissioning inc Supporting People,Third Party Payments,441001,Supporting People,05-Nov-2012,2515161-1945038,"29,247.64",TEES VALLEY HOUSING LTD.
Adults Wellbeing and Health,Commissioning inc Supporting People,Third Party Payments,442002,Supporting People,05-Nov-2012,2515161-1945070,"15,268.72",TEES VALLEY HOUSING LTD.
Adults Wellbeing and Health,Commissioning inc Supporting People,Third Party Payments,441001,Supporting People,05-Nov-2012,2515167-1945103,"19,581.20",THE CYRENIANS LTD.
Adults Wellbeing and Health,Commissioning inc Supporting People,Third Party Payments,442002,Supporting People,05-Nov-2012,2515172-1944769,"3,835.60",THREE RIVERS HOUSING ASSOCIATION LTD.
Adults Wellbeing and Health,Commissioning inc Supporting People,Third Party Payments,442002,Supporting People,05-Nov-2012,2515172-1944866,863.24,THREE RIVERS HOUSING ASSOCIATION LTD.
Adults Wellbeing and Health,Commissioning inc Supporting People,Third Party Payments,441001,Supporting People,05-Nov-2012,2515172-1945042,"11,615.57",THREE RIVERS HOUSING ASSOCIATION LTD.
Adults Wellbeing and Health,Commissioning inc Supporting People,Third Party Payments,442002,Supporting People,05-Nov-2012,2515172-1945101,"8,976.12",THREE RIVERS HOUSING ASSOCIATION LTD.
Adults Wellbeing and Health,Commissioning inc Supporting People,Third Party Payments,442002,Supporting People,05-Nov-2012,2515172-1945133,"43,230.76",THREE RIVERS HOUSING ASSOCIATION LTD.
Adults Wellbeing and Health,Commissioning inc Supporting People,Third Party Payments,441001,Supporting People,05-Nov-2012,2515172-1945139,"6,395.16",THREE RIVERS HOUSING ASSOCIATION LTD.
Adults Wellbeing and Health,Commissioning inc Supporting People,Third Party Payments,443001,Supporting People,05-Nov-2012,2515192-1945106,"1,378.20",WADDINGTON STREET CENTRE LTD.
Adults Wellbeing and Health,Commissioning inc Supporting People,Third Party Payments,441001,Supporting People,05-Nov-2012,2515192-1945174,"5,004.88",WADDINGTON STREET CENTRE LTD.
Adults Wellbeing and Health,Commissioning inc Supporting People,Third Party Payments,441001,Supporting People,05-Nov-2012,2515197-1945173,"9,535.12",WEAR VALLEY WOMENS AID.
Adults Wellbeing and Health,Commissioning inc Supporting People,Supplies and Services,338027,Services,05-Nov-2012,2515205-K8/10/12,690.00,WOODSMITH`S STORE LTD.
Adults Wellbeing and Health,Head of Adults,Supplies and Services,338365,Services,05-Nov-2012,2514893-SIN421318,988.91,ACTION ON HEARING LOSS.
Adults Wellbeing and Health,Head of Adults,Supplies and Services,338365,Services,05-Nov-2012,2514941-308963,"1,854.50",COBOLT SYSTEMS LTD.
Adults Wellbeing and Health,Head of Adults,Supplies and Services,304259,Equipment and Materials,05-Nov-2012,2515018-285361,700.00,JAMES SPENCER & CO LTD.
Adults Wellbeing and Health,Head of Adults,Supplies and Services,338365,Services,05-Nov-2012,2515123-OP/I269304,"2,333.65",ROYAL NATIONAL INSTITUTE FOR THE BLIND.
Adults Wellbeing and Health,Head of Adults,Supplies and Services,338365,Services,05-Nov-2012,2515129-185359,797.59,SARABEC LTD.
Adults Wellbeing and Health,Planning and Performance,Supplies and Services,332047,"Printing, Stationery and Gen Off Exps",05-Nov-2012,2515153-5362272,661.95,SUPPLIES TEAM LTD.
Adults Wellbeing and Health,Social Inclusion,Supplies and Services,338099,Services,05-Nov-2012,2514890-133-16/10/2012,"5,000.00",2D LTD.
Adults Wellbeing and Health,Social Inclusion,Supplies and Services,384999,Miscellaneous Expenses,05-Nov-2012,2514914-00013,"7,758.38",BISHOP CATERING LTD.
Adults Wellbeing and Health,Social Inclusion,Supplies and Services,384540,Miscellaneous Expenses,05-Nov-2012,2514934-0101785320,"2,426.00",CLEAR CHANNEL UK LTD.
Adults Wellbeing and Health,Social Inclusion,Supplies and Services,384199,Miscellaneous Expenses,05-Nov-2012,2514969-13106331,"1,170.00",ELLIOTT GROUP LTD.
Adults Wellbeing and Health,Social Inclusion,Supplies and Services,304083,Equipment and Materials,05-Nov-2012,2515083-115546,959.00,NORTH EAST VENDING LTD.
Adults Wellbeing and Health,Social Inclusion,Supplies and Services,384999,Miscellaneous Expenses,05-Nov-2012,2515166-C-NL,636.00,THE BURNHOPE PARTNERSHIP.
Assistant Chief Executive,Partnerships & Community Engagement Div.,Transfer Payments,525030,Other,05-Nov-2012,2514946-12AB-4TOG005,"6,000.00",CORNFORTH PARISH COUNCIL.
Assistant Chief Executive,Partnerships & Community Engagement Div.,Transfer Payments,525030,Other,05-Nov-2012,2514965-12AB-4TOG004,"10,000.00",DURHAM POLICE & CRIME COMMISSIONER.
Assistant Chief Executive,Partnerships & Community Engagement Div.,Supplies and Services,384085,Miscellaneous Expenses,05-Nov-2012,2514995-JOH005-12YOUR05-12,"1,000.00",HEALEYFIELD PARISH COUNCIL.
Assistant Chief Executive,Partnerships & Community Engagement Div.,Cap Exp on Grants & Other Financial Assistance (REFCUS),918004,Contributions to other bodies,05-Nov-2012,2515078-12NB-GAMP009,"20,000.00",NEWTON AYCLIFFE FC.
Assistant Chief Executive,Partnerships & Community Engagement Div.,Supplies and Services,384086,Miscellaneous Expenses,05-Nov-2012,2515196-12NB-BASH009,"1,885.00",WEAR VALLEY CITIZENS ADVICE BUREAU.
Assistant Chief Executive,Partnerships & Community Engagement Div.,Transfer Payments,525030,Other,05-Nov-2012,2515204-12AB-BASH002,"4,000.00",WOODHOUSE CLOSE CHURCH COMMUNITY CENTRE.
Children and Young Peoples Services,CYPS - Local Authority,Transfer Payments,510032,School Children,05-Nov-2012,2514922-EDS/SUS/030-S/3RDP,"15,000.00",BURNHOPE FIRST CLASS CHILDCARE LTD.
Children and Young Peoples Services,CYPS - Local Authority,Transport,230007,Contract Hire,05-Nov-2012,2514926-141,"1,440.00",CENTRAL TAXIS (PETERLEE) LTD.
Children and Young Peoples Services,CYPS - Local Authority,Third Party Payments,479101,Purchase of Care,05-Nov-2012,2514939-3137697,"5,529.94",CO DURHAM & DARLINGTON NHS FOUNDATION TRUST.
Children and Young Peoples Services,CYPS - Local Authority,Third Party Payments,479101,Purchase of Care,05-Nov-2012,2514939-3138238,"5,700.05",CO DURHAM & DARLINGTON NHS FOUNDATION TRUST.
Children and Young Peoples Services,CYPS - Local Authority,Third Party Payments,479101,Purchase of Care,05-Nov-2012,2514939-3138448,"5,589.83",CO DURHAM & DARLINGTON NHS FOUNDATION TRUST.
Children and Young Peoples Services,CYPS - Local Authority,Transport,230007,Contract Hire,05-Nov-2012,2514970-4107/1012,"1,292.80",ELLIOTTS OF TRIMDON.
Children and Young Peoples Services,CYPS - Local Authority,Transport,230007,Contract Hire,05-Nov-2012,2514970-5075/1012,750.00,ELLIOTTS OF TRIMDON.
Children and Young Peoples Services,CYPS - Local Authority,Transport,230007,Contract Hire,05-Nov-2012,2514970-E009/1012,"1,681.80",ELLIOTTS OF TRIMDON.
Children and Young Peoples Services,CYPS - Local Authority,Transport,230007,Contract Hire,05-Nov-2012,2514970-E014/1012,"1,858.60",ELLIOTTS OF TRIMDON.
Children and Young Peoples Services,CYPS - Local Authority,Transport,230007,Contract Hire,05-Nov-2012,2514972-0511,"2,784.40",EN ROUTE TRAVEL.
Children and Young Peoples Services,CYPS - Local Authority,Transport,230007,Contract Hire,05-Nov-2012,2514972-0512,"1,700.00",EN ROUTE TRAVEL.
Children and Young Peoples Services,CYPS - Local Authority,Third Party Payments,425040,Rendered by Voluntary Organisations,05-Nov-2012,2514979-FC011014,820.00,FOSTER CARES LTD.
Children and Young Peoples Services,CYPS - Local Authority,Third Party Payments,425040,Rendered by Voluntary Organisations,05-Nov-2012,2514979-FC011020,730.00,FOSTER CARES LTD.
Children and Young Peoples Services,CYPS - Local Authority,Third Party Payments,425040,Rendered by Voluntary Organisations,05-Nov-2012,2514979-FC011025,"1,180.00",FOSTER CARES LTD.
Children and Young Peoples Services,CYPS - Local Authority,Third Party Payments,425040,Rendered by Voluntary Organisations,05-Nov-2012,2514979-FC011027,700.00,FOSTER CARES LTD.
Children and Young Peoples Services,CYPS - Local Authority,Transport,230007,Contract Hire,05-Nov-2012,2514988-7942,"1,422.20",GREENCROFT MINI COACHES.
Children and Young Peoples Services,CYPS - Local Authority,Transport,230007,Contract Hire,05-Nov-2012,2514988-7943,"1,570.80",GREENCROFT MINI COACHES.
Children and Young Peoples Services,CYPS - Local Authority,Transport,230007,Contract Hire,05-Nov-2012,2515005-IR1210009,"1,200.00",I & R EXECUTIVE TRAVEL.
Children and Young Peoples Services,CYPS - Local Authority,Construction Work,908105,Construction work,05-Nov-2012,2515010-DURH/0294,"33,192.54",INSPIREDSPACES DURHAM LTD.
Children and Young Peoples Services,CYPS - Local Authority,Supplies and Services,304259,Equipment and Materials,05-Nov-2012,2515023-0000062376,"1,735.00",JOHN PACKER LTD.
Children and Young Peoples Services,CYPS - Local Authority,Transport,230007,Contract Hire,05-Nov-2012,2515028-W092OCT12,"1,320.00",KARAOKE KABS.
Children and Young Peoples Services,CYPS - Local Authority,Transport,230007,Contract Hire,05-Nov-2012,2515029-002-OCT2012,766.50,KDH TAXIS.
Children and Young Peoples Services,CYPS - Local Authority,Transfer Payments,510026,School Children,05-Nov-2012,2515030-EDS/SUS/031-EY/3RDP,"15,000.00",KELLOE PHOENIX CENTRE (CHILDCARE).
Children and Young Peoples Services,CYPS - Local Authority,Supplies and Services,338027,Services,05-Nov-2012,2515033-1000079,"28,349.48",KING JAMES I ACADEMY.
Children and Young Peoples Services,CYPS - Local Authority,Transport,230007,Contract Hire,05-Nov-2012,2515034-0120,798.00,L & M TAXIS.
Children and Young Peoples Services,CYPS - Local Authority,Supplies and Services,338045,Services,05-Nov-2012,2515061-181450-15/10/2012,"2,400.00",MR CHARLES MCCAIN.
Children and Young Peoples Services,CYPS - Local Authority,Supplies and Services,338045,Services,05-Nov-2012,2515061-286150/INVCSM49,"1,000.00",MR CHARLES MCCAIN.
Children and Young Peoples Services,CYPS - Local Authority,Transport,230007,Contract Hire,05-Nov-2012,2515062-73-26/10/2012,"2,410.80",MR GN ROBBINS T/A GNR MINIBUS HIRE.
Children and Young Peoples Services,CYPS - Local Authority,Transport,230007,Contract Hire,05-Nov-2012,2515062-74-26/10/2012,900.00,MR GN ROBBINS T/A GNR MINIBUS HIRE.
Children and Young Peoples Services,CYPS - Local Authority,Transport,230007,Contract Hire,05-Nov-2012,2515070-12-31/10/12,"1,464.60",N FORBES.
Children and Young Peoples Services,CYPS - Local Authority,Transport,230007,Contract Hire,05-Nov-2012,2515099-242,"1,500.00",PETERLEE EXECUTIVE CARS.
Children and Young Peoples Services,CYPS - Local Authority,Transport,230007,Contract Hire,05-Nov-2012,2515099-243,"1,100.00",PETERLEE EXECUTIVE CARS.
Children and Young Peoples Services,CYPS - Local Authority,Transport,230007,Contract Hire,05-Nov-2012,2515099-244,"1,080.00",PETERLEE EXECUTIVE CARS.
Children and Young Peoples Services,CYPS - Local Authority,Transport,230007,Contract Hire,05-Nov-2012,2515099-249,560.00,PETERLEE EXECUTIVE CARS.
Children and Young Peoples Services,CYPS - Local Authority,Transport,230007,Contract Hire,05-Nov-2012,2515099-251,920.00,PETERLEE EXECUTIVE CARS.
Children and Young Peoples Services,CYPS - Local Authority,Transport,230007,Contract Hire,05-Nov-2012,2515121-1535,"2,000.00",RONS TAXIS.
Children and Young Peoples Services,CYPS - Local Authority,Transport,230007,Contract Hire,05-Nov-2012,2515121-1536,"2,500.00",RONS TAXIS.
Children and Young Peoples Services,CYPS - Local Authority,Transport,230007,Contract Hire,05-Nov-2012,2515121-1537,"1,520.00",RONS TAXIS.
Children and Young Peoples Services,CYPS - Local Authority,Supplies and Services,304259,Equipment and Materials,05-Nov-2012,2515127-4167-00015,584.91,SALLY SALON SERVICES LTD.
Children and Young Peoples Services,CYPS - Local Authority,Supplies and Services,364999,Grants to Voluntary Organisations,05-Nov-2012,2515162-GRANT,"9,030.00",TEESDALE COMMUNITY RESOURCES (TCR).
Children and Young Peoples Services,CYPS - Local Authority,Transport,230007,Contract Hire,05-Nov-2012,2515180-1202,"1,440.00",TRAPPA`S TRAVEL.
Children and Young Peoples Services,CYPS - Local Authority,Transport,230007,Contract Hire,05-Nov-2012,2515195-677,"1,520.00",WAYNE`S TAXIS.
Children and Young Peoples Services,CYPS - Local Authority,Transport,230007,Contract Hire,05-Nov-2012,2515195-678,"1,600.00",WAYNE`S TAXIS.
Children and Young Peoples Services,CYPS - Local Authority,Transport,230007,Contract Hire,05-Nov-2012,2515195-680,700.00,WAYNE`S TAXIS.
Children and Young Peoples Services,Dedicated Schools Grant,Transport,230007,Contract Hire,05-Nov-2012,2514897-0244,"1,700.00",AJS PRIVATE HIRE.
Corporate Resources,Centrally Administered costs,Supplies and Services,372009,Subscriptions,05-Nov-2012,2514931-2803011169,"50,000.00",CITY OF SUNDERLAND.
Corporate Resources,Financing- Resources,Supplies and Services,338027,Services,05-Nov-2012,2514932-C/RB112522,"2,850.00",CIVICA UK LTD.
Corporate Resources,Financing- Resources,Supplies and Services,342053,Computers and Communications,05-Nov-2012,2514932-C/RB112706,"1,900.00",CIVICA UK LTD.
Corporate Resources,Financing- Resources,Supplies and Services,342053,Computers and Communications,05-Nov-2012,2514932-C/RB112707,"4,480.00",CIVICA UK LTD.
Corporate Resources,Financing- Resources,Supplies and Services,384180,Miscellaneous Expenses,05-Nov-2012,2515044-0628072,"4,254.35",LOOMIS UK LTD.
Corporate Resources,Financing- Resources,Supplies and Services,332047,"Printing, Stationery and Gen Off Exps",05-Nov-2012,2515153-5361631,707.86,SUPPLIES TEAM LTD.
Corporate Resources,Financing- Resources,Supplies and Services,342224,Computers and Communications,05-Nov-2012,2515207-S127467,"2,915.15",XMA LTD.
Corporate Resources,Human Resources Total,Supplies and Services,384199,Miscellaneous Expenses,05-Nov-2012,2515073-91497130,"1,430.15",NEOPOST LTD.
Corporate Resources,Human Resources Total,Supplies and Services,384199,Miscellaneous Expenses,05-Nov-2012,2515086-I2140345,"1,800.00",NORTHGATE INFORMATION SOLUTIONS UK LTD.
Corporate Resources,ICT Services incl. Design and Print,Supplies and Services,304245,Equipment and Materials,05-Nov-2012,2514900-WN2341487,"1,023.00",ANTALIS MCNAUGHTON LTD.
Corporate Resources,ICT Services incl. Design and Print,Employees,040149,"Recruitment, Instruction and Training",05-Nov-2012,2514923-92543047,"1,000.00",CAPITA BUSINESS SERVICES LTD.
Corporate Resources,ICT Services incl. Design and Print,Supplies and Services,338027,Services,05-Nov-2012,2514923-92565472,"1,650.00",CAPITA BUSINESS SERVICES LTD.
Corporate Resources,ICT Services incl. Design and Print,Supplies and Services,342051,Computers and Communications,05-Nov-2012,2514932-C/RB112705,"2,925.00",CIVICA UK LTD.
Corporate Resources,ICT Services incl. Design and Print,Stock,926900,Stock in hand-Inventory system,05-Nov-2012,2514957-7401973418,"2,233.70",DELL COMPUTER CORPORATION LTD.
Corporate Resources,ICT Services incl. Design and Print,Stock,926900,Stock in hand-Inventory system,05-Nov-2012,2515008-1029207,"1,873.46",INSIGHT DIRECT (UK) LTD.
Corporate Resources,ICT Services incl. Design and Print,Stock,926900,Stock in hand-Inventory system,05-Nov-2012,2515008-1031395,580.08,INSIGHT DIRECT (UK) LTD.
Corporate Resources,ICT Services incl. Design and Print,Stock,926900,Stock in hand-Inventory system,05-Nov-2012,2515008-1031734,"2,143.09",INSIGHT DIRECT (UK) LTD.
Corporate Resources,ICT Services incl. Design and Print,Stock,926900,Stock in hand-Inventory system,05-Nov-2012,2515008-1032058,"5,250.00",INSIGHT DIRECT (UK) LTD.
Corporate Resources,ICT Services incl. Design and Print,Supplies and Services,332029,"Printing, Stationery and Gen Off Exps",05-Nov-2012,2515105-586808,693.00,POTTS PRINTERS LTD.
Corporate Resources,ICT Services incl. Design and Print,"Vehicles, Equipment, Furniture and Fittings",912701,Computer equipment,05-Nov-2012,2515128-12100045,"15,740.00",SAPPHIRE TECHNOLOGIES LTD.
Corporate Resources,ICT Services incl. Design and Print,"Vehicles, Equipment, Furniture and Fittings",912701,Computer equipment,05-Nov-2012,2515154-116622,996.00,SWITCHSHOP LTD.
Corporate Resources,Legal & Democratic Services,Supplies and Services,340001,Postages,05-Nov-2012,2515122-9040597884,"1,093.35",ROYAL MAIL GROUP PLC.
Neighbourhood Services,AAP - Area Action Partnerships,Construction Work,908105,Construction work,05-Nov-2012,2515184-080076,"1,847.00",UNIPART DORMAN.
Neighbourhood Services,AAP - Area Action Partnerships,Construction Work,908105,Construction work,05-Nov-2012,2515184-080077,"1,847.00",UNIPART DORMAN.
Neighbourhood Services,Direct Services,Stock,926900,Stock in hand-Inventory system,05-Nov-2012,2514891-LLI264695,505.60,A THOMPSON & SONS LTD.
Neighbourhood Services,Direct Services,Third Party Payments,430100,Rendered by Private Contractors,05-Nov-2012,2514938-8115074,685.15,CLOVER CONTROLS LTD.
Neighbourhood Services,Direct Services,Third Party Payments,430100,Rendered by Private Contractors,05-Nov-2012,2514963-ND/KP/8194,"3,896.98",DUNNINGHAM DECORATORS LTD.
Neighbourhood Services,Direct Services,Stock,926900,Stock in hand-Inventory system,05-Nov-2012,2514968-059-108649,"1,833.13",EDMUNDSON ELECTRICAL LTD.
Neighbourhood Services,Direct Services,Supplies and Services,304259,Equipment and Materials,05-Nov-2012,2514975-117517,"2,692.00",EUROGARDEN IMPORTS LTD.
Neighbourhood Services,Direct Services,Stock,926900,Stock in hand-Inventory system,05-Nov-2012,2514977-OP/I263633,"1,541.01",FLEMING & CO (MACHINERY) LTD.
Neighbourhood Services,Direct Services,Stock,926004,Stock,05-Nov-2012,2514985-8493623,"1,398.40",GB OILS T/A BRETT FUELS.
Neighbourhood Services,Direct Services,Supplies and Services,304221,Equipment and Materials,05-Nov-2012,2514990-J3453,652.80,GROVE REED.
Neighbourhood Services,Direct Services,Supplies and Services,304221,Equipment and Materials,05-Nov-2012,2515003-B33/0046925,844.80,HOWDEN JOINERY LTD.
Neighbourhood Services,Direct Services,Stock,926900,Stock in hand-Inventory system,05-Nov-2012,2515011-388981,"1,683.92",INSTARMAC GROUP PLC.
Neighbourhood Services,Direct Services,Stock,926900,Stock in hand-Inventory system,05-Nov-2012,2515011-389149,"2,307.20",INSTARMAC GROUP PLC.
Neighbourhood Services,Direct Services,Supplies and Services,328041,"Clothing, Uniforms and Laundry",05-Nov-2012,2515021-5978,524.35,JG UNIFORMS.
Neighbourhood Services,Direct Services,Stock,926900,Stock in hand-Inventory system,05-Nov-2012,2515022-NI020634,"8,094.00",JOHN MACLEAN & SONS ELECTRICAL (DINGWALL) LTD.
Neighbourhood Services,Direct Services,Stock,926900,Stock in hand-Inventory system,05-Nov-2012,2515022-NI020635,"2,130.00",JOHN MACLEAN & SONS ELECTRICAL (DINGWALL) LTD.
Neighbourhood Services,Direct Services,Supplies and Services,328041,"Clothing, Uniforms and Laundry",05-Nov-2012,2515025-GI661979,502.96,JOHNSONS APPARELMASTER LTD.
Neighbourhood Services,Direct Services,Transport,230005,Contract Hire,05-Nov-2012,2515043-89839,"1,275.00",LONDONDERRY GARAGE LTD.
Neighbourhood Services,Direct Services,Premises,155001,Insurance of Premises,05-Nov-2012,2515056-5869,"2,082.02",MM KNITWEAR (1982) LTD.
Neighbourhood Services,Direct Services,Stock,926900,Stock in hand-Inventory system,05-Nov-2012,2515095-XL068785,"1,616.60",PARK ELECTRICAL DISTRIBUTORS LTD.
Neighbourhood Services,Direct Services,Supplies and Services,304221,Equipment and Materials,05-Nov-2012,2515097-4037792,"2,834.00",PDT SEALING SYSTEMS LTD.
Neighbourhood Services,Direct Services,Supplies and Services,304221,Equipment and Materials,05-Nov-2012,2515103-4120140350,857.38,PLUMBING TRADE SUPPLIES LTD.
Neighbourhood Services,Direct Services,Supplies and Services,304221,Equipment and Materials,05-Nov-2012,2515103-4120140476,819.96,PLUMBING TRADE SUPPLIES LTD.
Neighbourhood Services,Direct Services,Stock,926900,Stock in hand-Inventory system,05-Nov-2012,2515113-42452,577.74,RIGHT OFFICE INTERIORS LTD.
Neighbourhood Services,Direct Services,Third Party Payments,430100,Rendered by Private Contractors,05-Nov-2012,2515114-2635,"2,000.00",RINGLAND SCAFFOLDING.
Neighbourhood Services,Direct Services,Third Party Payments,430100,Rendered by Private Contractors,05-Nov-2012,2515114-2638,"3,300.00",RINGLAND SCAFFOLDING.
Neighbourhood Services,Direct Services,Third Party Payments,430100,Rendered by Private Contractors,05-Nov-2012,2515119-16619,"4,280.00",RJ UTILITY SERVICES LTD.
Neighbourhood Services,Direct Services,Supplies and Services,304221,Equipment and Materials,05-Nov-2012,2515132-228493,795.00,SEAWARD GROUP LTD.
Neighbourhood Services,Direct Services,Stock,926900,Stock in hand-Inventory system,05-Nov-2012,2515138-SI-081765,835.00,SICAME ELECTRICAL DISTRIBUTION LTD.
Neighbourhood Services,Direct Services,Stock,926900,Stock in hand-Inventory system,05-Nov-2012,2515140-179374,"2,640.00",SNAPFAST.
Neighbourhood Services,Direct Services,Stock,926900,Stock in hand-Inventory system,05-Nov-2012,2515144-7005541335,"1,631.00",SPEEDY ASSET SERVICES LTD.
Neighbourhood Services,Direct Services,Supplies and Services,304221,Equipment and Materials,05-Nov-2012,2515156-JE00267/TL/EP,589.56,T MANNERS & SONS LTD.
Neighbourhood Services,Direct Services,Stock,926900,Stock in hand-Inventory system,05-Nov-2012,2515160-9028841058,603.39,TARMAC LTD.
Neighbourhood Services,Direct Services,Third Party Payments,430103,Rendered by Private Contractors,05-Nov-2012,2515163-ERC2012,"5,512.16",TEESDALE CONSERVATION VOLUNTEERS.
Neighbourhood Services,Direct Services,Supplies and Services,304221,Equipment and Materials,05-Nov-2012,2515178-28023,598.00,TOTAL PUMP SOLUTIONS LTD.
Neighbourhood Services,Direct Services,Supplies and Services,304259,Equipment and Materials,05-Nov-2012,2515188-0084/2012,"2,500.00",VIPA UK LTD.
Neighbourhood Services,Direct Services,Stock,926900,Stock in hand-Inventory system,05-Nov-2012,2515202-76905533,766.82,WOLSELEY UK LTD.
Neighbourhood Services,Direct Services,Stock,926900,Stock in hand-Inventory system,05-Nov-2012,2515202-76905594,"1,400.44",WOLSELEY UK LTD.
Neighbourhood Services,Direct Services,Supplies and Services,304221,Equipment and Materials,05-Nov-2012,2515202-76938752,635.33,WOLSELEY UK LTD.
Neighbourhood Services,Direct Services,Stock,926900,Stock in hand-Inventory system,05-Nov-2012,2515202-76945183,516.60,WOLSELEY UK LTD.
Neighbourhood Services,Finance - Neighbourhood Services,Creditors,952024,Creditor-sub contractors retention,05-Nov-2012,2514991-SC4610/575,559.64,HALL CONSTRUCTION SERVICES LTD.
Neighbourhood Services,Finance - Neighbourhood Services,Creditors,952024,Creditor-sub contractors retention,05-Nov-2012,2514991-SC4624/578,"2,024.08",HALL CONSTRUCTION SERVICES LTD.
Neighbourhood Services,Projects and Business services,Third Party Payments,430104,Rendered by Private Contractors,05-Nov-2012,2515106-048386,"1,529.19",PREMIER WASTE MANAGEMENT LTD.
Neighbourhood Services,Projects and Business services,Third Party Payments,430104,Rendered by Private Contractors,05-Nov-2012,2515106-048387,634.58,PREMIER WASTE MANAGEMENT LTD.
Neighbourhood Services,Projects and Business services,Supplies and Services,340001,Postages,05-Nov-2012,2515122-9040597107,"2,184.53",ROYAL MAIL GROUP PLC.
Neighbourhood Services,Sport & Leisure,Supplies and Services,304221,Equipment and Materials,05-Nov-2012,2514906-00975027,"1,333.27",ARGOS BUSINESS SOLUTIONS.
Neighbourhood Services,Sport & Leisure,Supplies and Services,304259,Equipment and Materials,05-Nov-2012,2514908-680,"2,175.00",ASA JAMES.
Neighbourhood Services,Sport & Leisure,Supplies and Services,304252,Equipment and Materials,05-Nov-2012,2514912-21984,800.00,BARR & WRAY LTD.
Neighbourhood Services,Sport & Leisure,Supplies and Services,336005,Advertising,05-Nov-2012,2514945-UK10689,"1,833.33",COMPETITION LINE UK LTD.
Neighbourhood Services,Sport & Leisure,Supplies and Services,304259,Equipment and Materials,05-Nov-2012,2514968-059-108621,829.50,EDMUNDSON ELECTRICAL LTD.
Neighbourhood Services,Sport & Leisure,Supplies and Services,304221,Equipment and Materials,05-Nov-2012,2514974-INV62729,"4,053.31",ESCAPE FITNESS LTD.
Neighbourhood Services,Sport & Leisure,Supplies and Services,304221,Equipment and Materials,05-Nov-2012,2514974-INV62730,"1,178.00",ESCAPE FITNESS LTD.
Neighbourhood Services,Sport & Leisure,Supplies and Services,384199,Miscellaneous Expenses,05-Nov-2012,2515066-0573,800.00,MR STEVE MUTCH T/A NORDMANNI.
Neighbourhood Services,Sport & Leisure,Supplies and Services,384956,Miscellaneous Expenses,05-Nov-2012,2515107-3786371,"4,666.73",PRS FOR MUSIC.
Neighbourhood Services,Technical Services,Supplies and Services,304221,Equipment and Materials,05-Nov-2012,2514891-LLI264645,979.02,A THOMPSON & SONS LTD.
Neighbourhood Services,Technical Services,Supplies and Services,304221,Equipment and Materials,05-Nov-2012,2514896-17080164,"1,915.41",AGGREGATE INDUSTRIES UK LTD.
Neighbourhood Services,Technical Services,Supplies and Services,304221,Equipment and Materials,05-Nov-2012,2514896-17181912,"10,199.18",AGGREGATE INDUSTRIES UK LTD.
Neighbourhood Services,Technical Services,Supplies and Services,304221,Equipment and Materials,05-Nov-2012,2514896-17186109,964.38,AGGREGATE INDUSTRIES UK LTD.
Neighbourhood Services,Technical Services,Supplies and Services,304221,Equipment and Materials,05-Nov-2012,2514896-17191640,"1,497.61",AGGREGATE INDUSTRIES UK LTD.
Neighbourhood Services,Technical Services,Third Party Payments,430100,Rendered by Private Contractors,05-Nov-2012,2514950-15036,731.92,COUPE LINE LTD.
Neighbourhood Services,Technical Services,Third Party Payments,430100,Rendered by Private Contractors,05-Nov-2012,2514953-N003285,"3,540.00",D DRILL (MASTER DRILLERS) LTD.
Neighbourhood Services,Technical Services,Creditors,952024,Creditor-sub contractors retention,05-Nov-2012,2514991-R/F/SC4608/577,"1,548.05",HALL CONSTRUCTION SERVICES LTD.
Neighbourhood Services,Technical Services,Supplies and Services,304358,Equipment and Materials,05-Nov-2012,2515024-12653,945.95,JOHN R BUTTERFIELD LTD.
Neighbourhood Services,Technical Services,Supplies and Services,304358,Equipment and Materials,05-Nov-2012,2515024-12654,945.95,JOHN R BUTTERFIELD LTD.
Neighbourhood Services,Technical Services,Supplies and Services,304358,Equipment and Materials,05-Nov-2012,2515024-12657,733.59,JOHN R BUTTERFIELD LTD.
Neighbourhood Services,Technical Services,Supplies and Services,304358,Equipment and Materials,05-Nov-2012,2515024-12660,945.95,JOHN R BUTTERFIELD LTD.
Neighbourhood Services,Technical Services,Supplies and Services,304358,Equipment and Materials,05-Nov-2012,2515024-12687,945.95,JOHN R BUTTERFIELD LTD.
Neighbourhood Services,Technical Services,Supplies and Services,304358,Equipment and Materials,05-Nov-2012,2515024-12688,945.95,JOHN R BUTTERFIELD LTD.
Neighbourhood Services,Technical Services,Supplies and Services,304358,Equipment and Materials,05-Nov-2012,2515024-12693,806.85,JOHN R BUTTERFIELD LTD.
Neighbourhood Services,Technical Services,Supplies and Services,304358,Equipment and Materials,05-Nov-2012,2515024-12700,932.09,JOHN R BUTTERFIELD LTD.
Neighbourhood Services,Technical Services,Supplies and Services,304358,Equipment and Materials,05-Nov-2012,2515024-12704,683.60,JOHN R BUTTERFIELD LTD.
Neighbourhood Services,Technical Services,Supplies and Services,304358,Equipment and Materials,05-Nov-2012,2515024-12731,945.95,JOHN R BUTTERFIELD LTD.
Neighbourhood Services,Technical Services,Supplies and Services,304358,Equipment and Materials,05-Nov-2012,2515024-12732,945.95,JOHN R BUTTERFIELD LTD.
Neighbourhood Services,Technical Services,Supplies and Services,304358,Equipment and Materials,05-Nov-2012,2515024-12736,804.87,JOHN R BUTTERFIELD LTD.
Neighbourhood Services,Technical Services,Supplies and Services,304358,Equipment and Materials,05-Nov-2012,2515024-12741,932.34,JOHN R BUTTERFIELD LTD.
Neighbourhood Services,Technical Services,Supplies and Services,304358,Equipment and Materials,05-Nov-2012,2515024-12742,597.96,JOHN R BUTTERFIELD LTD.
Neighbourhood Services,Technical Services,Supplies and Services,304358,Equipment and Materials,05-Nov-2012,2515024-12744,"1,154.84",JOHN R BUTTERFIELD LTD.
Neighbourhood Services,Technical Services,Supplies and Services,304358,Equipment and Materials,05-Nov-2012,2515024-12745,986.04,JOHN R BUTTERFIELD LTD.
Neighbourhood Services,Technical Services,Construction Work,908109,Capital - Resurfacing,05-Nov-2012,2515052-4510,"38,636.51",MILES MACADAM LTD.
Neighbourhood Services,Technical Services,Construction Work,908109,Capital - Resurfacing,05-Nov-2012,2515052-4511,"38,877.50",MILES MACADAM LTD.
Neighbourhood Services,Technical Services,Third Party Payments,430100,Rendered by Private Contractors,05-Nov-2012,2515058-1423,"19,750.00",MOULDING CONTRACTS LTD.
Neighbourhood Services,Technical Services,Third Party Payments,430100,Rendered by Private Contractors,05-Nov-2012,2515075-AP000389,"2,078.27",NEW COUNTY ROADS.
Neighbourhood Services,Technical Services,Third Party Payments,430100,Rendered by Private Contractors,05-Nov-2012,2515075-AP000390,"3,492.75",NEW COUNTY ROADS.
Neighbourhood Services,Technical Services,Third Party Payments,460351,Contract Payments,05-Nov-2012,2515084-I,681.28,NORTHERN DISPOSAL SERVICES LTD.
Neighbourhood Services,Technical Services,Supplies and Services,304221,Equipment and Materials,05-Nov-2012,2515160-9028740288,667.32,TARMAC LTD.
Neighbourhood Services,Technical Services,Third Party Payments,460255,Contract Payments,05-Nov-2012,2515187-OP/I400222,"1,200.00",VEOLIA ES (UK) LTD.
Neighbourhood Services,Technical Services,Supplies and Services,304358,Equipment and Materials,05-Nov-2012,2515190-34306,543.00,W MARLEY AGRICULTURAL CONTRACTORS LTD.
RED HRA,Housing Revenue Account,Supplies and Services,304999,Equipment and Materials,05-Nov-2012,2515014-24020,655.00,INTERPLAN SIGN SYSTEMS LTD.
RED HRA,HRA Capital,Construction Work,908105,Construction work,05-Nov-2012,2514981-50328/6,"175,716.75",FRANK HASLAM MILAN & CO LTD.
RED HRA,HRA Control Codes,Creditors,952184,Creditor-tenants contents insurance,05-Nov-2012,2515047-6026727,"2,332.13",MARSH LTD UK.
Regeneration & Economic Development,Economic Development and Housing,Supplies and Services,384437,Miscellaneous Expenses,05-Nov-2012,2514937-287180,"4,067.37",CLICK TRAVEL LTD.
Regeneration & Economic Development,Economic Development and Housing,Premises,106099,Centrally Controlled Rep and Maint,05-Nov-2012,2514943-0301,804.65,COMMERCIAL ENERGY ASSESSMENT NORTH EAST LTD.
Regeneration & Economic Development,Economic Development and Housing,Premises,120021,Energy Costs,05-Nov-2012,2514947-07662155,721.74,CORONA ENERGY RETAIL 2 LTD.
Regeneration & Economic Development,Economic Development and Housing,Fees,901002,Professional Fees,05-Nov-2012,2515002-S0009560,"1,800.00",HOMES & COMMUNITIES AGENCY.
Regeneration & Economic Development,Economic Development and Housing,Supplies and Services,340001,Postages,05-Nov-2012,2515072-307495-TU,500.00,NEOPOST LTD CREDIFON RCB ACCOUNT.
Regeneration & Economic Development,Economic Development and Housing,Supplies and Services,384199,Miscellaneous Expenses,05-Nov-2012,2515076-NM28855,"1,885.00",NEW MIND INTERNET CONSULTANCY LTD.
Regeneration & Economic Development,Economic Development and Housing,Supplies and Services,384199,Miscellaneous Expenses,05-Nov-2012,2515076-NM28856,"4,000.00",NEW MIND INTERNET CONSULTANCY LTD.
Regeneration & Economic Development,Economic Development and Housing,Supplies and Services,384199,Miscellaneous Expenses,05-Nov-2012,2515110-3244,600.00,REVOLUTION MARKETING LTD.
Regeneration & Economic Development,Housing General Fund,Fees,901001,Internal fees,05-Nov-2012,2515172-SITRH/0004779,"2,016.20",THREE RIVERS HOUSING ASSOCIATION LTD.
Regeneration & Economic Development,"Spatial Policy, Planning, Assets & Environment",Premises,120021,Energy Costs,05-Nov-2012,2514919-131402751,"1,082.08",BRITISH GAS BUSINESS.
Regeneration & Economic Development,"Spatial Policy, Planning, Assets & Environment",Supplies and Services,384700,Miscellaneous Expenses,05-Nov-2012,2515203-SDFG-O/AP,700.00,WOOD N WHEELS REGIONAL DEVELOPMENT TRUST.
Regeneration & Economic Development,Transport,Third Party Payments,440999,Other Third Party Payments,05-Nov-2012,2514955-2223947,"13,792.81",DARLINGTON BOROUGH COUNCIL.
Regeneration & Economic Development,Transport,Employees,080025,Agency Staff,05-Nov-2012,2515042-LSS2C,"232,355.00",LIVING STREETS.
Regeneration & Economic Development,Transport,Premises,120009,Energy Costs,05-Nov-2012,2515089-NNO68VGC,584.56,NPOWER.
Regeneration & Economic Development,Transport,Premises,120009,Energy Costs,05-Nov-2012,2515089-NNO69PPK,576.49,NPOWER.
Regeneration & Economic Development,Transport,Premises,120009,Energy Costs,05-Nov-2012,2515089-NNO7BNPD,577.82,NPOWER.
Regeneration & Economic Development,Transport,Supplies and Services,304259,Equipment and Materials,05-Nov-2012,2515182-3IN/10209312,"2,040.00",TUNSTALL HEALTHCARE (UK) LTD.
Adults Wellbeing and Health,Commissioning inc Supporting People,Third Party Payments,473111,Purchase of Care,06-Nov-2012,2515936-RINVTP/00252795,"6,024.42",LEONARD CHESHIRE DISABILITY.
Adults Wellbeing and Health,Head of Adults,Supplies and Services,338365,Services,06-Nov-2012,2515860-9826,943.92,EASIBATHE LTD.
Adults Wellbeing and Health,Head of Adults,Transport,230005,Contract Hire,06-Nov-2012,2515900-128,720.00,JDS PRIVATE HIRE DURHAM.
Adults Wellbeing and Health,Head of Adults,Transport,230005,Contract Hire,06-Nov-2012,2515956-22,816.00,MR DAVID CULLEN.
Children and Young Peoples Services,CYPS - Local Authority,Third Party Payments,440016,Other Third Party Payments,06-Nov-2012,2515230-838305,"1,856.68",REDACTED - PAYMENT TO INDIVIDUAL
Children and Young Peoples Services,CYPS - Local Authority,Transport,230007,Contract Hire,06-Nov-2012,2515795-101203,"1,495.00",24/7 TAXI SERVICES LTD.
Children and Young Peoples Services,CYPS - Local Authority,Transport,230007,Contract Hire,06-Nov-2012,2515795-101204,"1,400.00",24/7 TAXI SERVICES LTD.
Children and Young Peoples Services,CYPS - Local Authority,Transport,230007,Contract Hire,06-Nov-2012,2515795-101205,900.00,24/7 TAXI SERVICES LTD.
Children and Young Peoples Services,CYPS - Local Authority,Transport,230007,Contract Hire,06-Nov-2012,2515795-101208,"1,580.00",24/7 TAXI SERVICES LTD.
Children and Young Peoples Services,CYPS - Local Authority,Transport,230007,Contract Hire,06-Nov-2012,2515808-615502,"1,400.00",ALANS CABS.
Children and Young Peoples Services,CYPS - Local Authority,Transport,230007,Contract Hire,06-Nov-2012,2515843-4003/10/12,"3,881.43",COUNTY COACHES.
Children and Young Peoples Services,CYPS - Local Authority,Transport,230007,Contract Hire,06-Nov-2012,2515843-4021/10/12,"2,284.40",COUNTY COACHES.
Children and Young Peoples Services,CYPS - Local Authority,Transport,230007,Contract Hire,06-Nov-2012,2515843-4026/10/12,"1,869.00",COUNTY COACHES.
Children and Young Peoples Services,CYPS - Local Authority,Transport,230007,Contract Hire,06-Nov-2012,2515843-4029/10/12,"1,984.29",COUNTY COACHES.
Children and Young Peoples Services,CYPS - Local Authority,Construction Work,908105,Construction work,06-Nov-2012,2515884-DURH/0295,"1,770,884.00",INSPIREDSPACES DURHAM LTD.
Children and Young Peoples Services,CYPS - Local Authority,Construction Work,908105,Construction work,06-Nov-2012,2515884-DURH/0296,"549,291.60",INSPIREDSPACES DURHAM LTD.
Children and Young Peoples Services,CYPS - Local Authority,Transport,230007,Contract Hire,06-Nov-2012,2515895-219,"1,200.00",J YOUNG T/A VIP TAXIS.
Children and Young Peoples Services,CYPS - Local Authority,Transport,230007,Contract Hire,06-Nov-2012,2515895-220,"1,840.00",J YOUNG T/A VIP TAXIS.
Children and Young Peoples Services,CYPS - Local Authority,Transport,230007,Contract Hire,06-Nov-2012,2515895-221,"1,260.00",J YOUNG T/A VIP TAXIS.
Children and Young Peoples Services,CYPS - Local Authority,Transport,230007,Contract Hire,06-Nov-2012,2515895-223,"1,200.00",J YOUNG T/A VIP TAXIS.
Children and Young Peoples Services,CYPS - Local Authority,Transport,230007,Contract Hire,06-Nov-2012,2515895-224,"1,160.00",J YOUNG T/A VIP TAXIS.
Children and Young Peoples Services,CYPS - Local Authority,Transport,230007,Contract Hire,06-Nov-2012,2515895-226,"1,300.00",J YOUNG T/A VIP TAXIS.
Children and Young Peoples Services,CYPS - Local Authority,Transport,230007,Contract Hire,06-Nov-2012,2515895-227,792.00,J YOUNG T/A VIP TAXIS.
Children and Young Peoples Services,CYPS - Local Authority,Transport,230007,Contract Hire,06-Nov-2012,2515895-228,"1,920.00",J YOUNG T/A VIP TAXIS.
Children and Young Peoples Services,CYPS - Local Authority,Transport,230007,Contract Hire,06-Nov-2012,2515897-3,"1,173.00",JACK`S TAXIS.
Children and Young Peoples Services,CYPS - Local Authority,Transport,230007,Contract Hire,06-Nov-2012,2515904-2A-24/10/12,"1,260.00",JL EBDON.
Children and Young Peoples Services,CYPS - Local Authority,Transport,230007,Contract Hire,06-Nov-2012,2515904-2B-26/10/12,"1,400.00",JL EBDON.
Children and Young Peoples Services,CYPS - Local Authority,Transport,230007,Contract Hire,06-Nov-2012,2515904-2C-26/10/12,"1,360.00",JL EBDON.
Children and Young Peoples Services,CYPS - Local Authority,Transport,230007,Contract Hire,06-Nov-2012,2515904-2E-26/10/12,"1,645.00",JL EBDON.
Children and Young Peoples Services,CYPS - Local Authority,Transport,230007,Contract Hire,06-Nov-2012,2515904-2F-26/10/12,"2,652.20",JL EBDON.
Children and Young Peoples Services,CYPS - Local Authority,Transport,230007,Contract Hire,06-Nov-2012,2515905-2012/30,"1,432.60",JM HUMBLE COACH HIRE.
Children and Young Peoples Services,CYPS - Local Authority,Transport,230007,Contract Hire,06-Nov-2012,2515919-983,"1,473.00",KEN CHAMBERS.
Children and Young Peoples Services,CYPS - Local Authority,Transport,230007,Contract Hire,06-Nov-2012,2515954-23,"1,200.00",MR CHRISTOPHER BRECHIN T/A CB TAXI`S.
Children and Young Peoples Services,CYPS - Local Authority,Transport,230007,Contract Hire,06-Nov-2012,2515960-2B,960.00,MR RAYMOND RENWICK.
Children and Young Peoples Services,CYPS - Local Authority,Supplies and Services,384638,Miscellaneous Expenses,06-Nov-2012,2515965-0000011344,787.50,NORTH EAST AUTISM SOCIETY.
Children and Young Peoples Services,CYPS - Local Authority,Supplies and Services,384638,Miscellaneous Expenses,06-Nov-2012,2515965-0000011366,"1,837.50",NORTH EAST AUTISM SOCIETY.
Children and Young Peoples Services,CYPS - Local Authority,Supplies and Services,384638,Miscellaneous Expenses,06-Nov-2012,2515965-0000011370,"1,470.00",NORTH EAST AUTISM SOCIETY.
Children and Young Peoples Services,CYPS - Local Authority,Supplies and Services,384638,Miscellaneous Expenses,06-Nov-2012,2515965-0000011384,"1,225.00",NORTH EAST AUTISM SOCIETY.
Children and Young Peoples Services,CYPS - Local Authority,Supplies and Services,384638,Miscellaneous Expenses,06-Nov-2012,2515965-0000011385,"2,625.00",NORTH EAST AUTISM SOCIETY.
Children and Young Peoples Services,CYPS - Local Authority,Transport,230007,Contract Hire,06-Nov-2012,2515971-018,"1,073.80",PAUL SAVAGE.
Children and Young Peoples Services,CYPS - Local Authority,Transport,230007,Contract Hire,06-Nov-2012,2515985-2A,"1,972.80",RAYNERS COACHES.
Children and Young Peoples Services,CYPS - Local Authority,Transport,230007,Contract Hire,06-Nov-2012,2515985-2C,"2,492.00",RAYNERS COACHES.
Children and Young Peoples Services,CYPS - Local Authority,Transport,230007,Contract Hire,06-Nov-2012,2515985-2D,"1,100.00",RAYNERS COACHES.
Children and Young Peoples Services,CYPS - Local Authority,Transport,230007,Contract Hire,06-Nov-2012,2515988-2076,950.80,RICHIES TAXIS.
Children and Young Peoples Services,CYPS - Local Authority,Transport,230007,Contract Hire,06-Nov-2012,2515988-2077,"1,452.00",RICHIES TAXIS.
Children and Young Peoples Services,CYPS - Local Authority,Transport,230007,Contract Hire,06-Nov-2012,2515992-6351,"3,518.04",ROBERTS OF WINGATE.
Children and Young Peoples Services,CYPS - Local Authority,Transport,230007,Contract Hire,06-Nov-2012,2515992-6352,"9,744.00",ROBERTS OF WINGATE.
Children and Young Peoples Services,CYPS - Local Authority,Transport,230007,Contract Hire,06-Nov-2012,2515992-6353,"3,270.80",ROBERTS OF WINGATE.
Children and Young Peoples Services,CYPS - Local Authority,Transport,230007,Contract Hire,06-Nov-2012,2515993-1160,600.00,RONS TAXIS.
Children and Young Peoples Services,CYPS - Local Authority,Supplies and Services,340001,Postages,06-Nov-2012,2515994-9040505759,"1,298.67",ROYAL MAIL GROUP PLC.
Children and Young Peoples Services,CYPS - Local Authority,Transport,230007,Contract Hire,06-Nov-2012,2515996-SA021,"1,298.50",S & A TAXIS.
Children and Young Peoples Services,CYPS - Local Authority,Transport,230007,Contract Hire,06-Nov-2012,2516010-4250,"3,211.80",SAFARI TRAVEL.
Children and Young Peoples Services,CYPS - Local Authority,Transport,230007,Contract Hire,06-Nov-2012,2516013-29,"1,500.00",SAZ CABS.
Children and Young Peoples Services,CYPS - Local Authority,Transport,230007,Contract Hire,06-Nov-2012,2516013-30,782.00,SAZ CABS.
Children and Young Peoples Services,CYPS - Local Authority,Transport,230007,Contract Hire,06-Nov-2012,2516018-S014C-OCT12,"1,025.00",SHOEY`S TAXIS.
Children and Young Peoples Services,CYPS - Local Authority,Transport,230007,Contract Hire,06-Nov-2012,2516019-51139,"1,600.00",SHOTTON PRIVATE HIRE.
Children and Young Peoples Services,CYPS - Local Authority,Transport,230007,Contract Hire,06-Nov-2012,2516019-51140,"1,600.00",SHOTTON PRIVATE HIRE.
Children and Young Peoples Services,CYPS - Local Authority,Transport,230007,Contract Hire,06-Nov-2012,2516020-W119C-OCT12,"1,200.00",SIMONS TAXIS.
Children and Young Peoples Services,CYPS - Local Authority,Transport,230007,Contract Hire,06-Nov-2012,2516021-005-26/10/12,"1,400.00",SJ MACKENZIE T/A SCOTTS TAXIS.
Children and Young Peoples Services,CYPS - Local Authority,Transport,230007,Contract Hire,06-Nov-2012,2516021-006,"1,904.00",SJ MACKENZIE T/A SCOTTS TAXIS.
Children and Young Peoples Services,CYPS - Local Authority,Transport,230007,Contract Hire,06-Nov-2012,2516022-2410,"1,176.80",SMILERS TAXIS.
Children and Young Peoples Services,CYPS - Local Authority,Transport,230007,Contract Hire,06-Nov-2012,2516022-7910,"1,200.00",SMILERS TAXIS.
Children and Young Peoples Services,CYPS - Local Authority,Transport,230007,Contract Hire,06-Nov-2012,2516025-JC0002,900.00,SPENNYMOOR TAXIS.
Children and Young Peoples Services,CYPS - Local Authority,Transport,230007,Contract Hire,06-Nov-2012,2516025-RG0002,520.00,SPENNYMOOR TAXIS.
Children and Young Peoples Services,CYPS - Local Authority,Transport,230007,Contract Hire,06-Nov-2012,2516025-SAZ0002,"1,380.00",SPENNYMOOR TAXIS.
Children and Young Peoples Services,CYPS - Local Authority,Transport,230007,Contract Hire,06-Nov-2012,2516028-00002,"1,500.00",STEVES TAXIS.
Children and Young Peoples Services,CYPS - Local Authority,Transport,230007,Contract Hire,06-Nov-2012,2516036-13910C,500.00,T MOORE & SON.
Children and Young Peoples Services,CYPS - Local Authority,Transport,230007,Contract Hire,06-Nov-2012,2516038-0041/3080,"1,580.00",TA TRAVEL.
Children and Young Peoples Services,CYPS - Local Authority,Transport,230007,Contract Hire,06-Nov-2012,2516038-0041/4079,"1,380.00",TA TRAVEL.
Children and Young Peoples Services,CYPS - Local Authority,Transport,230007,Contract Hire,06-Nov-2012,2516038-041/W078,"2,700.00",TA TRAVEL.
Children and Young Peoples Services,CYPS - Local Authority,Transport,230007,Contract Hire,06-Nov-2012,2516039-B564,"1,045.00",TALBOTS TRAVEL LTD.
Children and Young Peoples Services,CYPS - Local Authority,Transport,230007,Contract Hire,06-Nov-2012,2516039-B565,"1,110.00",TALBOTS TRAVEL LTD.
Children and Young Peoples Services,CYPS - Local Authority,Transport,230007,Contract Hire,06-Nov-2012,2516040-10/2012/084,"1,120.00",TARN`S TAXIS.
Children and Young Peoples Services,Dedicated Schools Grant,Transport,230007,Contract Hire,06-Nov-2012,2515919-984,"1,170.00",KEN CHAMBERS.
Children and Young Peoples Services,Dedicated Schools Grant,Transport,230007,Contract Hire,06-Nov-2012,2516036-14010D,955.35,T MOORE & SON.
Corporate Resources,ICT Services incl. Design and Print,Stock,926900,Stock in hand-Inventory system,06-Nov-2012,2516031-4617820,629.50,SUPPLIES TEAM LTD.
Neighbourhood Services,Direct Services,Third Party Payments,430100,Rendered by Private Contractors,06-Nov-2012,2515835-12941,"3,208.75",CATHEDRAL LOCK & SAFE SERVICES LTD.
Neighbourhood Services,Direct Services,Third Party Payments,430100,Rendered by Private Contractors,06-Nov-2012,2515859-7558,673.37,EASBY FLOORING LTD.
Neighbourhood Services,Direct Services,Stock,926900,Stock in hand-Inventory system,06-Nov-2012,2515876-06/433997,599.27,GREENHAM TRADING LTD.
Neighbourhood Services,Direct Services,Supplies and Services,304221,Equipment and Materials,06-Nov-2012,2515938-NE117359,"1,564.91",LLOYD WORRALL (NEWCASTLE UPON TYNE) LTD.
Neighbourhood Services,Direct Services,Supplies and Services,304221,Equipment and Materials,06-Nov-2012,2515938-NE117544,748.97,LLOYD WORRALL (NEWCASTLE UPON TYNE) LTD.
Neighbourhood Services,Direct Services,Third Party Payments,430100,Rendered by Private Contractors,06-Nov-2012,2515977-120194,"1,500.00",PREMIER TRAFFIC MANAGEMENT LTD.
Neighbourhood Services,Direct Services,Third Party Payments,430100,Rendered by Private Contractors,06-Nov-2012,2515977-120222,680.00,PREMIER TRAFFIC MANAGEMENT LTD.
Neighbourhood Services,Projects and Business services,Construction Work,908105,Construction work,06-Nov-2012,2515852-3248,"3,934.00",DUNELM GEOTECHNICAL & ENVIRONMENTAL LTD.
Neighbourhood Services,Technical Services,Supplies and Services,304221,Equipment and Materials,06-Nov-2012,2515804-17186106,700.01,AGGREGATE INDUSTRIES UK LTD.
Neighbourhood Services,Technical Services,Supplies and Services,304221,Equipment and Materials,06-Nov-2012,2515862-2447,"1,890.00",EXTERIOR LIGHTING SOLUTIONS (UK) LTD.
Neighbourhood Services,Technical Services,Supplies and Services,304221,Equipment and Materials,06-Nov-2012,2515906-00073695,"4,859.12",JOBLING PURSER LTD.
Neighbourhood Services,Technical Services,Third Party Payments,430100,Rendered by Private Contractors,06-Nov-2012,2516053-30817,"3,944.04",WILLOWCRETE MFG CO LTD.
Regeneration & Economic Development,Economic Development and Housing,Premises,120021,Energy Costs,06-Nov-2012,2515823-702409014,765.81,BRITISH GAS BUSINESS.
Regeneration & Economic Development,Economic Development and Housing,Supplies and Services,304337,Equipment and Materials,06-Nov-2012,2516015-1/10560,846.00,SEASALT LTD.
Regeneration & Economic Development,Economic Development and Housing,Third Party Payments,440999,Other Third Party Payments,06-Nov-2012,2516043-100000914703,895.00,TMP (UK) LTD (RECRUITMENT).
Regeneration & Economic Development,Transport,Third Party Payments,430106,Rendered by Private Contractors,06-Nov-2012,2515812-103875,"111,167.58",ARRIVA NORTH EAST LTD.
Regeneration & Economic Development,Transport,Third Party Payments,430106,Rendered by Private Contractors,06-Nov-2012,2515875-31561,643.50,GO GATESHEAD LTD.
Regeneration & Economic Development,Transport,Third Party Payments,430106,Rendered by Private Contractors,06-Nov-2012,2515909-LINK2INV31,"3,069.18",JOVIAL PRIVATE HIRE.
Regeneration & Economic Development,Transport,Third Party Payments,430106,Rendered by Private Contractors,06-Nov-2012,2515948-PPT2982/3111-16/9-13/10/12,"3,760.69",MAURICE & SONS.
Regeneration & Economic Development,Transport,Third Party Payments,430106,Rendered by Private Contractors,06-Nov-2012,2515948-PPT2983/3175-16/9-13/10/12,"4,716.50",MAURICE & SONS.
Regeneration & Economic Development,Transport,Third Party Payments,430106,Rendered by Private Contractors,06-Nov-2012,2516014-67,"6,747.13",SB TRAVEL.
Regeneration & Economic Development,Transport,Third Party Payments,430100,Rendered by Private Contractors,06-Nov-2012,2516024-2514,"2,171.20",SOCIAL RESOURCE CENTRE LTD.
Adults Wellbeing and Health,Commissioning inc Supporting People,Third Party Payments,473111,Purchase of Care,07-Nov-2012,2516075-PSI052475,"33,015.00",ALZHEIMERS SOCIETY..
Adults Wellbeing and Health,Commissioning inc Supporting People,Supplies and Services,384199,Miscellaneous Expenses,07-Nov-2012,2516102-376,"1,307.50",BLUEGRASS RESEARCH LTD.
Adults Wellbeing and Health,Commissioning inc Supporting People,Third Party Payments,473111,Purchase of Care,07-Nov-2012,2516148-1985,"9,970.00",DAYBREAK.
Adults Wellbeing and Health,Commissioning inc Supporting People,Supplies and Services,384199,Miscellaneous Expenses,07-Nov-2012,2516278-2012/011,"1,250.00",LUCY JENKINS.
Adults Wellbeing and Health,Commissioning inc Supporting People,Third Party Payments,479111,Purchase of Care,07-Nov-2012,2516292-555/02254,"14,830.50",MENTAL HEALTH MATTERS.
Adults Wellbeing and Health,Commissioning inc Supporting People,Employees,080025,Agency Staff,07-Nov-2012,2516310-SEPT/OCT2012GTSS,520.00,MRS SHARON KERRIDGE.
Adults Wellbeing and Health,Commissioning inc Supporting People,Third Party Payments,473111,Purchase of Care,07-Nov-2012,2516319-0012,"6,187.95",NEWTON AYCLIFFE MIND.
Adults Wellbeing and Health,Commissioning inc Supporting People,Third Party Payments,479101,Purchase of Care,07-Nov-2012,2516421-430023612,"4,092.93",TEES ESK & WEAR VALLEY NHS FOUNDATION TRUST.
Adults Wellbeing and Health,Commissioning inc Supporting People,Supplies and Services,338047,Services,07-Nov-2012,2516428-SS19OCT2012,514.05,THE SIXTEEN LTD.
Adults Wellbeing and Health,Commissioning inc Supporting People,Third Party Payments,479111,Purchase of Care,07-Nov-2012,2516430-SITRH/0004802,"30,825.29",THREE RIVERS HOUSING ASSOCIATION LTD.
Adults Wellbeing and Health,Commissioning inc Supporting People,Third Party Payments,479101,Purchase of Care,07-Nov-2012,2516435-100000916209,881.60,TMP (UK) LTD (RECRUITMENT).
Adults Wellbeing and Health,Commissioning inc Supporting People,Supplies and Services,384540,Miscellaneous Expenses,07-Nov-2012,2516435-100000918140,570.00,TMP (UK) LTD (RECRUITMENT).
Adults Wellbeing and Health,Commissioning inc Supporting People,Supplies and Services,338047,Services,07-Nov-2012,2516454-22075146,575.33,WARNER BROS ENTERTAINMENT UK LTD.
Adults Wellbeing and Health,Financing-Adult Services,Creditors,952035,Creditor-housing benefit-eqpt,07-Nov-2012,2516177-B11CT,"1,106.00",ELMOLINE LTD.
Adults Wellbeing and Health,Head of Adults,Transport,230005,Contract Hire,07-Nov-2012,2516249-CH2-31/10/12,576.00,JOVIAL PRIVATE HIRE.
Adults Wellbeing and Health,Head of Adults,Summary reporting level,720047,Fees and Charges,07-Nov-2012,2516302-RCC,"10,719.55",REDACTED - PAYMENT TO INDIVIDUAL
Adults Wellbeing and Health,Head of Adults,Transport,230005,Contract Hire,07-Nov-2012,2516342-4965,"2,380.50",OVERLANDER LTD.
Adults Wellbeing and Health,Head of Adults,Transport,230005,Contract Hire,07-Nov-2012,2516349-0207,"1,160.00",PETER`S PRIVATE HIRE/PETER BEST.
Adults Wellbeing and Health,Head of Adults,Supplies and Services,384199,Miscellaneous Expenses,07-Nov-2012,2516397-5084,591.25,SPORT & PLAY LTD.
Adults Wellbeing and Health,Social Inclusion,Supplies and Services,338078,Services,07-Nov-2012,2516361-54046,777.19,PROTECTOR SECURITY GROUP LTD.
Adults Wellbeing and Health,Social Inclusion,Supplies and Services,312013,"Newspapers, Books and Periodicals",07-Nov-2012,2516445-I549629,682.06,ULVERSCROFT LARGE PRINT BOOKS LTD.
Adults Wellbeing and Health,Social Inclusion,Supplies and Services,384199,Miscellaneous Expenses,07-Nov-2012,2516446-0924,588.24,UNITE LTD.
Assistant Chief Executive,Partnerships & Community Engagement Div.,Supplies and Services,384086,Miscellaneous Expenses,07-Nov-2012,2516147-12NB-EDUR36,"5,000.00",DAWDON YOUTH & COMMUNITY CENTRE.
Assistant Chief Executive,Partnerships & Community Engagement Div.,Supplies and Services,384086,Miscellaneous Expenses,07-Nov-2012,2516171-12NB-EDUR023-HPS,"5,000.00",EAST DURHAM PARTNERSHIP.
Assistant Chief Executive,Partnerships & Community Engagement Div.,Transfer Payments,525030,Other,07-Nov-2012,2516172-12AB-EDUR003,"3,047.00",EAST DURHAM TRUST.
Assistant Chief Executive,Partnerships & Community Engagement Div.,Transfer Payments,525030,Other,07-Nov-2012,2516187-I-U-T-Y,"2,000.00",FISHBURN ART GROUP.
Assistant Chief Executive,Partnerships & Community Engagement Div.,Supplies and Services,384700,Miscellaneous Expenses,07-Nov-2012,2516195-C,"5,982.56",FUTURE LEISURE IN COXHOE (FLIC).
Assistant Chief Executive,Partnerships & Community Engagement Div.,Cap Exp on Grants & Other Financial Assistance (REFCUS),918004,Contributions to other bodies,07-Nov-2012,2516205-PYD/BPP,"88,000.00",GROUNDWORK NORTH EAST.
Assistant Chief Executive,Partnerships & Community Engagement Div.,Supplies and Services,342051,Computers and Communications,07-Nov-2012,2516266-124845,"2,700.00",LEARNING NEXUS LTD.
Assistant Chief Executive,Partnerships & Community Engagement Div.,Supplies and Services,384086,Miscellaneous Expenses,07-Nov-2012,2516404-12NB-STAN020,"6,000.00",STANLEY INDOOR BOWLS CENTRE.
Assistant Chief Executive,Partnerships & Community Engagement Div.,Cap Exp on Grants & Other Financial Assistance (REFCUS),918004,Contributions to other bodies,07-Nov-2012,2516405-12NB-3TWN016/ORCP,"3,950.00",STANLEY VILLAGE HALL ASSOCIATION.
Assistant Chief Executive,Partnerships & Community Engagement Div.,Cap Exp on Grants & Other Financial Assistance (REFCUS),918004,Contributions to other bodies,07-Nov-2012,2516470-KR,"2,000.00",WOODLAND VILLAGE HALL ASSOCIATION.
Assistant Chief Executive,Planning & Performance Division,Supplies and Services,384197,Miscellaneous Expenses,07-Nov-2012,2516231-Z125813-Z125835,653.73,IRON MOUNTAIN (UK) LTD.
Children and Young Peoples Services,CYPS - Local Authority,Third Party Payments,425021,Rendered by Voluntary Organisations,07-Nov-2012,2516068-R03IN2/00008318,"24,895.66",ACTION FOR CHILDREN SERVICES LTD.
Children and Young Peoples Services,CYPS - Local Authority,Transport,230007,Contract Hire,07-Nov-2012,2516069-18/12,"1,040.00",ADVANCE TRAVEL.
Children and Young Peoples Services,CYPS - Local Authority,Supplies and Services,338035,Services,07-Nov-2012,2516088-0000053540,"2,016.67",AWARD SCHEME LTD.
Children and Young Peoples Services,CYPS - Local Authority,Third Party Payments,425040,Rendered by Voluntary Organisations,07-Nov-2012,2516093-104305513,"3,972.03",BARNARDOS.
Children and Young Peoples Services,CYPS - Local Authority,Third Party Payments,425040,Rendered by Voluntary Organisations,07-Nov-2012,2516093-104305524,"3,972.03",BARNARDOS.
Children and Young Peoples Services,CYPS - Local Authority,Transport,235057,Public Transport,07-Nov-2012,2516126-294380,"3,119.41",CLICK TRAVEL LTD.
Children and Young Peoples Services,CYPS - Local Authority,Transport,230007,Contract Hire,07-Nov-2012,2516127-OCT001,"1,200.00",CM TAXIS.
Children and Young Peoples Services,CYPS - Local Authority,Transport,230007,Contract Hire,07-Nov-2012,2516131-091,"1,827.40",CONNORS MINI COACHES.
Children and Young Peoples Services,CYPS - Local Authority,Transport,230007,Contract Hire,07-Nov-2012,2516131-092,"1,782.20",CONNORS MINI COACHES.
Children and Young Peoples Services,CYPS - Local Authority,Transport,230007,Contract Hire,07-Nov-2012,2516131-094,"1,901.40",CONNORS MINI COACHES.
Children and Young Peoples Services,CYPS - Local Authority,Transport,230007,Contract Hire,07-Nov-2012,2516131-095,"1,473.60",CONNORS MINI COACHES.
Children and Young Peoples Services,CYPS - Local Authority,Transport,230007,Contract Hire,07-Nov-2012,2516142-1220,"2,065.00",DA TAXIS.
Children and Young Peoples Services,CYPS - Local Authority,Third Party Payments,425040,Rendered by Voluntary Organisations,07-Nov-2012,2516189-2241,"3,257.10",FOSTER CARE SOLUTIONS LTD.
Children and Young Peoples Services,CYPS - Local Authority,Third Party Payments,425040,Rendered by Voluntary Organisations,07-Nov-2012,2516189-2297,"3,232.68",FOSTER CARE SOLUTIONS LTD.
Children and Young Peoples Services,CYPS - Local Authority,Third Party Payments,425040,Rendered by Voluntary Organisations,07-Nov-2012,2516189-2298,"3,100.00",FOSTER CARE SOLUTIONS LTD.
Children and Young Peoples Services,CYPS - Local Authority,Third Party Payments,425040,Rendered by Voluntary Organisations,07-Nov-2012,2516189-2301,"3,100.00",FOSTER CARE SOLUTIONS LTD.
Children and Young Peoples Services,CYPS - Local Authority,Third Party Payments,425040,Rendered by Voluntary Organisations,07-Nov-2012,2516190-FC010902,730.00,FOSTER CARES LTD.
Children and Young Peoples Services,CYPS - Local Authority,Third Party Payments,425040,Rendered by Voluntary Organisations,07-Nov-2012,2516190-FC010913,702.84,FOSTER CARES LTD.
Children and Young Peoples Services,CYPS - Local Authority,Third Party Payments,425040,Rendered by Voluntary Organisations,07-Nov-2012,2516190-FC010942,730.00,FOSTER CARES LTD.
Children and Young Peoples Services,CYPS - Local Authority,Third Party Payments,425040,Rendered by Voluntary Organisations,07-Nov-2012,2516190-FC010953,820.00,FOSTER CARES LTD.
Children and Young Peoples Services,CYPS - Local Authority,Third Party Payments,425040,Rendered by Voluntary Organisations,07-Nov-2012,2516190-FC010989,980.00,FOSTER CARES LTD.
Children and Young Peoples Services,CYPS - Local Authority,Third Party Payments,425040,Rendered by Voluntary Organisations,07-Nov-2012,2516190-FC010992,820.00,FOSTER CARES LTD.
Children and Young Peoples Services,CYPS - Local Authority,Third Party Payments,425040,Rendered by Voluntary Organisations,07-Nov-2012,2516190-FC011028,980.00,FOSTER CARES LTD.
Children and Young Peoples Services,CYPS - Local Authority,Third Party Payments,425040,Rendered by Voluntary Organisations,07-Nov-2012,2516190-FC011033,700.00,FOSTER CARES LTD.
Children and Young Peoples Services,CYPS - Local Authority,Supplies and Services,304259,Equipment and Materials,07-Nov-2012,2516207-INV0146537,690.00,GV MULTI MEDIA LTD.
Children and Young Peoples Services,CYPS - Local Authority,Transport,230007,Contract Hire,07-Nov-2012,2516220-87,800.00,HORNDALE AJ`S TAXIS.
Children and Young Peoples Services,CYPS - Local Authority,Transport,230007,Contract Hire,07-Nov-2012,2516220-93,880.00,HORNDALE AJ`S TAXIS.
Children and Young Peoples Services,CYPS - Local Authority,Supplies and Services,352001,Conference Expenses,07-Nov-2012,2516223-195,600.00,HSF TRAINING LTD.
Children and Young Peoples Services,CYPS - Local Authority,Transfer Payments,515201,Social Services Clients,07-Nov-2012,2516238-DP,"3,984.00",REDACTED - PAYMENT TO INDIVIDUAL
Children and Young Peoples Services,CYPS - Local Authority,Supplies and Services,338027,Services,07-Nov-2012,2516240-05,747.29,JEANETTE CALLAGHAN.
Children and Young Peoples Services,CYPS - Local Authority,Transport,230007,Contract Hire,07-Nov-2012,2516289-922-26/10/12,"2,076.80",MCDONALD TRAVEL.
Children and Young Peoples Services,CYPS - Local Authority,Transport,230007,Contract Hire,07-Nov-2012,2516289-923-26/10/12,"2,180.00",MCDONALD TRAVEL.
Children and Young Peoples Services,CYPS - Local Authority,Transport,230007,Contract Hire,07-Nov-2012,2516289-924,"1,780.00",MCDONALD TRAVEL.
Children and Young Peoples Services,CYPS - Local Authority,Supplies and Services,384638,Miscellaneous Expenses,07-Nov-2012,2516325-0000011570,"1,365.00",NORTH EAST AUTISM SOCIETY.
Children and Young Peoples Services,CYPS - Local Authority,Supplies and Services,384638,Miscellaneous Expenses,07-Nov-2012,2516325-0000011571,560.00,NORTH EAST AUTISM SOCIETY.
Children and Young Peoples Services,CYPS - Local Authority,Supplies and Services,384638,Miscellaneous Expenses,07-Nov-2012,2516325-0000011574,"1,172.50",NORTH EAST AUTISM SOCIETY.
Children and Young Peoples Services,CYPS - Local Authority,Supplies and Services,384638,Miscellaneous Expenses,07-Nov-2012,2516325-0000011577,560.00,NORTH EAST AUTISM SOCIETY.
Children and Young Peoples Services,CYPS - Local Authority,Supplies and Services,384638,Miscellaneous Expenses,07-Nov-2012,2516325-0000011578,700.00,NORTH EAST AUTISM SOCIETY.
Children and Young Peoples Services,CYPS - Local Authority,Supplies and Services,384638,Miscellaneous Expenses,07-Nov-2012,2516325-0000011579,980.00,NORTH EAST AUTISM SOCIETY.
Children and Young Peoples Services,CYPS - Local Authority,Supplies and Services,384638,Miscellaneous Expenses,07-Nov-2012,2516325-0000011580,980.00,NORTH EAST AUTISM SOCIETY.
Children and Young Peoples Services,CYPS - Local Authority,Supplies and Services,384638,Miscellaneous Expenses,07-Nov-2012,2516325-0000011585,"1,680.00",NORTH EAST AUTISM SOCIETY.
Children and Young Peoples Services,CYPS - Local Authority,Supplies and Services,384638,Miscellaneous Expenses,07-Nov-2012,2516325-0000011586,551.25,NORTH EAST AUTISM SOCIETY.
Children and Young Peoples Services,CYPS - Local Authority,Supplies and Services,384638,Miscellaneous Expenses,07-Nov-2012,2516325-0000011589,700.00,NORTH EAST AUTISM SOCIETY.
Children and Young Peoples Services,CYPS - Local Authority,Supplies and Services,384638,Miscellaneous Expenses,07-Nov-2012,2516325-0000011590,647.50,NORTH EAST AUTISM SOCIETY.
Children and Young Peoples Services,CYPS - Local Authority,Supplies and Services,384638,Miscellaneous Expenses,07-Nov-2012,2516326-0000010635,934.00,NORTH EAST AUTISM SOCIETY.
Children and Young Peoples Services,CYPS - Local Authority,Third Party Payments,425040,Rendered by Voluntary Organisations,07-Nov-2012,2516341-02315,"2,914.29",ORCHARD CARE (NORTH EAST) LTD.
Children and Young Peoples Services,CYPS - Local Authority,Third Party Payments,425040,Rendered by Voluntary Organisations,07-Nov-2012,2516341-02316,"2,914.29",ORCHARD CARE (NORTH EAST) LTD.
Children and Young Peoples Services,CYPS - Local Authority,Third Party Payments,425040,Rendered by Voluntary Organisations,07-Nov-2012,2516341-02317,"3,257.14",ORCHARD CARE (NORTH EAST) LTD.
Children and Young Peoples Services,CYPS - Local Authority,Third Party Payments,425040,Rendered by Voluntary Organisations,07-Nov-2012,2516341-02318,"3,128.57",ORCHARD CARE (NORTH EAST) LTD.
Children and Young Peoples Services,CYPS - Local Authority,Transport,230007,Contract Hire,07-Nov-2012,2516349-0206,"2,700.00",PETER`S PRIVATE HIRE/PETER BEST.
Children and Young Peoples Services,CYPS - Local Authority,Transport,230007,Contract Hire,07-Nov-2012,2516356-120908,"3,009.00",PRATTS TAXIS.
Children and Young Peoples Services,CYPS - Local Authority,Transport,230007,Contract Hire,07-Nov-2012,2516357-233,710.00,PREMIER PRIVATE HIRE.
Children and Young Peoples Services,CYPS - Local Authority,Transport,230007,Contract Hire,07-Nov-2012,2516357-234,"1,215.00",PREMIER PRIVATE HIRE.
Children and Young Peoples Services,CYPS - Local Authority,Third Party Payments,425040,Rendered by Voluntary Organisations,07-Nov-2012,2516366-5273,"3,293.33",REACH OUT CARE LTD.
Children and Young Peoples Services,CYPS - Local Authority,Third Party Payments,425040,Rendered by Voluntary Organisations,07-Nov-2012,2516366-5276,"2,946.67",REACH OUT CARE LTD.
Children and Young Peoples Services,CYPS - Local Authority,Third Party Payments,425040,Rendered by Voluntary Organisations,07-Nov-2012,2516366-5277,"3,033.33",REACH OUT CARE LTD.
Children and Young Peoples Services,CYPS - Local Authority,Third Party Payments,425040,Rendered by Voluntary Organisations,07-Nov-2012,2516366-5319,"2,946.67",REACH OUT CARE LTD.
Children and Young Peoples Services,CYPS - Local Authority,Third Party Payments,425040,Rendered by Voluntary Organisations,07-Nov-2012,2516366-5320,"3,033.33",REACH OUT CARE LTD.
Children and Young Peoples Services,CYPS - Local Authority,Third Party Payments,486021,Service Level Agreements,07-Nov-2012,2516367-2560,"40,200.00",REACH OUT CARE SUPPORT SERVICES LTD.
Children and Young Peoples Services,CYPS - Local Authority,Third Party Payments,486021,Service Level Agreements,07-Nov-2012,2516367-2565,"32,110.15",REACH OUT CARE SUPPORT SERVICES LTD.
Children and Young Peoples Services,CYPS - Local Authority,Third Party Payments,440056,Other Third Party Payments,07-Nov-2012,2516367-2566,943.73,REACH OUT CARE SUPPORT SERVICES LTD.
Children and Young Peoples Services,CYPS - Local Authority,Supplies and Services,338094,Services,07-Nov-2012,2516368-2829,"20,000.00",REAL CARE LTD.
Children and Young Peoples Services,CYPS - Local Authority,Supplies and Services,338027,Services,07-Nov-2012,2516386-5/2012-13,"1,548.40",SHEILA O`CONNOR.
Children and Young Peoples Services,CYPS - Local Authority,Supplies and Services,338027,Services,07-Nov-2012,2516386-6/2012-13,"2,371.00",SHEILA O`CONNOR.
Children and Young Peoples Services,CYPS - Local Authority,Third Party Payments,425020,Rendered by Voluntary Organisations,07-Nov-2012,2516400-1130381,"1,312.50",ST CUTHBERTS CARE.
Children and Young Peoples Services,CYPS - Local Authority,Third Party Payments,425020,Rendered by Voluntary Organisations,07-Nov-2012,2516400-1130454,"1,375.50",ST CUTHBERTS CARE.
Children and Young Peoples Services,CYPS - Local Authority,Third Party Payments,425020,Rendered by Voluntary Organisations,07-Nov-2012,2516400-1130578,"4,735.00",ST CUTHBERTS CARE.
Children and Young Peoples Services,CYPS - Local Authority,Supplies and Services,384638,Miscellaneous Expenses,07-Nov-2012,2516401-2701,"5,678.00",ST OSWALD`S HOSPICE.
Children and Young Peoples Services,CYPS - Local Authority,Transfer Payments,510026,School Children,07-Nov-2012,2516408-8201,"1,368.00",SUNSHINE DAY NURSERY.
Children and Young Peoples Services,CYPS - Local Authority,Transfer Payments,510026,School Children,07-Nov-2012,2516408-8202,"1,368.00",SUNSHINE DAY NURSERY.
Children and Young Peoples Services,CYPS - Local Authority,Third Party Payments,425040,Rendered by Voluntary Organisations,07-Nov-2012,2516412-120488,901.00,SWIIS FOSTER CARE LTD.
Children and Young Peoples Services,CYPS - Local Authority,Third Party Payments,425040,Rendered by Voluntary Organisations,07-Nov-2012,2516412-120489,"1,069.00",SWIIS FOSTER CARE LTD.
Children and Young Peoples Services,CYPS - Local Authority,Third Party Payments,425040,Rendered by Voluntary Organisations,07-Nov-2012,2516412-120496,"1,075.00",SWIIS FOSTER CARE LTD.
Children and Young Peoples Services,CYPS - Local Authority,Transport,230007,Contract Hire,07-Nov-2012,2516415-13810B,"1,650.00",T MOORE & SON.
Children and Young Peoples Services,CYPS - Local Authority,Third Party Payments,425040,Rendered by Voluntary Organisations,07-Nov-2012,2516418-17286,"3,011.34",TEAM FOSTERING.
Children and Young Peoples Services,CYPS - Local Authority,Third Party Payments,425040,Rendered by Voluntary Organisations,07-Nov-2012,2516418-17826,"6,111.34",TEAM FOSTERING.
Children and Young Peoples Services,CYPS - Local Authority,Third Party Payments,425040,Rendered by Voluntary Organisations,07-Nov-2012,2516418-17831,"3,232.68",TEAM FOSTERING.
Children and Young Peoples Services,CYPS - Local Authority,Third Party Payments,425040,Rendered by Voluntary Organisations,07-Nov-2012,2516418-17844,"3,631.43",TEAM FOSTERING.
Children and Young Peoples Services,CYPS - Local Authority,Third Party Payments,425040,Rendered by Voluntary Organisations,07-Nov-2012,2516418-17845,"6,200.00",TEAM FOSTERING.
Children and Young Peoples Services,CYPS - Local Authority,Third Party Payments,425040,Rendered by Voluntary Organisations,07-Nov-2012,2516418-17856,"3,232.68",TEAM FOSTERING.
Children and Young Peoples Services,CYPS - Local Authority,Third Party Payments,425040,Rendered by Voluntary Organisations,07-Nov-2012,2516418-17870,"3,232.68",TEAM FOSTERING.
Children and Young Peoples Services,CYPS - Local Authority,Third Party Payments,425040,Rendered by Voluntary Organisations,07-Nov-2012,2516418-17873,"3,232.68",TEAM FOSTERING.
Children and Young Peoples Services,CYPS - Local Authority,Third Party Payments,425040,Rendered by Voluntary Organisations,07-Nov-2012,2516418-17874,"3,232.68",TEAM FOSTERING.
Children and Young Peoples Services,CYPS - Local Authority,Employees,040149,"Recruitment, Instruction and Training",07-Nov-2012,2516427-374780,735.00,THE OPEN UNIVERSITY.
Children and Young Peoples Services,CYPS - Local Authority,Employees,040149,"Recruitment, Instruction and Training",07-Nov-2012,2516427-375929,735.00,THE OPEN UNIVERSITY.
Children and Young Peoples Services,Dedicated Schools Grant,Transport,230005,Contract Hire,07-Nov-2012,2516069-20/12,"1,440.00",ADVANCE TRAVEL.
Children and Young Peoples Services,Dedicated Schools Grant,Third Party Payments,425005,Rendered by Voluntary Organisations,07-Nov-2012,2516094-203301726,"19,495.36",BARNARDOS.
Children and Young Peoples Services,Dedicated Schools Grant,Third Party Payments,425005,Rendered by Voluntary Organisations,07-Nov-2012,2516094-203301728,"53,427.43",BARNARDOS.
Children and Young Peoples Services,Dedicated Schools Grant,Third Party Payments,425005,Rendered by Voluntary Organisations,07-Nov-2012,2516094-203301737,"19,495.36",BARNARDOS.
Children and Young Peoples Services,Dedicated Schools Grant,Third Party Payments,425005,Rendered by Voluntary Organisations,07-Nov-2012,2516325-0000010020,"12,931.66",NORTH EAST AUTISM SOCIETY.
Children and Young Peoples Services,Dedicated Schools Grant,Third Party Payments,425005,Rendered by Voluntary Organisations,07-Nov-2012,2516325-0000011277,"12,931.66",NORTH EAST AUTISM SOCIETY.
Children and Young Peoples Services,Dedicated Schools Grant,Third Party Payments,425005,Rendered by Voluntary Organisations,07-Nov-2012,2516325-0000011281,"11,108.64",NORTH EAST AUTISM SOCIETY.
Children and Young Peoples Services,Dedicated Schools Grant,Third Party Payments,425005,Rendered by Voluntary Organisations,07-Nov-2012,2516325-0000011282,"13,058.66",NORTH EAST AUTISM SOCIETY.
Children and Young Peoples Services,Dedicated Schools Grant,Third Party Payments,425005,Rendered by Voluntary Organisations,07-Nov-2012,2516325-0000011284,"15,120.00",NORTH EAST AUTISM SOCIETY.
Children and Young Peoples Services,Dedicated Schools Grant,Third Party Payments,425005,Rendered by Voluntary Organisations,07-Nov-2012,2516325-0000011286,"13,058.66",NORTH EAST AUTISM SOCIETY.
Children and Young Peoples Services,Dedicated Schools Grant,Third Party Payments,425005,Rendered by Voluntary Organisations,07-Nov-2012,2516325-0000011289,"11,539.66",NORTH EAST AUTISM SOCIETY.
Children and Young Peoples Services,Dedicated Schools Grant,Third Party Payments,425005,Rendered by Voluntary Organisations,07-Nov-2012,2516325-0000011290,"17,616.61",NORTH EAST AUTISM SOCIETY.
Children and Young Peoples Services,Dedicated Schools Grant,Third Party Payments,425005,Rendered by Voluntary Organisations,07-Nov-2012,2516325-0000011292,"21,743.85",NORTH EAST AUTISM SOCIETY.
Children and Young Peoples Services,Dedicated Schools Grant,Third Party Payments,425005,Rendered by Voluntary Organisations,07-Nov-2012,2516325-0000011293,"13,058.66",NORTH EAST AUTISM SOCIETY.
Children and Young Peoples Services,Dedicated Schools Grant,Third Party Payments,425005,Rendered by Voluntary Organisations,07-Nov-2012,2516325-0000011298,"28,845.28",NORTH EAST AUTISM SOCIETY.
Children and Young Peoples Services,Dedicated Schools Grant,Third Party Payments,425005,Rendered by Voluntary Organisations,07-Nov-2012,2516325-0000011301,"11,539.66",NORTH EAST AUTISM SOCIETY.
Children and Young Peoples Services,Dedicated Schools Grant,Third Party Payments,425005,Rendered by Voluntary Organisations,07-Nov-2012,2516346-10531,"311,335.35",PERCY HEDLEY FOUNDATION.
Children and Young Peoples Services,Dedicated Schools Grant,Third Party Payments,425005,Rendered by Voluntary Organisations,07-Nov-2012,2516462-812,"15,074.12",WITHERSLACK CARE & EDUCATION INITIATIVES.
Children and Young Peoples Services,Dedicated Schools Grant,Third Party Payments,425005,Rendered by Voluntary Organisations,07-Nov-2012,2516462-813,"70,609.00",WITHERSLACK CARE & EDUCATION INITIATIVES.
Corporate Resources,Financing- Resources,Supplies and Services,384199,Miscellaneous Expenses,07-Nov-2012,2516345-1012088,"4,800.00",PATECH SOLUTIONS LTD.
Corporate Resources,Human Resources Total,Supplies and Services,304259,Equipment and Materials,07-Nov-2012,2516199-CB206379494,"5,000.00",GATESHEAD COUNCIL.
Corporate Resources,ICT Services incl. Design and Print,Supplies and Services,304245,Equipment and Materials,07-Nov-2012,2516079-WN2356127,962.90,ANTALIS MCNAUGHTON LTD.
Corporate Resources,ICT Services incl. Design and Print,Stock,926900,Stock in hand-Inventory system,07-Nov-2012,2516155-146791162,"1,160.44",DIVERSEY LTD.
Corporate Resources,ICT Services incl. Design and Print,Stock,926900,Stock in hand-Inventory system,07-Nov-2012,2516207-INV0146327,"1,435.00",GV MULTI MEDIA LTD.
Corporate Resources,ICT Services incl. Design and Print,Stock,926900,Stock in hand-Inventory system,07-Nov-2012,2516207-INV0146328,580.00,GV MULTI MEDIA LTD.
Corporate Resources,ICT Services incl. Design and Print,Stock,926900,Stock in hand-Inventory system,07-Nov-2012,2516207-INV0146348,"6,660.00",GV MULTI MEDIA LTD.
Corporate Resources,ICT Services incl. Design and Print,Stock,926900,Stock in hand-Inventory system,07-Nov-2012,2516207-INV0146367,"2,320.00",GV MULTI MEDIA LTD.
Corporate Resources,ICT Services incl. Design and Print,Stock,926900,Stock in hand-Inventory system,07-Nov-2012,2516207-INV0146452,"3,135.00",GV MULTI MEDIA LTD.
Corporate Resources,ICT Services incl. Design and Print,Supplies and Services,304303,Equipment and Materials,07-Nov-2012,2516207-INV0146456,"1,223.00",GV MULTI MEDIA LTD.
Corporate Resources,ICT Services incl. Design and Print,Stock,926900,Stock in hand-Inventory system,07-Nov-2012,2516207-INV0146475,"2,870.00",GV MULTI MEDIA LTD.
Corporate Resources,ICT Services incl. Design and Print,Supplies and Services,304303,Equipment and Materials,07-Nov-2012,2516207-INV0146519,"1,999.00",GV MULTI MEDIA LTD.
Corporate Resources,ICT Services incl. Design and Print,Stock,926900,Stock in hand-Inventory system,07-Nov-2012,2516207-INV0146525,"3,157.48",GV MULTI MEDIA LTD.
Corporate Resources,ICT Services incl. Design and Print,Supplies and Services,304639,Equipment and Materials,07-Nov-2012,2516207-INV0146587,"1,145.00",GV MULTI MEDIA LTD.
Corporate Resources,ICT Services incl. Design and Print,Supplies and Services,304303,Equipment and Materials,07-Nov-2012,2516207-INV0146600,646.74,GV MULTI MEDIA LTD.
Corporate Resources,ICT Services incl. Design and Print,Supplies and Services,342033,Computers and Communications,07-Nov-2012,2516228-1034281,669.37,INSIGHT DIRECT (UK) LTD.
Corporate Resources,ICT Services incl. Design and Print,Stock,926900,Stock in hand-Inventory system,07-Nov-2012,2516409-5372305,"3,248.24",SUPPLIES TEAM LTD.
Corporate Resources,ICT Services incl. Design and Print,Supplies and Services,344033,Telephones,07-Nov-2012,2516416-04431494,521.42,TALKTALK BUSINESS.
Corporate Resources,ICT Services incl. Design and Print,Supplies and Services,304040,Equipment and Materials,07-Nov-2012,2516449-393,"2,675.00",UPNORTH ENGINEERING SERVICES LTD.
Corporate Resources,ICT Services incl. Design and Print,Debtors,930168,Debtor - Mobile Telephone Holding Account,07-Nov-2012,2516452-65186689,"22,094.92",VODAFONE LTD.
Corporate Resources,Legal & Democratic Services,Supplies and Services,338025,Services,07-Nov-2012,2516128-S44954-00558,"1,160.00",CO-OPERATIVE FUNERAL CARE.
Corporate Resources,Legal & Democratic Services,Supplies and Services,338025,Services,07-Nov-2012,2516169-JULY-SEPT12,610.00,EAST DURHAM FUNERAL SERVICE LTD.
Corporate Resources,Legal & Democratic Services,Supplies and Services,338057,Services,07-Nov-2012,2516178-1109,706.20,ELYSIAN PATHOLOGY SERVICES LTD.
Corporate Resources,Legal & Democratic Services,Supplies and Services,338057,Services,07-Nov-2012,2516178-1111,667.20,ELYSIAN PATHOLOGY SERVICES LTD.
Corporate Resources,Legal & Democratic Services,Supplies and Services,332047,"Printing, Stationery and Gen Off Exps",07-Nov-2012,2516409-5376861,607.70,SUPPLIES TEAM LTD.
Corporate Resources,Legal & Democratic Services,Supplies and Services,336005,Advertising,07-Nov-2012,2516435-100000917805,590.57,TMP (UK) LTD (RECRUITMENT).
Neighbourhood Services,Direct Services,Stock,926900,Stock in hand-Inventory system,07-Nov-2012,2516062-LLI264863,615.52,A THOMPSON & SONS LTD.
Neighbourhood Services,Direct Services,Stock,926900,Stock in hand-Inventory system,07-Nov-2012,2516062-LLI265066,"1,176.80",A THOMPSON & SONS LTD.
Neighbourhood Services,Direct Services,Stock,926900,Stock in hand-Inventory system,07-Nov-2012,2516062-LLI265098,632.00,A THOMPSON & SONS LTD.
Neighbourhood Services,Direct Services,Stock,926900,Stock in hand-Inventory system,07-Nov-2012,2516082-917848962,"2,837.62",ARCO LTD.
Neighbourhood Services,Direct Services,Stock,926900,Stock in hand-Inventory system,07-Nov-2012,2516087-SIN179089,625.60,ATF SUPPLIES LTD.
Neighbourhood Services,Direct Services,Stock,926900,Stock in hand-Inventory system,07-Nov-2012,2516087-SIN179093,580.32,ATF SUPPLIES LTD.
Neighbourhood Services,Direct Services,Stock,926900,Stock in hand-Inventory system,07-Nov-2012,2516098-DUR/126801,792.00,BEMCO LTD.
Neighbourhood Services,Direct Services,Third Party Payments,430100,Rendered by Private Contractors,07-Nov-2012,2516157-9100624896,"1,994.42",DORMA UK LTD.
Neighbourhood Services,Direct Services,Stock,926900,Stock in hand-Inventory system,07-Nov-2012,2516188-OP/I263743,558.90,FLEMING & CO (MACHINERY) LTD.
Neighbourhood Services,Direct Services,Stock,926900,Stock in hand-Inventory system,07-Nov-2012,2516188-OP/I263819,"1,177.92",FLEMING & CO (MACHINERY) LTD.
Neighbourhood Services,Direct Services,Third Party Payments,430100,Rendered by Private Contractors,07-Nov-2012,2516208-0270/12,"1,575.00",H BRADLEY.
Neighbourhood Services,Direct Services,Supplies and Services,304221,Equipment and Materials,07-Nov-2012,2516217-3063201,594.00,HILL ROM LTD.
Neighbourhood Services,Direct Services,Supplies and Services,304221,Equipment and Materials,07-Nov-2012,2516222-B33/0046989,754.80,HOWDEN JOINERY LTD.
Neighbourhood Services,Direct Services,Supplies and Services,304221,Equipment and Materials,07-Nov-2012,2516222-B33/0047069,583.46,HOWDEN JOINERY LTD.
Neighbourhood Services,Direct Services,Supplies and Services,304221,Equipment and Materials,07-Nov-2012,2516222-B33/0047237,724.80,HOWDEN JOINERY LTD.
Neighbourhood Services,Direct Services,Supplies and Services,304221,Equipment and Materials,07-Nov-2012,2516222-B33/0047238,748.80,HOWDEN JOINERY LTD.
Neighbourhood Services,Direct Services,Supplies and Services,304259,Equipment and Materials,07-Nov-2012,2516259-OP/I536052,"1,200.00",KILLGERM CHEMICALS LTD.
Neighbourhood Services,Direct Services,Stock,926900,Stock in hand-Inventory system,07-Nov-2012,2516270-LFP/12/0207,740.50,LIFELINE FIRE PREVENTION LTD.
Neighbourhood Services,Direct Services,Third Party Payments,430100,Rendered by Private Contractors,07-Nov-2012,2516274-334,756.00,LMC ELECTRICAL SERVICES T/A LMC ELECTRICAL & STAIRLIFT SERVICES LTD.
Neighbourhood Services,Direct Services,Premises,120009,Energy Costs,07-Nov-2012,2516336-NNO7CLLJ,"114,063.66",NPOWER.
Neighbourhood Services,Direct Services,Stock,926900,Stock in hand-Inventory system,07-Nov-2012,2516344-XL068788,"1,666.42",PARK ELECTRICAL DISTRIBUTORS LTD.
Neighbourhood Services,Direct Services,Supplies and Services,304221,Equipment and Materials,07-Nov-2012,2516354-4120140540,677.50,PLUMBING TRADE SUPPLIES LTD.
Neighbourhood Services,Direct Services,Supplies and Services,304221,Equipment and Materials,07-Nov-2012,2516354-4120140614,949.98,PLUMBING TRADE SUPPLIES LTD.
Neighbourhood Services,Direct Services,Third Party Payments,430100,Rendered by Private Contractors,07-Nov-2012,2516371-16716,"4,846.00",RJ UTILITY SERVICES LTD.
Neighbourhood Services,Direct Services,Debtors,930046,Debtor-leasing,07-Nov-2012,2516377-10011597,"9,972.80",S JENNINGS LTD.
Neighbourhood Services,Direct Services,Supplies and Services,384167,Miscellaneous Expenses,07-Nov-2012,2516385-WWB1034766,"1,996.30",SGS UNITED KINGDOM LTD.
Neighbourhood Services,Direct Services,Supplies and Services,304259,Equipment and Materials,07-Nov-2012,2516387-8669377,"1,250.00",SHERRIFF AMENITY.
Neighbourhood Services,Direct Services,Stock,926900,Stock in hand-Inventory system,07-Nov-2012,2516393-750124,980.00,SOVEREIGN CHEMICALS LTD.
Neighbourhood Services,Direct Services,Supplies and Services,342223,Computers and Communications,07-Nov-2012,2516395-OP/L565000,698.50,SPECIALIST COMPUTER CENTRES PLC.
Neighbourhood Services,Direct Services,Supplies and Services,304221,Equipment and Materials,07-Nov-2012,2516396-2018,589.00,SPECIALIST VENTILATION SERVICES LTD.
Neighbourhood Services,Direct Services,Stock,926900,Stock in hand-Inventory system,07-Nov-2012,2516409-5386850,752.60,SUPPLIES TEAM LTD.
Neighbourhood Services,Direct Services,Stock,926900,Stock in hand-Inventory system,07-Nov-2012,2516414-0499965,515.34,T CROSSLING & CO LTD.
Neighbourhood Services,Direct Services,Stock,926900,Stock in hand-Inventory system,07-Nov-2012,2516429-N/IN85436,"3,201.20",THOMAS OWEN & SONS (NEWCASTLE) LTD.
Neighbourhood Services,Direct Services,Stock,926900,Stock in hand-Inventory system,07-Nov-2012,2516431-SIP-120847,"2,694.34",THYSSENKRUPP ENCASA LTD.
Neighbourhood Services,Direct Services,Stock,926900,Stock in hand-Inventory system,07-Nov-2012,2516437-92410,548.00,TOFCO LTD.
Neighbourhood Services,Direct Services,Third Party Payments,430100,Rendered by Private Contractors,07-Nov-2012,2516439-1496,"2,096.65",TOTAL PARTITIONS & CEILINGS LTD.
Neighbourhood Services,Direct Services,Third Party Payments,430100,Rendered by Private Contractors,07-Nov-2012,2516439-1498,900.00,TOTAL PARTITIONS & CEILINGS LTD.
Neighbourhood Services,Direct Services,Supplies and Services,304221,Equipment and Materials,07-Nov-2012,2516444-130566,"1,283.23",UFW LTD.
Neighbourhood Services,Direct Services,Stock,926900,Stock in hand-Inventory system,07-Nov-2012,2516450-N0057876,"11,456.00",VALMONT STAINTON LTD.
Neighbourhood Services,Direct Services,Stock,926900,Stock in hand-Inventory system,07-Nov-2012,2516467-248362,768.00,WM SMITH & SONS (BARNARD CASTLE) LTD.
Neighbourhood Services,Direct Services,Stock,926900,Stock in hand-Inventory system,07-Nov-2012,2516468-77010659,"1,685.39",WOLSELEY UK LTD.
Neighbourhood Services,"Environment,Health & Consumer Protection",Supplies and Services,338027,Services,07-Nov-2012,2516071-6149804,"4,990.00",RICARDO AEA LTD.
Neighbourhood Services,"Environment,Health & Consumer Protection",Supplies and Services,338027,Services,07-Nov-2012,2516072-60216682-82,"1,939.00",AECOM LTD.
Neighbourhood Services,"Environment,Health & Consumer Protection",Employees,040149,"Recruitment, Instruction and Training",07-Nov-2012,2516168-0000028600,"1,000.00",EAST DURHAM COLLEGE.
Neighbourhood Services,"Environment,Health & Consumer Protection",Employees,040149,"Recruitment, Instruction and Training",07-Nov-2012,2516223-218,600.00,HSF TRAINING LTD.
Neighbourhood Services,"Environment,Health & Consumer Protection",Employees,040149,"Recruitment, Instruction and Training",07-Nov-2012,2516288-14162,"1,920.00",MAYBO LTD.
Neighbourhood Services,Projects and Business services,Third Party Payments,430103,Rendered by Private Contractors,07-Nov-2012,2516107-R-149-151,712.05,BRITISH HEART FOUNDATION.
Neighbourhood Services,Projects and Business services,Third Party Payments,430103,Rendered by Private Contractors,07-Nov-2012,2516135-RC-C4,"1,224.49",COUNTY DURHAM FURNITURE HELP SCHEME.
Neighbourhood Services,Projects and Business services,Third Party Payments,430105,Rendered by Private Contractors,07-Nov-2012,2516359-SDIN/00006872,600.00,PREMIER WASTE MANAGEMENT LTD.
Neighbourhood Services,Projects and Business services,Third Party Payments,430105,Rendered by Private Contractors,07-Nov-2012,2516359-SDIN/00006881,"13,845.85",PREMIER WASTE MANAGEMENT LTD.
Neighbourhood Services,Projects and Business services,Third Party Payments,430105,Rendered by Private Contractors,07-Nov-2012,2516359-SDIN/00006882,"12,275.70",PREMIER WASTE MANAGEMENT LTD.
Neighbourhood Services,Projects and Business services,Supplies and Services,340001,Postages,07-Nov-2012,2516374-9040676578,"2,102.38",ROYAL MAIL GROUP PLC.
Neighbourhood Services,Projects and Business services,Third Party Payments,430103,Rendered by Private Contractors,07-Nov-2012,2516423-RC-C148,"6,080.97",TEESDALE CONSERVATION VOLUNTEERS.
Neighbourhood Services,Projects and Business services,Third Party Payments,430103,Rendered by Private Contractors,07-Nov-2012,2516423-RCC157,"5,321.88",TEESDALE CONSERVATION VOLUNTEERS.
Neighbourhood Services,Sport & Leisure,Supplies and Services,304259,Equipment and Materials,07-Nov-2012,2516065-116204224,749.20,AC ENTERTAINMENT TECHNOLOGIES.
Neighbourhood Services,Sport & Leisure,Premises,115125,Repairs to Grounds,07-Nov-2012,2516095-22044,"2,011.50",BARR & WRAY LTD.
Neighbourhood Services,Sport & Leisure,Supplies and Services,384999,Miscellaneous Expenses,07-Nov-2012,2516097-ESD,"1,810.00",BEAMISH MUSEUM LTD.
Neighbourhood Services,Sport & Leisure,Third Party Payments,430100,Rendered by Private Contractors,07-Nov-2012,2516130-PS22327,"31,117.29",COMPETITION LINE UK LTD.
Neighbourhood Services,Sport & Leisure,Third Party Payments,430100,Rendered by Private Contractors,07-Nov-2012,2516130-PS22328,"5,854.16",COMPETITION LINE UK LTD.
Neighbourhood Services,Sport & Leisure,Supplies and Services,384700,Miscellaneous Expenses,07-Nov-2012,2516132-CG,500.00,CONSETT ACADEMY.
Neighbourhood Services,Sport & Leisure,Supplies and Services,384199,Miscellaneous Expenses,07-Nov-2012,2516183-1338,"3,490.00",ETHIX MANAGEMENT LTD.
Neighbourhood Services,Sport & Leisure,Supplies and Services,304254,Equipment and Materials,07-Nov-2012,2516226-001/12/1129098,630.00,ING LEASE (UK) LTD.
Neighbourhood Services,Sport & Leisure,Third Party Payments,430100,Rendered by Private Contractors,07-Nov-2012,2516267-SI-001640,"434,898.50",LEISUREWORKS.
Neighbourhood Services,Sport & Leisure,Supplies and Services,304259,Equipment and Materials,07-Nov-2012,2516268-SI008634,561.94,LEWIS`S MEDICAL SUPPLIES.
Neighbourhood Services,Sport & Leisure,Premises,106099,Centrally Controlled Rep and Maint,07-Nov-2012,2516269-32934827,"3,460.39",LIFE FITNESS (UK) LTD.
Neighbourhood Services,Sport & Leisure,Supplies and Services,338066,Services,07-Nov-2012,2516365-363,"1,416.80",RAISE THE BAR LTD.
Neighbourhood Services,Technical Services,Third Party Payments,430100,Rendered by Private Contractors,07-Nov-2012,2516061-001172,"2,226.00",A PARRY MOBILE WELDING & FABRICATION.
Neighbourhood Services,Technical Services,Employees,080025,Agency Staff,07-Nov-2012,2516072-60268123-12,"11,167.36",AECOM LTD.
Neighbourhood Services,Technical Services,Supplies and Services,304221,Equipment and Materials,07-Nov-2012,2516073-17191641,501.92,AGGREGATE INDUSTRIES UK LTD.
Neighbourhood Services,Technical Services,Supplies and Services,304221,Equipment and Materials,07-Nov-2012,2516073-17209841,548.20,AGGREGATE INDUSTRIES UK LTD.
Neighbourhood Services,Technical Services,Supplies and Services,304221,Equipment and Materials,07-Nov-2012,2516118-3005605015,512.05,CEMEX UK MATERIALS LTD.
Neighbourhood Services,Technical Services,Supplies and Services,304221,Equipment and Materials,07-Nov-2012,2516152-DN/3015,728.00,DIAMOND NORTHERN 91.
Neighbourhood Services,Technical Services,Supplies and Services,304221,Equipment and Materials,07-Nov-2012,2516188-OP/I263746,599.80,FLEMING & CO (MACHINERY) LTD.
Neighbourhood Services,Technical Services,Supplies and Services,304221,Equipment and Materials,07-Nov-2012,2516271-500891,"1,970.00",LIGHTING & ILLUMINATION TECHNOLOGY EXPERIENCE LTD.
Neighbourhood Services,Technical Services,Third Party Payments,430100,Rendered by Private Contractors,07-Nov-2012,2516294-139,"1,344.00",MICHAEL KELLY.
Neighbourhood Services,Technical Services,Third Party Payments,460351,Contract Payments,07-Nov-2012,2516333-029159,693.12,NORTHERN DISPOSAL SERVICES LTD.
Neighbourhood Services,Technical Services,Third Party Payments,430100,Rendered by Private Contractors,07-Nov-2012,2516358-121795,"9,705.04",PREMIER TRAFFIC MANAGEMENT LTD.
Neighbourhood Services,Technical Services,Construction Work,908112,Capital - Drainage,07-Nov-2012,2516383-SIL/Z1482/2210,"6,135.00",SEALANE INSHORE LTD.
Neighbourhood Services,Technical Services,Supplies and Services,304221,Equipment and Materials,07-Nov-2012,2516437-92330,"2,457.85",TOFCO LTD.
RED HRA,Housing Revenue Account,Supplies and Services,338027,Services,07-Nov-2012,2516133-0000002662,"1,350.00",CONSULTCIH LTD.
RED HRA,Housing Revenue Account,Third Party Payments,430100,Rendered by Private Contractors,07-Nov-2012,2516170-SINV/00002871,"979,583.33",EAST DURHAM HOMES.
RED HRA,Housing Revenue Account,Supplies and Services,338027,Services,07-Nov-2012,2516176-ED/10/12/59,"2,500.00",ELLIOTT DENT LTD.
RED HRA,Housing Revenue Account,Supplies and Services,338027,Services,07-Nov-2012,2516340-1298,"3,417.27",OPEN COMMUNITIES LTD.
RED HRA,Housing Revenue Account,Supplies and Services,338027,Services,07-Nov-2012,2516382-C187438,"2,793.60",SAVILLS COMMERCIAL LTD.
RED HRA,Housing Revenue Account,Supplies and Services,342007,Computers and Communications,07-Nov-2012,2516471-DCC041,"1,425.00",WYNYARD IT & CONSULTANCY SERVICES LT.
RED HRA,HRA Capital,Fees,901001,Internal fees,07-Nov-2012,2516170-SINV/00002872,"103,154.17",EAST DURHAM HOMES.
RED HRA,HRA Capital,Construction Work,908105,Construction work,07-Nov-2012,2516182-101048-CERT2,"23,457.34",ESH CONSTRUCTION LTD FORMERLY LUMSDEN & CARROLL CONSTRUCTION LTD.
RED HRA,HRA Capital,Construction Work,908105,Construction work,07-Nov-2012,2516182-102281-CERT9,"19,330.84",ESH CONSTRUCTION LTD FORMERLY LUMSDEN & CARROLL CONSTRUCTION LTD.
RED HRA,HRA Capital,Construction Work,908105,Construction work,07-Nov-2012,2516182-102282-CERT9,"4,738.39",ESH CONSTRUCTION LTD FORMERLY LUMSDEN & CARROLL CONSTRUCTION LTD.
RED HRA,HRA Capital,Construction Work,908105,Construction work,07-Nov-2012,2516182-102313-CERT4,"1,166.22",ESH CONSTRUCTION LTD FORMERLY LUMSDEN & CARROLL CONSTRUCTION LTD.
RED HRA,HRA Capital,Construction Work,908109,Capital - Resurfacing,07-Nov-2012,2516182-102490-CERT6,"165,023.92",ESH CONSTRUCTION LTD FORMERLY LUMSDEN & CARROLL CONSTRUCTION LTD.
RED HRA,HRA Capital,Construction Work,908105,Construction work,07-Nov-2012,2516182-102491-CERT6,"216,532.14",ESH CONSTRUCTION LTD FORMERLY LUMSDEN & CARROLL CONSTRUCTION LTD.
RED HRA,HRA Capital,Construction Work,908105,Construction work,07-Nov-2012,2516182-154802-CERT4,"2,992.73",ESH CONSTRUCTION LTD FORMERLY LUMSDEN & CARROLL CONSTRUCTION LTD.
RED HRA,HRA Capital,Construction Work,908105,Construction work,07-Nov-2012,2516258-50333-7,"29,865.53",KIER SERVICES LTD.
RED HRA,HRA Capital,Construction Work,908105,Construction work,07-Nov-2012,2516258-50334-3,"37,698.40",KIER SERVICES LTD.
RED HRA,HRA Capital,Construction Work,908105,Construction work,07-Nov-2012,2516258-50336-7,"10,064.74",KIER SERVICES LTD.
RED HRA,HRA Capital,Construction Work,908105,Construction work,07-Nov-2012,2516258-50337-3,"78,185.20",KIER SERVICES LTD.
RED HRA,HRA Capital,Construction Work,908105,Construction work,07-Nov-2012,2516258-50341-1,"64,400.60",KIER SERVICES LTD.
RED HRA,HRA Capital,Construction Work,908105,Construction work,07-Nov-2012,2516258-A50315-8,"25,515.70",KIER SERVICES LTD.
RED HRA,HRA Capital,Construction Work,908105,Construction work,07-Nov-2012,2516258-A50316-6,"11,340.51",KIER SERVICES LTD.
RED HRA,HRA Capital,Construction Work,908105,Construction work,07-Nov-2012,2516258-A50317-5,"88,555.10",KIER SERVICES LTD.
RED HRA,HRA Capital,Construction Work,908105,Construction work,07-Nov-2012,2516258-A50318-4,"21,880.64",KIER SERVICES LTD.
RED HRA,HRA Capital,Construction Work,908105,Construction work,07-Nov-2012,2516258-A50319-3,"190,625.90",KIER SERVICES LTD.
RED HRA,HRA Capital,Construction Work,908105,Construction work,07-Nov-2012,2516258-A50335-1,"199,098.28",KIER SERVICES LTD.
RED HRA,HRA Capital,Construction Work,908105,Construction work,07-Nov-2012,2516297-CON57893,530.00,MIS ENVIRONMENTAL LTD.
RED HRA,HRA Capital,Construction Work,908105,Construction work,07-Nov-2012,2516297-CON57913,840.00,MIS ENVIRONMENTAL LTD.
RED HRA,HRA Capital,Construction Work,908105,Construction work,07-Nov-2012,2516297-CON57917,740.00,MIS ENVIRONMENTAL LTD.
RED HRA,HRA Capital,Construction Work,908105,Construction work,07-Nov-2012,2516297-CON57959,660.00,MIS ENVIRONMENTAL LTD.
RED HRA,HRA Capital,Construction Work,908105,Construction work,07-Nov-2012,2516297-CON58070,"4,050.00",MIS ENVIRONMENTAL LTD.
RED HRA,HRA Capital,Construction Work,908105,Construction work,07-Nov-2012,2516297-CON58072,828.00,MIS ENVIRONMENTAL LTD.
RED HRA,HRA Capital,Construction Work,908105,Construction work,07-Nov-2012,2516297-CON58180,650.00,MIS ENVIRONMENTAL LTD.
RED HRA,HRA Capital,Construction Work,908105,Construction work,07-Nov-2012,2516297-CON58252,832.00,MIS ENVIRONMENTAL LTD.
RED HRA,HRA Capital,Construction Work,908105,Construction work,07-Nov-2012,2516477-25640,"1,235.96",YWC GROUP LTD.
RED HRA,HRA Capital,Construction Work,908105,Construction work,07-Nov-2012,2516477-25642,"7,726.11",YWC GROUP LTD.
RED HRA,HRA Capital,Construction Work,908105,Construction work,07-Nov-2012,2516477-25643,"5,082.13",YWC GROUP LTD.
RED HRA,HRA Capital,Construction Work,908105,Construction work,07-Nov-2012,2516477-25644,"2,320.37",YWC GROUP LTD.
RED HRA,HRA Capital,Construction Work,908105,Construction work,07-Nov-2012,2516477-25645,"7,807.31",YWC GROUP LTD.
RED HRA,HRA Capital,Construction Work,908105,Construction work,07-Nov-2012,2516477-25646,"15,456.10",YWC GROUP LTD.
Regeneration & Economic Development,Economic Development and Housing,Fees,901002,Professional Fees,07-Nov-2012,2516140-NEST1,"2,475.00",CULTURE WORKS CIC.
Regeneration & Economic Development,Economic Development and Housing,Supplies and Services,338027,Services,07-Nov-2012,2516154-4130481,500.00,DICKINSON DEES LLP.
Regeneration & Economic Development,Economic Development and Housing,Cap Exp on Grants & Other Financial Assistance (REFCUS),918401,Capital grants,07-Nov-2012,2516175-1054,"2,380.00",ELLIOT HIRD & PARTNERS LTD.
Regeneration & Economic Development,Economic Development and Housing,Cap Exp on Grants & Other Financial Assistance (REFCUS),918401,Capital grants,07-Nov-2012,2516175-1055,"2,471.69",ELLIOT HIRD & PARTNERS LTD.
Regeneration & Economic Development,Economic Development and Housing,Supplies and Services,368008,Incentives to Industrialists,07-Nov-2012,2516179-DCC1012/A,"4,436.16",EMPTY SHOP.
Regeneration & Economic Development,Economic Development and Housing,Other Expenses,914001,Other capital expenses,07-Nov-2012,2516205-PV/GNE/01/2012,"3,472.53",GROUNDWORK NORTH EAST.
Regeneration & Economic Development,Economic Development and Housing,Premises,106099,Centrally Controlled Rep and Maint,07-Nov-2012,2516277-1757,560.00,LUCION ENVIRONMENTAL LLP LTD.
Regeneration & Economic Development,Economic Development and Housing,Premises,106099,Centrally Controlled Rep and Maint,07-Nov-2012,2516277-1764,890.00,LUCION ENVIRONMENTAL LLP LTD.
Regeneration & Economic Development,Economic Development and Housing,Supplies and Services,384700,Miscellaneous Expenses,07-Nov-2012,2516290-WK13WS,"1,155.70",ME ELECTRICS.
Regeneration & Economic Development,Economic Development and Housing,Supplies and Services,384071,Miscellaneous Expenses,07-Nov-2012,2516313-S47593,"1,000.00",NCJ MEDIA LTD.
Regeneration & Economic Development,Economic Development and Housing,Supplies and Services,340001,Postages,07-Nov-2012,2516316-415291-OCT12,800.00,NEOPOST LTD.
Regeneration & Economic Development,Economic Development and Housing,Cap Exp on Grants & Other Financial Assistance (REFCUS),918401,Capital grants,07-Nov-2012,2516347-6912,"4,220.00",PETER JORDAN.
Regeneration & Economic Development,Economic Development and Housing,Fees,901001,Internal fees,07-Nov-2012,2516430-SITRH/0004800,558.40,THREE RIVERS HOUSING ASSOCIATION LTD.
Regeneration & Economic Development,Economic Development and Housing,Third Party Payments,430100,Rendered by Private Contractors,07-Nov-2012,2516430-SITRH/0004803,"38,242.50",THREE RIVERS HOUSING ASSOCIATION LTD.
Regeneration & Economic Development,Economic Development and Housing,Fees,901001,Internal fees,07-Nov-2012,2516430-SITRH/0004809,"1,163.56",THREE RIVERS HOUSING ASSOCIATION LTD.
Regeneration & Economic Development,Economic Development and Housing,Cap Exp on Grants & Other Financial Assistance (REFCUS),918401,Capital grants,07-Nov-2012,2516431-DFG192/12,"4,215.00",THYSSENKRUPP ENCASA LTD.
Regeneration & Economic Development,Economic Development and Housing,Cap Exp on Grants & Other Financial Assistance (REFCUS),918401,Capital grants,07-Nov-2012,2516431-SIP120799,"3,555.00",THYSSENKRUPP ENCASA LTD.
Regeneration & Economic Development,Economic Development and Housing,Cap Exp on Grants & Other Financial Assistance (REFCUS),918401,Capital grants,07-Nov-2012,2516431-SIP120859,"3,485.00",THYSSENKRUPP ENCASA LTD.
Regeneration & Economic Development,Economic Development and Housing,Cap Exp on Grants & Other Financial Assistance (REFCUS),918401,Capital grants,07-Nov-2012,2516438-DFG156/12,"4,480.00",TORONTO ELECTRICAL SERVICES & TESTING (TEST).
Regeneration & Economic Development,"Spatial Policy, Planning, Assets & Environment",Supplies and Services,352001,Conference Expenses,07-Nov-2012,2516077-01-WW2012,860.00,ANDREW CARR.
Regeneration & Economic Development,"Spatial Policy, Planning, Assets & Environment",Fees,901002,Professional Fees,07-Nov-2012,2516106-90178337,"81,602.72",BRITISH GAS ENERGY PERFORMANCE.
Regeneration & Economic Development,"Spatial Policy, Planning, Assets & Environment",Supplies and Services,342051,Computers and Communications,07-Nov-2012,2516124-M/EW013083,"2,694.36",CIVICA UK LTD.
Regeneration & Economic Development,"Spatial Policy, Planning, Assets & Environment",Supplies and Services,332047,"Printing, Stationery and Gen Off Exps",07-Nov-2012,2516409-5373230,"1,070.76",SUPPLIES TEAM LTD.
Regeneration & Economic Development,"Spatial Policy, Planning, Assets & Environment",Supplies and Services,364999,Grants to Voluntary Organisations,07-Nov-2012,2516420-G,"2,000.00",TEES & DURHAM ENERGY ADVICE CO LTD.
Regeneration & Economic Development,"Spatial Policy, Planning, Assets & Environment",Supplies and Services,336005,Advertising,07-Nov-2012,2516435-100000916198,975.26,TMP (UK) LTD (RECRUITMENT).
Regeneration & Economic Development,Transport,Other Expenses,914001,Other capital expenses,07-Nov-2012,2516072-60216682-83,540.50,AECOM LTD.
Regeneration & Economic Development,Transport,Other Expenses,914001,Other capital expenses,07-Nov-2012,2516072-60268123-14,782.00,AECOM LTD.
Regeneration & Economic Development,Transport,Third Party Payments,430106,Rendered by Private Contractors,07-Nov-2012,2516256-PPT3314-16/9-13/10/12,"1,768.00",KEITH HAMMOND.
Regeneration & Economic Development,Transport,Construction Work,908105,Construction work,07-Nov-2012,2516257-11906,"11,674.51",KIELY BROS LTD.
Regeneration & Economic Development,Transport,Construction Work,908105,Construction work,07-Nov-2012,2516301-IN00250634,"5,443.00",MOTT MACDONALD LTD.
Regeneration & Economic Development,Transport,Third Party Payments,430100,Rendered by Private Contractors,07-Nov-2012,2516391-2595,"23,409.22",SOCIAL RESOURCE CENTRE LTD.
Regeneration & Economic Development,Transport,Supplies and Services,342037,Computers and Communications,07-Nov-2012,2516409-5375754,531.07,SUPPLIES TEAM LTD.
Regeneration & Economic Development,Transport,Other Expenses,914002,Capital - Advertisments,07-Nov-2012,2516435-100000916202,697.98,TMP (UK) LTD (RECRUITMENT).
Adults Wellbeing and Health,Commissioning inc Supporting People,Supplies and Services,338047,Services,08-Nov-2012,213577-1762,"5,513.11",ALAN FIELD ASSOCIATES.
Adults Wellbeing and Health,Commissioning inc Supporting People,Third Party Payments,479111,Purchase of Care,08-Nov-2012,213612-2012/13TQ,"3,244.95",DERWENTSIDE MIND.
Adults Wellbeing and Health,Commissioning inc Supporting People,Supplies and Services,338047,Services,08-Nov-2012,213635-3092012,650.00,REDACTED - PAYMENT TO INDIVIDUAL
Adults Wellbeing and Health,Commissioning inc Supporting People,Supplies and Services,338027,Services,08-Nov-2012,213745-06/10/2012,"1,000.00",SN BELL.
Adults Wellbeing and Health,Commissioning inc Supporting People,Premises,120037,Energy Costs,08-Nov-2012,2517084-23657935,627.10,CALOR GAS LTD.
Adults Wellbeing and Health,Commissioning inc Supporting People,Supplies and Services,324001,Provisions,08-Nov-2012,2517093-EW53278813,924.23,CARLSBERG UK LTD.
Adults Wellbeing and Health,Commissioning inc Supporting People,Supplies and Services,338047,Services,08-Nov-2012,2517195-1109,"1,700.00",CRAIG PUGH.
Adults Wellbeing and Health,Commissioning inc Supporting People,Supplies and Services,338047,Services,08-Nov-2012,2517281-3457449,589.68,DHL EXPRESS (UK) LTD.
Adults Wellbeing and Health,Commissioning inc Supporting People,Supplies and Services,338047,Services,08-Nov-2012,2517321-SS3NOV2012,"3,557.96",DURHAM SINGERS.
Adults Wellbeing and Health,Commissioning inc Supporting People,Supplies and Services,338047,Services,08-Nov-2012,2517323-SS1NOV2012,"2,263.75",DUSK `TIL DAWN ENTERTAINMENT LTD.
Adults Wellbeing and Health,Commissioning inc Supporting People,Supplies and Services,338047,Services,08-Nov-2012,2517515-3,712.50,IAN HALFORD.
Adults Wellbeing and Health,Commissioning inc Supporting People,Supplies and Services,338047,Services,08-Nov-2012,2517629-1,"1,300.00",JOHN MURDOCH.
Adults Wellbeing and Health,Commissioning inc Supporting People,Supplies and Services,384302,Miscellaneous Expenses,08-Nov-2012,2517662-WSS,"3,000.00",JR MILGATE ORCHESTRA PROMOTIONS.
Adults Wellbeing and Health,Commissioning inc Supporting People,Supplies and Services,338047,Services,08-Nov-2012,2517663-1010,"1,375.00",JR PRODUCTIONS.
Adults Wellbeing and Health,Commissioning inc Supporting People,Supplies and Services,338047,Services,08-Nov-2012,2517692-0002,500.00,REDACTED - PAYMENT TO INDIVIDUAL
Adults Wellbeing and Health,Commissioning inc Supporting People,Supplies and Services,338047,Services,08-Nov-2012,2517742-AT,814.50,LAURA LONSDALE.
Adults Wellbeing and Health,Commissioning inc Supporting People,Supplies and Services,338047,Services,08-Nov-2012,2517923-SF/22880,"3,197.18",MICHAEL GARRETT ASSOCIATES LTD T/A GLOBAL ARTISTS.
Adults Wellbeing and Health,Commissioning inc Supporting People,Supplies and Services,338047,Services,08-Nov-2012,2518414-954207-1,707.33,SONY PICTURES RELEASING.
Adults Wellbeing and Health,Financing-Adult Services,Debtors,930024,Debtor-free nursing care,08-Nov-2012,2517010-2063510,760.90,BARCHESTER HEALTHCARE HOMES LTD.
Adults Wellbeing and Health,Financing-Adult Services,Debtors,930024,Debtor-free nursing care,08-Nov-2012,2517010-2064626,574.55,BARCHESTER HEALTHCARE HOMES LTD.
Adults Wellbeing and Health,Financing-Adult Services,Debtors,930024,Debtor-free nursing care,08-Nov-2012,2517031-2062748,598.40,BENFIELD HALL.
Adults Wellbeing and Health,Financing-Adult Services,Debtors,930024,Debtor-free nursing care,08-Nov-2012,2517050-2062515,"1,273.34",BISHOPSGATE LODGE.
Adults Wellbeing and Health,Financing-Adult Services,Debtors,930024,Debtor-free nursing care,08-Nov-2012,2517381-2061854,527.97,EUROPEAN CARE (ENGLAND) LTD.
Adults Wellbeing and Health,Financing-Adult Services,Debtors,930024,Debtor-free nursing care,08-Nov-2012,2517383-2061655,"1,133.58",EUROPEAN CARE (ENGLAND) LTD.
Adults Wellbeing and Health,Financing-Adult Services,Debtors,930024,Debtor-free nursing care,08-Nov-2012,2517473-2064524,"1,180.17",HADRIAN HEALTHCARE (NE) LTD (ORCHARD MANOR).
Adults Wellbeing and Health,Financing-Adult Services,Creditors,952035,Creditor-housing benefit-eqpt,08-Nov-2012,2517533-BH01,756.00,J & D CARPETS T/A THE FLOORING STORE.
Adults Wellbeing and Health,Financing-Adult Services,Debtors,930024,Debtor-free nursing care,08-Nov-2012,2517537-2062219,729.84,JACK DORMAND.
Adults Wellbeing and Health,Financing-Adult Services,Debtors,930024,Debtor-free nursing care,08-Nov-2012,2517722-2062735,598.40,KIMBLESWORTH NURSING HOME.
Adults Wellbeing and Health,Financing-Adult Services,Debtors,930024,Debtor-free nursing care,08-Nov-2012,2517805-2061713,"1,180.17",LYONS COURT CARE HOME.
Adults Wellbeing and Health,Financing-Adult Services,Debtors,930024,Debtor-free nursing care,08-Nov-2012,2517805-2063261,"2,469.04",LYONS COURT CARE HOME.
Adults Wellbeing and Health,Financing-Adult Services,Debtors,930024,Debtor-free nursing care,08-Nov-2012,2517913-2061745,745.37,MELBURY COURT.
Adults Wellbeing and Health,Financing-Adult Services,Debtors,930024,Debtor-free nursing care,08-Nov-2012,2517913-2064622,590.09,MELBURY COURT.
Adults Wellbeing and Health,Financing-Adult Services,Debtors,930024,Debtor-free nursing care,08-Nov-2012,2518284-2062475,598.40,RAYSON HOMES LTD.
Adults Wellbeing and Health,Financing-Adult Services,Debtors,930024,Debtor-free nursing care,08-Nov-2012,2518284-2062540,745.31,RAYSON HOMES LTD.
Adults Wellbeing and Health,Financing-Adult Services,Debtors,930024,Debtor-free nursing care,08-Nov-2012,2518370-2061800,"1,583.91",SANDRINGHAM CARE HOME.
Adults Wellbeing and Health,Financing-Adult Services,Debtors,930024,Debtor-free nursing care,08-Nov-2012,2518370-2064538,667.73,SANDRINGHAM CARE HOME.
Adults Wellbeing and Health,Financing-Adult Services,Debtors,930024,Debtor-free nursing care,08-Nov-2012,2518496-2061681,598.40,TAMARIS HEALTHCARE LTD.
Adults Wellbeing and Health,Financing-Adult Services,Debtors,930024,Debtor-free nursing care,08-Nov-2012,2518497-2062070,652.20,TAMARIS HEALTHCARE LTD.
Adults Wellbeing and Health,Financing-Adult Services,Debtors,930024,Debtor-free nursing care,08-Nov-2012,2518500-2062010,598.40,TAMARIS HEALTHCARE LTD.
Adults Wellbeing and Health,Financing-Adult Services,Debtors,930024,Debtor-free nursing care,08-Nov-2012,2518501-2061842,598.40,TAMARIS HEALTHCARE LTD.
Adults Wellbeing and Health,Financing-Adult Services,Debtors,930024,Debtor-free nursing care,08-Nov-2012,2518501-2061895,598.40,TAMARIS HEALTHCARE LTD.
Adults Wellbeing and Health,Financing-Adult Services,Debtors,930024,Debtor-free nursing care,08-Nov-2012,2518551-2064710,"3,276.53",THORNFIELD GRANGE.
Adults Wellbeing and Health,Financing-Adult Services,Debtors,930024,Debtor-free nursing care,08-Nov-2012,2518629-2062229,636.67,WEST HOUSE CARE HOME.
Adults Wellbeing and Health,Financing-Adult Services,Debtors,930024,Debtor-free nursing care,08-Nov-2012,2518629-2064460,559.03,WEST HOUSE CARE HOME.
Adults Wellbeing and Health,Financing-Adult Services,Debtors,930024,Debtor-free nursing care,08-Nov-2012,2518631-2062357,"2,003.18",WEST LODGE HOMES.
Adults Wellbeing and Health,Financing-Adult Services,Debtors,930024,Debtor-free nursing care,08-Nov-2012,2518631-2062383,854.07,WEST LODGE HOMES.
Adults Wellbeing and Health,Head of Adults,Third Party Payments,470101,Purchase of Care,08-Nov-2012,213591-2062563,"9,696.00",CARELINE LIFESTYLES LTD.
Adults Wellbeing and Health,Head of Adults,Third Party Payments,478101,Purchase of Care,08-Nov-2012,213693-2063609,"1,348.80",REDACTED - PAYMENT TO INDIVIDUAL
Adults Wellbeing and Health,Head of Adults,Third Party Payments,478101,Purchase of Care,08-Nov-2012,213693-2063610,"1,348.80",REDACTED - PAYMENT TO INDIVIDUAL
Adults Wellbeing and Health,Head of Adults,Third Party Payments,478101,Purchase of Care,08-Nov-2012,213696-2060204,"1,249.40",REDACTED - PAYMENT TO INDIVIDUAL
Adults Wellbeing and Health,Head of Adults,Transfer Payments,515201,Social Services Clients,08-Nov-2012,213715-1282669H,509.96,REDACTED - PAYMENT TO INDIVIDUAL
Adults Wellbeing and Health,Head of Adults,Transport,230005,Contract Hire,08-Nov-2012,213728-01,"1,000.00",PRESTYS HACKNEY & PRIVATE HIRE TAXIS.
Adults Wellbeing and Health,Head of Adults,Transport,230005,Contract Hire,08-Nov-2012,2516478-101207,"1,634.00",24/7 TAXI SERVICES LTD.
Adults Wellbeing and Health,Head of Adults,Third Party Payments,470101,Purchase of Care,08-Nov-2012,2516479-2062919,"6,031.16",3 RED ADMIRAL COURT.
Adults Wellbeing and Health,Head of Adults,Third Party Payments,472101,Purchase of Care,08-Nov-2012,2516480-1280056H,507.28,360 HEALTHCARE LTD.
Adults Wellbeing and Health,Head of Adults,Third Party Payments,472101,Purchase of Care,08-Nov-2012,2516480-1280264H,760.92,360 HEALTHCARE LTD.
Adults Wellbeing and Health,Head of Adults,Third Party Payments,472101,Purchase of Care,08-Nov-2012,2516480-1280756H,"1,181.20",360 HEALTHCARE LTD.
Adults Wellbeing and Health,Head of Adults,Third Party Payments,472101,Purchase of Care,08-Nov-2012,2516480-1280760H,"1,070.70",360 HEALTHCARE LTD.
Adults Wellbeing and Health,Head of Adults,Third Party Payments,472101,Purchase of Care,08-Nov-2012,2516480-1281008H,840.00,360 HEALTHCARE LTD.
Adults Wellbeing and Health,Head of Adults,Third Party Payments,472101,Purchase of Care,08-Nov-2012,2516480-1281086H,528.25,360 HEALTHCARE LTD.
Adults Wellbeing and Health,Head of Adults,Third Party Payments,472101,Purchase of Care,08-Nov-2012,2516480-1282161H,532.64,360 HEALTHCARE LTD.
Adults Wellbeing and Health,Head of Adults,Third Party Payments,472101,Purchase of Care,08-Nov-2012,2516480-1282490H,913.08,360 HEALTHCARE LTD.
Adults Wellbeing and Health,Head of Adults,Third Party Payments,472101,Purchase of Care,08-Nov-2012,2516480-1282770H,706.56,360 HEALTHCARE LTD.
Adults Wellbeing and Health,Head of Adults,Third Party Payments,472101,Purchase of Care,08-Nov-2012,2516480-1282832H,500.04,360 HEALTHCARE LTD.
Adults Wellbeing and Health,Head of Adults,Third Party Payments,472101,Purchase of Care,08-Nov-2012,2516480-1282845H,684.80,360 HEALTHCARE LTD.
Adults Wellbeing and Health,Head of Adults,Third Party Payments,472101,Purchase of Care,08-Nov-2012,2516480-1283073H,597.84,360 HEALTHCARE LTD.
Adults Wellbeing and Health,Head of Adults,Third Party Payments,472101,Purchase of Care,08-Nov-2012,2516480-1283172H,"1,195.72",360 HEALTHCARE LTD.
Adults Wellbeing and Health,Head of Adults,Third Party Payments,472101,Purchase of Care,08-Nov-2012,2516480-1283196H,532.64,360 HEALTHCARE LTD.
Adults Wellbeing and Health,Head of Adults,Third Party Payments,472101,Purchase of Care,08-Nov-2012,2516480-1283425H,"1,358.76",360 HEALTHCARE LTD.
Adults Wellbeing and Health,Head of Adults,Third Party Payments,472101,Purchase of Care,08-Nov-2012,2516480-1283534H,500.04,360 HEALTHCARE LTD.
Adults Wellbeing and Health,Head of Adults,Third Party Payments,472101,Purchase of Care,08-Nov-2012,2516480-1283568H,934.84,360 HEALTHCARE LTD.
Adults Wellbeing and Health,Head of Adults,Third Party Payments,472101,Purchase of Care,08-Nov-2012,2516480-1283687H,695.68,360 HEALTHCARE LTD.
Adults Wellbeing and Health,Head of Adults,Third Party Payments,472101,Purchase of Care,08-Nov-2012,2516480-1283727H,547.12,360 HEALTHCARE LTD.
Adults Wellbeing and Health,Head of Adults,Third Party Payments,472101,Purchase of Care,08-Nov-2012,2516480-1283766H,628.64,360 HEALTHCARE LTD.
Adults Wellbeing and Health,Head of Adults,Third Party Payments,472101,Purchase of Care,08-Nov-2012,2516480-1283954H,739.16,360 HEALTHCARE LTD.
Adults Wellbeing and Health,Head of Adults,Third Party Payments,472101,Purchase of Care,08-Nov-2012,2516480-1284128H,986.45,360 HEALTHCARE LTD.
Adults Wellbeing and Health,Head of Adults,Third Party Payments,472101,Purchase of Care,08-Nov-2012,2516480-1284129H,519.04,360 HEALTHCARE LTD.
Adults Wellbeing and Health,Head of Adults,Third Party Payments,472101,Purchase of Care,08-Nov-2012,2516480-1284587H,847.88,360 HEALTHCARE LTD.
Adults Wellbeing and Health,Head of Adults,Third Party Payments,472101,Purchase of Care,08-Nov-2012,2516480-1284622H,659.44,360 HEALTHCARE LTD.
Adults Wellbeing and Health,Head of Adults,Third Party Payments,472101,Purchase of Care,08-Nov-2012,2516480-1284975H,"1,391.36",360 HEALTHCARE LTD.
Adults Wellbeing and Health,Head of Adults,Third Party Payments,472101,Purchase of Care,08-Nov-2012,2516480-1285041H,852.34,360 HEALTHCARE LTD.
Adults Wellbeing and Health,Head of Adults,Third Party Payments,472101,Purchase of Care,08-Nov-2012,2516480-1285097H,608.72,360 HEALTHCARE LTD.
Adults Wellbeing and Health,Head of Adults,Third Party Payments,472101,Purchase of Care,08-Nov-2012,2516480-1285116H,"1,521.80",360 HEALTHCARE LTD.
Adults Wellbeing and Health,Head of Adults,Third Party Payments,472101,Purchase of Care,08-Nov-2012,2516480-1285664H,731.92,360 HEALTHCARE LTD.
Adults Wellbeing and Health,Head of Adults,Third Party Payments,472101,Purchase of Care,08-Nov-2012,2516480-1285907H,913.08,360 HEALTHCARE LTD.
Adults Wellbeing and Health,Head of Adults,Third Party Payments,472101,Purchase of Care,08-Nov-2012,2516480-1285987H,565.24,360 HEALTHCARE LTD.
Adults Wellbeing and Health,Head of Adults,Third Party Payments,472101,Purchase of Care,08-Nov-2012,2516480-1286009H,576.12,360 HEALTHCARE LTD.
Adults Wellbeing and Health,Head of Adults,Third Party Payments,472101,Purchase of Care,08-Nov-2012,2516480-1286020H,"1,369.64",360 HEALTHCARE LTD.
Adults Wellbeing and Health,Head of Adults,Third Party Payments,472101,Purchase of Care,08-Nov-2012,2516480-A-OCT12,"1,320.96",360 HEALTHCARE LTD.
Adults Wellbeing and Health,Head of Adults,Third Party Payments,470101,Purchase of Care,08-Nov-2012,2516482-2062900,"6,397.60",368 THE RIDGE.
Adults Wellbeing and Health,Head of Adults,Transport,230005,Contract Hire,08-Nov-2012,2516485-440,910.00,A BARKER.
Adults Wellbeing and Health,Head of Adults,Third Party Payments,473101,Purchase of Care,08-Nov-2012,2516486-1281757D,540.36,A CHARLES THOMAS (CARE) LTD.
Adults Wellbeing and Health,Head of Adults,Third Party Payments,470101,Purchase of Care,08-Nov-2012,2516486-2061095,"1,757.76",A CHARLES THOMAS (CARE) LTD.
Adults Wellbeing and Health,Head of Adults,Third Party Payments,470101,Purchase of Care,08-Nov-2012,2516486-2061156,"1,757.76",A CHARLES THOMAS (CARE) LTD.
Adults Wellbeing and Health,Head of Adults,Third Party Payments,470101,Purchase of Care,08-Nov-2012,2516486-2061157,"1,757.76",A CHARLES THOMAS (CARE) LTD.
Adults Wellbeing and Health,Head of Adults,Third Party Payments,470101,Purchase of Care,08-Nov-2012,2516486-2061159,"1,757.76",A CHARLES THOMAS (CARE) LTD.
Adults Wellbeing and Health,Head of Adults,Third Party Payments,470101,Purchase of Care,08-Nov-2012,2516486-2061160,"1,757.76",A CHARLES THOMAS (CARE) LTD.
Adults Wellbeing and Health,Head of Adults,Third Party Payments,470101,Purchase of Care,08-Nov-2012,2516486-2061161,"1,757.76",A CHARLES THOMAS (CARE) LTD.
Adults Wellbeing and Health,Head of Adults,Third Party Payments,470101,Purchase of Care,08-Nov-2012,2516486-2061288,"1,757.76",A CHARLES THOMAS (CARE) LTD.
Adults Wellbeing and Health,Head of Adults,Third Party Payments,470101,Purchase of Care,08-Nov-2012,2516486-2061289,"1,757.76",A CHARLES THOMAS (CARE) LTD.
Adults Wellbeing and Health,Head of Adults,Third Party Payments,470101,Purchase of Care,08-Nov-2012,2516486-2061290,"1,757.76",A CHARLES THOMAS (CARE) LTD.
Adults Wellbeing and Health,Head of Adults,Third Party Payments,470101,Purchase of Care,08-Nov-2012,2516486-2061291,"1,757.76",A CHARLES THOMAS (CARE) LTD.
Adults Wellbeing and Health,Head of Adults,Third Party Payments,470101,Purchase of Care,08-Nov-2012,2516486-2061292,"1,757.76",A CHARLES THOMAS (CARE) LTD.
Adults Wellbeing and Health,Head of Adults,Third Party Payments,470101,Purchase of Care,08-Nov-2012,2516486-2061293,"1,757.76",A CHARLES THOMAS (CARE) LTD.
Adults Wellbeing and Health,Head of Adults,Third Party Payments,470101,Purchase of Care,08-Nov-2012,2516486-2061294,"1,757.76",A CHARLES THOMAS (CARE) LTD.
Adults Wellbeing and Health,Head of Adults,Third Party Payments,470101,Purchase of Care,08-Nov-2012,2516486-2061295,"1,757.76",A CHARLES THOMAS (CARE) LTD.
Adults Wellbeing and Health,Head of Adults,Third Party Payments,470101,Purchase of Care,08-Nov-2012,2516486-2061296,"1,757.76",A CHARLES THOMAS (CARE) LTD.
Adults Wellbeing and Health,Head of Adults,Third Party Payments,470101,Purchase of Care,08-Nov-2012,2516486-2061297,"1,261.32",A CHARLES THOMAS (CARE) LTD.
Adults Wellbeing and Health,Head of Adults,Third Party Payments,474101,Purchase of Care,08-Nov-2012,2516486-2062091,"1,845.52",A CHARLES THOMAS (CARE) LTD.
Adults Wellbeing and Health,Head of Adults,Third Party Payments,474101,Purchase of Care,08-Nov-2012,2516486-2062160,"1,845.52",A CHARLES THOMAS (CARE) LTD.
Adults Wellbeing and Health,Head of Adults,Third Party Payments,474101,Purchase of Care,08-Nov-2012,2516486-2062162,"1,845.52",A CHARLES THOMAS (CARE) LTD.
Adults Wellbeing and Health,Head of Adults,Third Party Payments,474101,Purchase of Care,08-Nov-2012,2516486-2062169,725.02,A CHARLES THOMAS (CARE) LTD.
Adults Wellbeing and Health,Head of Adults,Third Party Payments,474101,Purchase of Care,08-Nov-2012,2516486-2062290,"1,845.52",A CHARLES THOMAS (CARE) LTD.
Adults Wellbeing and Health,Head of Adults,Third Party Payments,474101,Purchase of Care,08-Nov-2012,2516486-2062295,"1,845.52",A CHARLES THOMAS (CARE) LTD.
Adults Wellbeing and Health,Head of Adults,Third Party Payments,474101,Purchase of Care,08-Nov-2012,2516486-2062298,"1,845.52",A CHARLES THOMAS (CARE) LTD.
Adults Wellbeing and Health,Head of Adults,Third Party Payments,474101,Purchase of Care,08-Nov-2012,2516486-2062303,"1,845.52",A CHARLES THOMAS (CARE) LTD.
Adults Wellbeing and Health,Head of Adults,Third Party Payments,474101,Purchase of Care,08-Nov-2012,2516486-2062305,"1,845.52",A CHARLES THOMAS (CARE) LTD.
Adults Wellbeing and Health,Head of Adults,Third Party Payments,474101,Purchase of Care,08-Nov-2012,2516486-2062307,"1,845.52",A CHARLES THOMAS (CARE) LTD.
Adults Wellbeing and Health,Head of Adults,Third Party Payments,474101,Purchase of Care,08-Nov-2012,2516486-2062310,"1,845.52",A CHARLES THOMAS (CARE) LTD.
Adults Wellbeing and Health,Head of Adults,Third Party Payments,474101,Purchase of Care,08-Nov-2012,2516486-2062671,"2,012.76",A CHARLES THOMAS (CARE) LTD.
Adults Wellbeing and Health,Head of Adults,Transport,230005,Contract Hire,08-Nov-2012,2516489-AA719,"2,042.40",AA MINIBUS HIRE.
Adults Wellbeing and Health,Head of Adults,Transport,230005,Contract Hire,08-Nov-2012,2516489-AA728,"1,960.00",AA MINIBUS HIRE.
Adults Wellbeing and Health,Head of Adults,Transport,230005,Contract Hire,08-Nov-2012,2516496-CLS041OCT12,"1,500.00",ABA LOCAL TAXIS LTD.
Adults Wellbeing and Health,Head of Adults,Transport,230005,Contract Hire,08-Nov-2012,2516497-10/1/12,522.00,ABA TAXIS.
Adults Wellbeing and Health,Head of Adults,Third Party Payments,474101,Purchase of Care,08-Nov-2012,2516498-2062641,"2,303.28",ABBEYMOOR CLINIC.
Adults Wellbeing and Health,Head of Adults,Third Party Payments,470101,Purchase of Care,08-Nov-2012,2516499-2060354,"1,525.59",ABBEYVALE.
Adults Wellbeing and Health,Head of Adults,Third Party Payments,470101,Purchase of Care,08-Nov-2012,2516499-2060368,928.64,ABBEYVALE.
Adults Wellbeing and Health,Head of Adults,Third Party Payments,470101,Purchase of Care,08-Nov-2012,2516499-2060369,"1,857.24",ABBEYVALE.
Adults Wellbeing and Health,Head of Adults,Third Party Payments,470101,Purchase of Care,08-Nov-2012,2516499-2060370,"1,857.24",ABBEYVALE.
Adults Wellbeing and Health,Head of Adults,Third Party Payments,470101,Purchase of Care,08-Nov-2012,2516499-2060371,"1,790.91",ABBEYVALE.
Adults Wellbeing and Health,Head of Adults,Third Party Payments,470101,Purchase of Care,08-Nov-2012,2516499-2060372,"1,857.24",ABBEYVALE.
Adults Wellbeing and Health,Head of Adults,Third Party Payments,470101,Purchase of Care,08-Nov-2012,2516499-2060374,"1,857.24",ABBEYVALE.
Adults Wellbeing and Health,Head of Adults,Third Party Payments,470101,Purchase of Care,08-Nov-2012,2516499-2060375,"1,857.24",ABBEYVALE.
Adults Wellbeing and Health,Head of Adults,Third Party Payments,470101,Purchase of Care,08-Nov-2012,2516499-2060376,"1,857.24",ABBEYVALE.
Adults Wellbeing and Health,Head of Adults,Third Party Payments,470101,Purchase of Care,08-Nov-2012,2516499-2060377,"1,857.24",ABBEYVALE.
Adults Wellbeing and Health,Head of Adults,Third Party Payments,470101,Purchase of Care,08-Nov-2012,2516499-2060378,"1,857.24",ABBEYVALE.
Adults Wellbeing and Health,Head of Adults,Third Party Payments,470101,Purchase of Care,08-Nov-2012,2516499-2060379,"1,857.24",ABBEYVALE.
Adults Wellbeing and Health,Head of Adults,Third Party Payments,470101,Purchase of Care,08-Nov-2012,2516499-2060380,"1,917.24",ABBEYVALE.
Adults Wellbeing and Health,Head of Adults,Third Party Payments,470101,Purchase of Care,08-Nov-2012,2516499-2060382,795.96,ABBEYVALE.
Adults Wellbeing and Health,Head of Adults,Third Party Payments,470101,Purchase of Care,08-Nov-2012,2516499-2060383,"1,857.24",ABBEYVALE.
Adults Wellbeing and Health,Head of Adults,Third Party Payments,470101,Purchase of Care,08-Nov-2012,2516499-2060384,"1,857.24",ABBEYVALE.
Adults Wellbeing and Health,Head of Adults,Third Party Payments,470101,Purchase of Care,08-Nov-2012,2516499-2060385,"1,857.24",ABBEYVALE.
Adults Wellbeing and Health,Head of Adults,Third Party Payments,470101,Purchase of Care,08-Nov-2012,2516499-2060386,"1,857.24",ABBEYVALE.
Adults Wellbeing and Health,Head of Adults,Third Party Payments,470101,Purchase of Care,08-Nov-2012,2516499-2060387,"1,857.24",ABBEYVALE.
Adults Wellbeing and Health,Head of Adults,Third Party Payments,470101,Purchase of Care,08-Nov-2012,2516499-2060388,"1,857.24",ABBEYVALE.
Adults Wellbeing and Health,Head of Adults,Third Party Payments,470101,Purchase of Care,08-Nov-2012,2516499-2062560,"1,831.96",ABBEYVALE.
Adults Wellbeing and Health,Head of Adults,Third Party Payments,470101,Purchase of Care,08-Nov-2012,2516499-2062780,"2,500.00",ABBEYVALE.
Adults Wellbeing and Health,Head of Adults,Third Party Payments,470101,Purchase of Care,08-Nov-2012,2516499-2062806,"2,400.00",ABBEYVALE.
Adults Wellbeing and Health,Head of Adults,Third Party Payments,470101,Purchase of Care,08-Nov-2012,2516499-2062807,"2,400.00",ABBEYVALE.
Adults Wellbeing and Health,Head of Adults,Third Party Payments,470101,Purchase of Care,08-Nov-2012,2516499-2062808,"2,400.00",ABBEYVALE.
Adults Wellbeing and Health,Head of Adults,Third Party Payments,470101,Purchase of Care,08-Nov-2012,2516499-2062809,"2,500.00",ABBEYVALE.
Adults Wellbeing and Health,Head of Adults,Third Party Payments,470101,Purchase of Care,08-Nov-2012,2516499-2062810,"2,400.00",ABBEYVALE.
Adults Wellbeing and Health,Head of Adults,Third Party Payments,470101,Purchase of Care,08-Nov-2012,2516499-2062811,"1,028.57",ABBEYVALE.
Adults Wellbeing and Health,Head of Adults,Third Party Payments,470101,Purchase of Care,08-Nov-2012,2516499-2062812,"2,400.00",ABBEYVALE.
Adults Wellbeing and Health,Head of Adults,Third Party Payments,470101,Purchase of Care,08-Nov-2012,2516499-2062813,"2,400.00",ABBEYVALE.
Adults Wellbeing and Health,Head of Adults,Third Party Payments,471101,Purchase of Care,08-Nov-2012,2516499-2063737,"1,925.76",ABBEYVALE.
Adults Wellbeing and Health,Head of Adults,Third Party Payments,471101,Purchase of Care,08-Nov-2012,2516499-2063738,"1,925.76",ABBEYVALE.
Adults Wellbeing and Health,Head of Adults,Third Party Payments,471101,Purchase of Care,08-Nov-2012,2516499-2063759,"1,925.76",ABBEYVALE.
Adults Wellbeing and Health,Head of Adults,Third Party Payments,471101,Purchase of Care,08-Nov-2012,2516499-2063762,"1,925.76",ABBEYVALE.
Adults Wellbeing and Health,Head of Adults,Third Party Payments,471101,Purchase of Care,08-Nov-2012,2516499-2063763,"1,925.76",ABBEYVALE.
Adults Wellbeing and Health,Head of Adults,Third Party Payments,471101,Purchase of Care,08-Nov-2012,2516499-2063764,"1,925.76",ABBEYVALE.
Adults Wellbeing and Health,Head of Adults,Third Party Payments,471101,Purchase of Care,08-Nov-2012,2516499-2063766,"1,925.76",ABBEYVALE.
Adults Wellbeing and Health,Head of Adults,Third Party Payments,471101,Purchase of Care,08-Nov-2012,2516499-2063767,"1,925.76",ABBEYVALE.
Adults Wellbeing and Health,Head of Adults,Third Party Payments,471101,Purchase of Care,08-Nov-2012,2516499-2063768,"1,925.76",ABBEYVALE.
Adults Wellbeing and Health,Head of Adults,Third Party Payments,470101,Purchase of Care,08-Nov-2012,2516499-2064603,"1,326.60",ABBEYVALE.
Adults Wellbeing and Health,Head of Adults,Third Party Payments,470101,Purchase of Care,08-Nov-2012,2516499-2064604,"1,326.60",ABBEYVALE.
Adults Wellbeing and Health,Head of Adults,Third Party Payments,470101,Purchase of Care,08-Nov-2012,2516499-2064605,928.62,ABBEYVALE.
Adults Wellbeing and Health,Head of Adults,Third Party Payments,470101,Purchase of Care,08-Nov-2012,2516500-2061128,"1,757.76",ABBOTTS COURT CARE HOME.
Adults Wellbeing and Health,Head of Adults,Third Party Payments,470101,Purchase of Care,08-Nov-2012,2516500-2061129,"1,757.76",ABBOTTS COURT CARE HOME.
Adults Wellbeing and Health,Head of Adults,Third Party Payments,470101,Purchase of Care,08-Nov-2012,2516500-2061130,"1,757.76",ABBOTTS COURT CARE HOME.
Adults Wellbeing and Health,Head of Adults,Third Party Payments,470101,Purchase of Care,08-Nov-2012,2516500-2061141,"1,757.76",ABBOTTS COURT CARE HOME.
Adults Wellbeing and Health,Head of Adults,Third Party Payments,470101,Purchase of Care,08-Nov-2012,2516500-2061178,"1,757.76",ABBOTTS COURT CARE HOME.
Adults Wellbeing and Health,Head of Adults,Third Party Payments,470101,Purchase of Care,08-Nov-2012,2516500-2061231,"1,757.76",ABBOTTS COURT CARE HOME.
Adults Wellbeing and Health,Head of Adults,Third Party Payments,471101,Purchase of Care,08-Nov-2012,2516500-2064253,"1,827.24",ABBOTTS COURT CARE HOME.
Adults Wellbeing and Health,Head of Adults,Third Party Payments,471101,Purchase of Care,08-Nov-2012,2516500-2064254,"1,827.24",ABBOTTS COURT CARE HOME.
Adults Wellbeing and Health,Head of Adults,Third Party Payments,471101,Purchase of Care,08-Nov-2012,2516500-2064255,"1,827.24",ABBOTTS COURT CARE HOME.
Adults Wellbeing and Health,Head of Adults,Third Party Payments,471101,Purchase of Care,08-Nov-2012,2516500-2064256,"1,827.24",ABBOTTS COURT CARE HOME.
Adults Wellbeing and Health,Head of Adults,Third Party Payments,471101,Purchase of Care,08-Nov-2012,2516500-2064257,"1,827.24",ABBOTTS COURT CARE HOME.
Adults Wellbeing and Health,Head of Adults,Third Party Payments,471101,Purchase of Care,08-Nov-2012,2516500-2064274,848.36,ABBOTTS COURT CARE HOME.
Adults Wellbeing and Health,Head of Adults,Third Party Payments,471101,Purchase of Care,08-Nov-2012,2516500-2064275,"1,827.24",ABBOTTS COURT CARE HOME.
Adults Wellbeing and Health,Head of Adults,Third Party Payments,471101,Purchase of Care,08-Nov-2012,2516500-2064283,"1,827.24",ABBOTTS COURT CARE HOME.
Adults Wellbeing and Health,Head of Adults,Third Party Payments,471101,Purchase of Care,08-Nov-2012,2516500-2064311,"1,827.24",ABBOTTS COURT CARE HOME.
Adults Wellbeing and Health,Head of Adults,Third Party Payments,471101,Purchase of Care,08-Nov-2012,2516500-2064312,"1,827.24",ABBOTTS COURT CARE HOME.
Adults Wellbeing and Health,Head of Adults,Third Party Payments,471101,Purchase of Care,08-Nov-2012,2516500-2064313,587.32,ABBOTTS COURT CARE HOME.
Adults Wellbeing and Health,Head of Adults,Third Party Payments,471101,Purchase of Care,08-Nov-2012,2516500-2064314,"1,827.24",ABBOTTS COURT CARE HOME.
Adults Wellbeing and Health,Head of Adults,Third Party Payments,471101,Purchase of Care,08-Nov-2012,2516500-2064315,"1,827.24",ABBOTTS COURT CARE HOME.
Adults Wellbeing and Health,Head of Adults,Third Party Payments,471101,Purchase of Care,08-Nov-2012,2516500-2064316,"1,239.91",ABBOTTS COURT CARE HOME.
Adults Wellbeing and Health,Head of Adults,Third Party Payments,471101,Purchase of Care,08-Nov-2012,2516500-2064317,"1,827.24",ABBOTTS COURT CARE HOME.
Adults Wellbeing and Health,Head of Adults,Third Party Payments,471101,Purchase of Care,08-Nov-2012,2516500-2064318,"1,827.24",ABBOTTS COURT CARE HOME.
Adults Wellbeing and Health,Head of Adults,Third Party Payments,471101,Purchase of Care,08-Nov-2012,2516500-2064319,"1,827.24",ABBOTTS COURT CARE HOME.
Adults Wellbeing and Health,Head of Adults,Third Party Payments,470101,Purchase of Care,08-Nov-2012,2516500-2064543,"1,506.65",ABBOTTS COURT CARE HOME.
Adults Wellbeing and Health,Head of Adults,Third Party Payments,470101,Purchase of Care,08-Nov-2012,2516505-1279580H,"2,933.48",ACCEPT CARE LTD.
Adults Wellbeing and Health,Head of Adults,Third Party Payments,478101,Purchase of Care,08-Nov-2012,2516505-1279697H,"3,614.60",ACCEPT CARE LTD.
Adults Wellbeing and Health,Head of Adults,Third Party Payments,478101,Purchase of Care,08-Nov-2012,2516505-1279756H,"5,140.08",ACCEPT CARE LTD.
Adults Wellbeing and Health,Head of Adults,Third Party Payments,478101,Purchase of Care,08-Nov-2012,2516505-1279895H,"2,920.52",ACCEPT CARE LTD.
Adults Wellbeing and Health,Head of Adults,Third Party Payments,478101,Purchase of Care,08-Nov-2012,2516505-1279957H,"1,440.80",ACCEPT CARE LTD.
Adults Wellbeing and Health,Head of Adults,Third Party Payments,478101,Purchase of Care,08-Nov-2012,2516505-1280229H,"5,088.16",ACCEPT CARE LTD.
Adults Wellbeing and Health,Head of Adults,Third Party Payments,478101,Purchase of Care,08-Nov-2012,2516505-1280266H,"1,232.00",ACCEPT CARE LTD.
Adults Wellbeing and Health,Head of Adults,Third Party Payments,478101,Purchase of Care,08-Nov-2012,2516505-1280350H,"1,164.00",ACCEPT CARE LTD.
Adults Wellbeing and Health,Head of Adults,Third Party Payments,478101,Purchase of Care,08-Nov-2012,2516505-1280384H,"5,503.52",ACCEPT CARE LTD.
Adults Wellbeing and Health,Head of Adults,Third Party Payments,478101,Purchase of Care,08-Nov-2012,2516505-1280398H,"3,634.40",ACCEPT CARE LTD.
Adults Wellbeing and Health,Head of Adults,Third Party Payments,472101,Purchase of Care,08-Nov-2012,2516505-1280499H,672.00,ACCEPT CARE LTD.
Adults Wellbeing and Health,Head of Adults,Third Party Payments,478101,Purchase of Care,08-Nov-2012,2516505-1280705H,"5,866.96",ACCEPT CARE LTD.
Adults Wellbeing and Health,Head of Adults,Third Party Payments,478101,Purchase of Care,08-Nov-2012,2516505-1280920H,"1,232.00",ACCEPT CARE LTD.
Adults Wellbeing and Health,Head of Adults,Third Party Payments,478101,Purchase of Care,08-Nov-2012,2516505-1280924H,"7,891.84",ACCEPT CARE LTD.
Adults Wellbeing and Health,Head of Adults,Third Party Payments,478101,Purchase of Care,08-Nov-2012,2516505-1280947H,"2,673.88",ACCEPT CARE LTD.
Adults Wellbeing and Health,Head of Adults,Third Party Payments,478101,Purchase of Care,08-Nov-2012,2516505-1281024H,"4,776.64",ACCEPT CARE LTD.
Adults Wellbeing and Health,Head of Adults,Third Party Payments,478101,Purchase of Care,08-Nov-2012,2516505-1281129H,"5,477.56",ACCEPT CARE LTD.
Adults Wellbeing and Health,Head of Adults,Third Party Payments,478101,Purchase of Care,08-Nov-2012,2516505-1281152H,"4,580.52",ACCEPT CARE LTD.
Adults Wellbeing and Health,Head of Adults,Third Party Payments,478101,Purchase of Care,08-Nov-2012,2516505-1281166H,"3,582.48",ACCEPT CARE LTD.
Adults Wellbeing and Health,Head of Adults,Third Party Payments,478101,Purchase of Care,08-Nov-2012,2516505-1281209H,"3,335.90",ACCEPT CARE LTD.
Adults Wellbeing and Health,Head of Adults,Third Party Payments,478101,Purchase of Care,08-Nov-2012,2516505-1281231H,"3,997.84",ACCEPT CARE LTD.
Adults Wellbeing and Health,Head of Adults,Third Party Payments,478101,Purchase of Care,08-Nov-2012,2516505-1281347H,"7,969.72",ACCEPT CARE LTD.
Adults Wellbeing and Health,Head of Adults,Third Party Payments,478101,Purchase of Care,08-Nov-2012,2516505-1281352H,"11,889.68",ACCEPT CARE LTD.
Adults Wellbeing and Health,Head of Adults,Third Party Payments,478101,Purchase of Care,08-Nov-2012,2516505-1281366H,"3,011.36",ACCEPT CARE LTD.
Adults Wellbeing and Health,Head of Adults,Third Party Payments,478101,Purchase of Care,08-Nov-2012,2516505-1281471H,"5,224.00",ACCEPT CARE LTD.
Adults Wellbeing and Health,Head of Adults,Third Party Payments,478101,Purchase of Care,08-Nov-2012,2516505-1281477H,"6,541.92",ACCEPT CARE LTD.
Adults Wellbeing and Health,Head of Adults,Third Party Payments,472101,Purchase of Care,08-Nov-2012,2516505-1282006H,672.00,ACCEPT CARE LTD.
Adults Wellbeing and Health,Head of Adults,Third Party Payments,478101,Purchase of Care,08-Nov-2012,2516505-1282021H,"1,342.00",ACCEPT CARE LTD.
Adults Wellbeing and Health,Head of Adults,Third Party Payments,478101,Purchase of Care,08-Nov-2012,2516505-1282152H,"6,384.00",ACCEPT CARE LTD.
Adults Wellbeing and Health,Head of Adults,Third Party Payments,478101,Purchase of Care,08-Nov-2012,2516505-1282193H,"3,941.96",ACCEPT CARE LTD.
Adults Wellbeing and Health,Head of Adults,Third Party Payments,478101,Purchase of Care,08-Nov-2012,2516505-1282424H,"1,232.00",ACCEPT CARE LTD.
Adults Wellbeing and Health,Head of Adults,Third Party Payments,478101,Purchase of Care,08-Nov-2012,2516505-1282743H,"6,905.36",ACCEPT CARE LTD.
Adults Wellbeing and Health,Head of Adults,Third Party Payments,478101,Purchase of Care,08-Nov-2012,2516505-1282860H,"4,413.20",ACCEPT CARE LTD.
Adults Wellbeing and Health,Head of Adults,Third Party Payments,478101,Purchase of Care,08-Nov-2012,2516505-1282930H,"4,698.76",ACCEPT CARE LTD.
Adults Wellbeing and Health,Head of Adults,Third Party Payments,478101,Purchase of Care,08-Nov-2012,2516505-1283034H,"4,984.00",ACCEPT CARE LTD.
Adults Wellbeing and Health,Head of Adults,Third Party Payments,478101,Purchase of Care,08-Nov-2012,2516505-1283476H,"3,816.12",ACCEPT CARE LTD.
Adults Wellbeing and Health,Head of Adults,Third Party Payments,478101,Purchase of Care,08-Nov-2012,2516505-1284399H,"7,268.80",ACCEPT CARE LTD.
Adults Wellbeing and Health,Head of Adults,Third Party Payments,478101,Purchase of Care,08-Nov-2012,2516505-1284614H,"5,996.76",ACCEPT CARE LTD.
Adults Wellbeing and Health,Head of Adults,Third Party Payments,478101,Purchase of Care,08-Nov-2012,2516505-1285089H,"1,136.00",ACCEPT CARE LTD.
Adults Wellbeing and Health,Head of Adults,Third Party Payments,478101,Purchase of Care,08-Nov-2012,2516505-1285550H,528.00,ACCEPT CARE LTD.
Adults Wellbeing and Health,Head of Adults,Third Party Payments,478101,Purchase of Care,08-Nov-2012,2516505-1286221H,968.00,ACCEPT CARE LTD.
Adults Wellbeing and Health,Head of Adults,Transfer Payments,515201,Social Services Clients,08-Nov-2012,2516508-1285158H,817.20,REDACTED - PAYMENT TO INDIVIDUAL
Adults Wellbeing and Health,Head of Adults,Transfer Payments,515201,Social Services Clients,08-Nov-2012,2516510-1284445H,525.88,REDACTED - PAYMENT TO INDIVIDUAL
Adults Wellbeing and Health,Head of Adults,Transfer Payments,515209,Social Services Clients,08-Nov-2012,2516511-1279845D,540.00,REDACTED - PAYMENT TO INDIVIDUAL
Adults Wellbeing and Health,Head of Adults,Transfer Payments,515201,Social Services Clients,08-Nov-2012,2516517-1283378H,611.92,REDACTED - PAYMENT TO INDIVIDUAL
Adults Wellbeing and Health,Head of Adults,Transfer Payments,515201,Social Services Clients,08-Nov-2012,2516519-1281370H,630.00,REDACTED - PAYMENT TO INDIVIDUAL
Adults Wellbeing and Health,Head of Adults,Transfer Payments,515201,Social Services Clients,08-Nov-2012,2516523-1283507H,"1,362.00",REDACTED - PAYMENT TO INDIVIDUAL
Adults Wellbeing and Health,Head of Adults,Transfer Payments,515201,Social Services Clients,08-Nov-2012,2516525-1281571H,817.20,REDACTED - PAYMENT TO INDIVIDUAL
Adults Wellbeing and Health,Head of Adults,Transfer Payments,515201,Social Services Clients,08-Nov-2012,2516526-1285629H,675.20,REDACTED - PAYMENT TO INDIVIDUAL
Adults Wellbeing and Health,Head of Adults,Transfer Payments,515201,Social Services Clients,08-Nov-2012,2516529-1282910H,506.40,REDACTED - PAYMENT TO INDIVIDUAL
Adults Wellbeing and Health,Head of Adults,Transfer Payments,515201,Social Services Clients,08-Nov-2012,2516530-1282859H,839.92,REDACTED - PAYMENT TO INDIVIDUAL
Adults Wellbeing and Health,Head of Adults,Transfer Payments,515201,Social Services Clients,08-Nov-2012,2516532-1282938H,561.78,REDACTED - PAYMENT TO INDIVIDUAL
Adults Wellbeing and Health,Head of Adults,Transfer Payments,515201,Social Services Clients,08-Nov-2012,2516533-1282697H,771.80,REDACTED - PAYMENT TO INDIVIDUAL
Adults Wellbeing and Health,Head of Adults,Transfer Payments,515201,Social Services Clients,08-Nov-2012,2516536-1281824H,567.52,REDACTED - PAYMENT TO INDIVIDUAL
Adults Wellbeing and Health,Head of Adults,Transfer Payments,515201,Social Services Clients,08-Nov-2012,2516537-1279571H,794.52,REDACTED - PAYMENT TO INDIVIDUAL
Adults Wellbeing and Health,Head of Adults,Transfer Payments,515201,Social Services Clients,08-Nov-2012,2516540-1280078H,839.92,REDACTED - PAYMENT TO INDIVIDUAL
Adults Wellbeing and Health,Head of Adults,Transfer Payments,515201,Social Services Clients,08-Nov-2012,2516542-1280667H,"1,076.12",REDACTED - PAYMENT TO INDIVIDUAL
Adults Wellbeing and Health,Head of Adults,Transfer Payments,515201,Social Services Clients,08-Nov-2012,2516543-1285162H,"1,076.12",REDACTED - PAYMENT TO INDIVIDUAL
Adults Wellbeing and Health,Head of Adults,Transfer Payments,515201,Social Services Clients,08-Nov-2012,2516544-1282839H,590.80,REDACTED - PAYMENT TO INDIVIDUAL
Adults Wellbeing and Health,Head of Adults,Transfer Payments,515201,Social Services Clients,08-Nov-2012,2516546-1285173H,"2,542.40",REDACTED - PAYMENT TO INDIVIDUAL
Adults Wellbeing and Health,Head of Adults,Transfer Payments,515201,Social Services Clients,08-Nov-2012,2516548-1281186H,949.52,REDACTED - PAYMENT TO INDIVIDUAL
Adults Wellbeing and Health,Head of Adults,Transfer Payments,515201,Social Services Clients,08-Nov-2012,2516553-1282625H,"1,362.00",REDACTED - PAYMENT TO INDIVIDUAL
Adults Wellbeing and Health,Head of Adults,Transfer Payments,515201,Social Services Clients,08-Nov-2012,2516555-1283893H,514.52,REDACTED - PAYMENT TO INDIVIDUAL
Adults Wellbeing and Health,Head of Adults,Transfer Payments,515201,Social Services Clients,08-Nov-2012,2516556-1283523H,749.12,REDACTED - PAYMENT TO INDIVIDUAL
Adults Wellbeing and Health,Head of Adults,Transfer Payments,515201,Social Services Clients,08-Nov-2012,2516557-1285695H,675.20,REDACTED - PAYMENT TO INDIVIDUAL
Adults Wellbeing and Health,Head of Adults,Transfer Payments,515201,Social Services Clients,08-Nov-2012,2516560-1284350H,"1,218.24",REDACTED - PAYMENT TO INDIVIDUAL
Adults Wellbeing and Health,Head of Adults,Transfer Payments,515209,Social Services Clients,08-Nov-2012,2516561-1281791D,544.00,REDACTED - PAYMENT TO INDIVIDUAL
Adults Wellbeing and Health,Head of Adults,Transfer Payments,515209,Social Services Clients,08-Nov-2012,2516562-1284189D,"2,520.00",REDACTED - PAYMENT TO INDIVIDUAL
Adults Wellbeing and Health,Head of Adults,Transfer Payments,515201,Social Services Clients,08-Nov-2012,2516562-1284189H,500.00,REDACTED - PAYMENT TO INDIVIDUAL
Adults Wellbeing and Health,Head of Adults,Transfer Payments,515201,Social Services Clients,08-Nov-2012,2516564-1282344H,"1,814.60",REDACTED - PAYMENT TO INDIVIDUAL
Adults Wellbeing and Health,Head of Adults,Transfer Payments,515201,Social Services Clients,08-Nov-2012,2516566-1280308H,689.84,REDACTED - PAYMENT TO INDIVIDUAL
Adults Wellbeing and Health,Head of Adults,Transfer Payments,515201,Social Services Clients,08-Nov-2012,2516567-1281112H,590.80,REDACTED - PAYMENT TO INDIVIDUAL
Adults Wellbeing and Health,Head of Adults,Transfer Payments,515201,Social Services Clients,08-Nov-2012,2516568-1281245H,"1,287.12",REDACTED - PAYMENT TO INDIVIDUAL
Adults Wellbeing and Health,Head of Adults,Transfer Payments,515201,Social Services Clients,08-Nov-2012,2516570-1283851H,764.92,REDACTED - PAYMENT TO INDIVIDUAL
Adults Wellbeing and Health,Head of Adults,Transfer Payments,515201,Social Services Clients,08-Nov-2012,2516571-1282591H,624.24,REDACTED - PAYMENT TO INDIVIDUAL
Adults Wellbeing and Health,Head of Adults,Transfer Payments,515209,Social Services Clients,08-Nov-2012,2516575-1282081D,640.00,REDACTED - PAYMENT TO INDIVIDUAL
Adults Wellbeing and Health,Head of Adults,Transfer Payments,515201,Social Services Clients,08-Nov-2012,2516576-1282050H,805.84,REDACTED - PAYMENT TO INDIVIDUAL
Adults Wellbeing and Health,Head of Adults,Transfer Payments,515201,Social Services Clients,08-Nov-2012,2516577-1285186H,908.00,REDACTED - PAYMENT TO INDIVIDUAL
Adults Wellbeing and Health,Head of Adults,Transfer Payments,515201,Social Services Clients,08-Nov-2012,2516583-1281708H,862.60,REDACTED - PAYMENT TO INDIVIDUAL
Adults Wellbeing and Health,Head of Adults,Transfer Payments,515201,Social Services Clients,08-Nov-2012,2516585-1283715H,523.88,REDACTED - PAYMENT TO INDIVIDUAL
Adults Wellbeing and Health,Head of Adults,Transfer Payments,515201,Social Services Clients,08-Nov-2012,2516586-1281688H,"1,770.60",REDACTED - PAYMENT TO INDIVIDUAL
Adults Wellbeing and Health,Head of Adults,Transfer Payments,515201,Social Services Clients,08-Nov-2012,2516591-1283880H,534.44,REDACTED - PAYMENT TO INDIVIDUAL
Adults Wellbeing and Health,Head of Adults,Transfer Payments,515201,Social Services Clients,08-Nov-2012,2516592-1282783H,908.00,REDACTED - PAYMENT TO INDIVIDUAL
Adults Wellbeing and Health,Head of Adults,Transfer Payments,515201,Social Services Clients,08-Nov-2012,2516594-1283084H,723.72,REDACTED - PAYMENT TO INDIVIDUAL
Adults Wellbeing and Health,Head of Adults,Transfer Payments,515201,Social Services Clients,08-Nov-2012,2516596-1283459H,907.32,REDACTED - PAYMENT TO INDIVIDUAL
Adults Wellbeing and Health,Head of Adults,Transfer Payments,515201,Social Services Clients,08-Nov-2012,2516597-1282698H,678.72,REDACTED - PAYMENT TO INDIVIDUAL
Adults Wellbeing and Health,Head of Adults,Transfer Payments,515201,Social Services Clients,08-Nov-2012,2516599-1280829H,726.40,REDACTED - PAYMENT TO INDIVIDUAL
Adults Wellbeing and Health,Head of Adults,Transfer Payments,515201,Social Services Clients,08-Nov-2012,2516600-1283118H,637.60,REDACTED - PAYMENT TO INDIVIDUAL
Adults Wellbeing and Health,Head of Adults,Transfer Payments,515201,Social Services Clients,08-Nov-2012,2516601-1280999H,632.40,REDACTED - PAYMENT TO INDIVIDUAL
Adults Wellbeing and Health,Head of Adults,Transfer Payments,515201,Social Services Clients,08-Nov-2012,2516602-1283290H,583.76,REDACTED - PAYMENT TO INDIVIDUAL
Adults Wellbeing and Health,Head of Adults,Transfer Payments,515201,Social Services Clients,08-Nov-2012,2516603-1281627H,665.88,REDACTED - PAYMENT TO INDIVIDUAL
Adults Wellbeing and Health,Head of Adults,Transfer Payments,515201,Social Services Clients,08-Nov-2012,2516606-1283444H,727.84,REDACTED - PAYMENT TO INDIVIDUAL
Adults Wellbeing and Health,Head of Adults,Transfer Payments,515201,Social Services Clients,08-Nov-2012,2516607-1285180H,949.52,REDACTED - PAYMENT TO INDIVIDUAL
Adults Wellbeing and Health,Head of Adults,Transfer Payments,515201,Social Services Clients,08-Nov-2012,2516608-1284278H,681.00,REDACTED - PAYMENT TO INDIVIDUAL
Adults Wellbeing and Health,Head of Adults,Transfer Payments,515201,Social Services Clients,08-Nov-2012,2516609-1282305H,590.80,REDACTED - PAYMENT TO INDIVIDUAL
Adults Wellbeing and Health,Head of Adults,Transfer Payments,515201,Social Services Clients,08-Nov-2012,2516610-1285399H,"2,031.64",REDACTED - PAYMENT TO INDIVIDUAL
Adults Wellbeing and Health,Head of Adults,Transfer Payments,515201,Social Services Clients,08-Nov-2012,2516611-1283121H,635.60,REDACTED - PAYMENT TO INDIVIDUAL
Adults Wellbeing and Health,Head of Adults,Transfer Payments,515201,Social Services Clients,08-Nov-2012,2516613-1285211H,738.52,REDACTED - PAYMENT TO INDIVIDUAL
Adults Wellbeing and Health,Head of Adults,Transfer Payments,515201,Social Services Clients,08-Nov-2012,2516614-1285799H,"4,005.04",REDACTED - PAYMENT TO INDIVIDUAL
Adults Wellbeing and Health,Head of Adults,Transfer Payments,515201,Social Services Clients,08-Nov-2012,2516615-1283590H,717.40,REDACTED - PAYMENT TO INDIVIDUAL
Adults Wellbeing and Health,Head of Adults,Transfer Payments,515201,Social Services Clients,08-Nov-2012,2516617-1286300H,854.56,REDACTED - PAYMENT TO INDIVIDUAL
Adults Wellbeing and Health,Head of Adults,Transfer Payments,515201,Social Services Clients,08-Nov-2012,2516618-1282049H,"1,180.40",REDACTED - PAYMENT TO INDIVIDUAL
Adults Wellbeing and Health,Head of Adults,Transfer Payments,515201,Social Services Clients,08-Nov-2012,2516619-1281067H,976.12,REDACTED - PAYMENT TO INDIVIDUAL
Adults Wellbeing and Health,Head of Adults,Transfer Payments,515201,Social Services Clients,08-Nov-2012,2516621-1280949H,675.20,REDACTED - PAYMENT TO INDIVIDUAL
Adults Wellbeing and Health,Head of Adults,Transfer Payments,515201,Social Services Clients,08-Nov-2012,2516622-1282991H,"1,747.92",REDACTED - PAYMENT TO INDIVIDUAL
Adults Wellbeing and Health,Head of Adults,Transfer Payments,515201,Social Services Clients,08-Nov-2012,2516623-1285213H,"2,743.00",REDACTED - PAYMENT TO INDIVIDUAL
Adults Wellbeing and Health,Head of Adults,Transfer Payments,515201,Social Services Clients,08-Nov-2012,2516624-1282054H,"1,055.00",REDACTED - PAYMENT TO INDIVIDUAL
Adults Wellbeing and Health,Head of Adults,Transfer Payments,515201,Social Services Clients,08-Nov-2012,2516625-1284011H,527.52,REDACTED - PAYMENT TO INDIVIDUAL
Adults Wellbeing and Health,Head of Adults,Transfer Payments,515201,Social Services Clients,08-Nov-2012,2516626-1284494H,794.52,REDACTED - PAYMENT TO INDIVIDUAL
Adults Wellbeing and Health,Head of Adults,Transfer Payments,515201,Social Services Clients,08-Nov-2012,2516628-1281416H,833.44,REDACTED - PAYMENT TO INDIVIDUAL
Adults Wellbeing and Health,Head of Adults,Transfer Payments,515201,Social Services Clients,08-Nov-2012,2516629-1285570H,812.36,REDACTED - PAYMENT TO INDIVIDUAL
Adults Wellbeing and Health,Head of Adults,Transfer Payments,515201,Social Services Clients,08-Nov-2012,2516632-1284397H,"1,033.80",REDACTED - PAYMENT TO INDIVIDUAL
Adults Wellbeing and Health,Head of Adults,Transfer Payments,515201,Social Services Clients,08-Nov-2012,2516633-1283354H,"1,120.00",REDACTED - PAYMENT TO INDIVIDUAL
Adults Wellbeing and Health,Head of Adults,Transfer Payments,515201,Social Services Clients,08-Nov-2012,2516636-1280820H,838.20,REDACTED - PAYMENT TO INDIVIDUAL
Adults Wellbeing and Health,Head of Adults,Transfer Payments,515209,Social Services Clients,08-Nov-2012,2516637-1280923D,855.20,REDACTED - PAYMENT TO INDIVIDUAL
Adults Wellbeing and Health,Head of Adults,Transfer Payments,515201,Social Services Clients,08-Nov-2012,2516639-1285305H,839.92,REDACTED - PAYMENT TO INDIVIDUAL
Adults Wellbeing and Health,Head of Adults,Transfer Payments,515201,Social Services Clients,08-Nov-2012,2516641-1279798H,998.80,REDACTED - PAYMENT TO INDIVIDUAL
Adults Wellbeing and Health,Head of Adults,Transfer Payments,515201,Social Services Clients,08-Nov-2012,2516647-1281405H,953.40,REDACTED - PAYMENT TO INDIVIDUAL
Adults Wellbeing and Health,Head of Adults,Transfer Payments,515201,Social Services Clients,08-Nov-2012,2516649-1283197H,"1,944.00",REDACTED - PAYMENT TO INDIVIDUAL
Adults Wellbeing and Health,Head of Adults,Transfer Payments,515201,Social Services Clients,08-Nov-2012,2516653-1279750H,828.56,REDACTED - PAYMENT TO INDIVIDUAL
Adults Wellbeing and Health,Head of Adults,Transfer Payments,515201,Social Services Clients,08-Nov-2012,2516654-1281334H,760.44,REDACTED - PAYMENT TO INDIVIDUAL
Adults Wellbeing and Health,Head of Adults,Transfer Payments,515201,Social Services Clients,08-Nov-2012,2516655-1279596H,"1,477.00",REDACTED - PAYMENT TO INDIVIDUAL
Adults Wellbeing and Health,Head of Adults,Transfer Payments,515201,Social Services Clients,08-Nov-2012,2516659-1282238H,541.56,REDACTED - PAYMENT TO INDIVIDUAL
Adults Wellbeing and Health,Head of Adults,Transfer Payments,515201,Social Services Clients,08-Nov-2012,2516660-1280770H,"1,582.52",REDACTED - PAYMENT TO INDIVIDUAL
Adults Wellbeing and Health,Head of Adults,Transfer Payments,515201,Social Services Clients,08-Nov-2012,2516661-1280130H,669.64,REDACTED - PAYMENT TO INDIVIDUAL
Adults Wellbeing and Health,Head of Adults,Transfer Payments,515201,Social Services Clients,08-Nov-2012,2516662-1284833H,928.40,REDACTED - PAYMENT TO INDIVIDUAL
Adults Wellbeing and Health,Head of Adults,Transfer Payments,515201,Social Services Clients,08-Nov-2012,2516663-1285882H,745.52,REDACTED - PAYMENT TO INDIVIDUAL
Adults Wellbeing and Health,Head of Adults,Transfer Payments,515201,Social Services Clients,08-Nov-2012,2516664-1281122H,569.60,REDACTED - PAYMENT TO INDIVIDUAL
Adults Wellbeing and Health,Head of Adults,Transfer Payments,515201,Social Services Clients,08-Nov-2012,2516666-1281060H,615.24,REDACTED - PAYMENT TO INDIVIDUAL
Adults Wellbeing and Health,Head of Adults,Transfer Payments,515201,Social Services Clients,08-Nov-2012,2516670-1280802H,"4,006.40",REDACTED - PAYMENT TO INDIVIDUAL
Adults Wellbeing and Health,Head of Adults,Transfer Payments,515201,Social Services Clients,08-Nov-2012,2516673-1282096H,"1,872.76",REDACTED - PAYMENT TO INDIVIDUAL
Adults Wellbeing and Health,Head of Adults,Transfer Payments,515201,Social Services Clients,08-Nov-2012,2516676-1279835H,706.84,REDACTED - PAYMENT TO INDIVIDUAL
Adults Wellbeing and Health,Head of Adults,Transfer Payments,515201,Social Services Clients,08-Nov-2012,2516679-1282888H,"1,669.00",REDACTED - PAYMENT TO INDIVIDUAL
Adults Wellbeing and Health,Head of Adults,Transfer Payments,515201,Social Services Clients,08-Nov-2012,2516681-1282340H,537.96,REDACTED - PAYMENT TO INDIVIDUAL
Adults Wellbeing and Health,Head of Adults,Transfer Payments,515201,Social Services Clients,08-Nov-2012,2516685-1285577H,590.20,REDACTED - PAYMENT TO INDIVIDUAL
Adults Wellbeing and Health,Head of Adults,Transfer Payments,515201,Social Services Clients,08-Nov-2012,2516687-1282811H,"1,452.80",REDACTED - PAYMENT TO INDIVIDUAL
Adults Wellbeing and Health,Head of Adults,Transfer Payments,515209,Social Services Clients,08-Nov-2012,2516688-1281050D,"1,032.00",REDACTED - PAYMENT TO INDIVIDUAL
Adults Wellbeing and Health,Head of Adults,Transfer Payments,515209,Social Services Clients,08-Nov-2012,2516690-1281140D,775.20,REDACTED - PAYMENT TO INDIVIDUAL
Adults Wellbeing and Health,Head of Adults,Transfer Payments,515201,Social Services Clients,08-Nov-2012,2516691-1279815H,"2,425.56",REDACTED - PAYMENT TO INDIVIDUAL
Adults Wellbeing and Health,Head of Adults,Transfer Payments,515201,Social Services Clients,08-Nov-2012,2516692-1279591H,817.20,REDACTED - PAYMENT TO INDIVIDUAL
Adults Wellbeing and Health,Head of Adults,Transfer Payments,515201,Social Services Clients,08-Nov-2012,2516693-1285065H,"1,362.00",REDACTED - PAYMENT TO INDIVIDUAL
Adults Wellbeing and Health,Head of Adults,Transfer Payments,515201,Social Services Clients,08-Nov-2012,2516695-1284527H,"2,451.60",REDACTED - PAYMENT TO INDIVIDUAL
Adults Wellbeing and Health,Head of Adults,Transfer Payments,515201,Social Services Clients,08-Nov-2012,2516696-1284940H,703.72,REDACTED - PAYMENT TO INDIVIDUAL
Adults Wellbeing and Health,Head of Adults,Transfer Payments,515201,Social Services Clients,08-Nov-2012,2516698-1285656H,506.40,REDACTED - PAYMENT TO INDIVIDUAL
Adults Wellbeing and Health,Head of Adults,Transfer Payments,515201,Social Services Clients,08-Nov-2012,2516699-1281600H,567.52,REDACTED - PAYMENT TO INDIVIDUAL
Adults Wellbeing and Health,Head of Adults,Transfer Payments,515201,Social Services Clients,08-Nov-2012,2516702-1284348H,840.48,REDACTED - PAYMENT TO INDIVIDUAL
Adults Wellbeing and Health,Head of Adults,Transfer Payments,515201,Social Services Clients,08-Nov-2012,2516703-1280933H,"1,316.60",REDACTED - PAYMENT TO INDIVIDUAL
Adults Wellbeing and Health,Head of Adults,Transfer Payments,515201,Social Services Clients,08-Nov-2012,2516704-1283403H,"2,067.82",REDACTED - PAYMENT TO INDIVIDUAL
Adults Wellbeing and Health,Head of Adults,Transfer Payments,515201,Social Services Clients,08-Nov-2012,2516705-1284467H,696.32,REDACTED - PAYMENT TO INDIVIDUAL
Adults Wellbeing and Health,Head of Adults,Transfer Payments,515201,Social Services Clients,08-Nov-2012,2516709-1282257H,657.60,REDACTED - PAYMENT TO INDIVIDUAL
Adults Wellbeing and Health,Head of Adults,Transfer Payments,515201,Social Services Clients,08-Nov-2012,2516710-1284943H,646.96,REDACTED - PAYMENT TO INDIVIDUAL
Adults Wellbeing and Health,Head of Adults,Transfer Payments,515209,Social Services Clients,08-Nov-2012,2516712-1282958D,"2,400.00",REDACTED - PAYMENT TO INDIVIDUAL
Adults Wellbeing and Health,Head of Adults,Transfer Payments,515201,Social Services Clients,08-Nov-2012,2516712-1282958H,"2,088.40",REDACTED - PAYMENT TO INDIVIDUAL
Adults Wellbeing and Health,Head of Adults,Transfer Payments,515201,Social Services Clients,08-Nov-2012,2516713-1283140H,675.20,REDACTED - PAYMENT TO INDIVIDUAL
Adults Wellbeing and Health,Head of Adults,Transfer Payments,515201,Social Services Clients,08-Nov-2012,2516714-1285567H,798.28,REDACTED - PAYMENT TO INDIVIDUAL
Adults Wellbeing and Health,Head of Adults,Transfer Payments,515201,Social Services Clients,08-Nov-2012,2516715-1282825H,759.60,REDACTED - PAYMENT TO INDIVIDUAL
Adults Wellbeing and Health,Head of Adults,Third Party Payments,470101,Purchase of Care,08-Nov-2012,2516716-1280085D,692.32,REDACTED - PAYMENT TO INDIVIDUAL
Adults Wellbeing and Health,Head of Adults,Transfer Payments,515201,Social Services Clients,08-Nov-2012,2516718-1283909H,998.80,REDACTED - PAYMENT TO INDIVIDUAL
Adults Wellbeing and Health,Head of Adults,Transfer Payments,515201,Social Services Clients,08-Nov-2012,2516720-1284319H,"1,362.00",REDACTED - PAYMENT TO INDIVIDUAL
Adults Wellbeing and Health,Head of Adults,Transfer Payments,515201,Social Services Clients,08-Nov-2012,2516722-1282384H,817.20,REDACTED - PAYMENT TO INDIVIDUAL
Adults Wellbeing and Health,Head of Adults,Transfer Payments,515201,Social Services Clients,08-Nov-2012,2516723-1284981H,"1,089.60",REDACTED - PAYMENT TO INDIVIDUAL
Adults Wellbeing and Health,Head of Adults,Transfer Payments,515201,Social Services Clients,08-Nov-2012,2516724-1285008H,771.80,REDACTED - PAYMENT TO INDIVIDUAL
Adults Wellbeing and Health,Head of Adults,Transfer Payments,515201,Social Services Clients,08-Nov-2012,2516727-1282976H,569.72,REDACTED - PAYMENT TO INDIVIDUAL
Adults Wellbeing and Health,Head of Adults,Transfer Payments,515201,Social Services Clients,08-Nov-2012,2516729-1282170H,590.20,REDACTED - PAYMENT TO INDIVIDUAL
Adults Wellbeing and Health,Head of Adults,Transfer Payments,515201,Social Services Clients,08-Nov-2012,2516733-1280215H,"6,833.12",REDACTED - PAYMENT TO INDIVIDUAL
Adults Wellbeing and Health,Head of Adults,Transfer Payments,515201,Social Services Clients,08-Nov-2012,2516735-1285239H,731.48,REDACTED - PAYMENT TO INDIVIDUAL
Adults Wellbeing and Health,Head of Adults,Transfer Payments,515201,Social Services Clients,08-Nov-2012,2516736-1284670H,770.04,REDACTED - PAYMENT TO INDIVIDUAL
Adults Wellbeing and Health,Head of Adults,Transfer Payments,515201,Social Services Clients,08-Nov-2012,2516737-1281726H,822.92,REDACTED - PAYMENT TO INDIVIDUAL
Adults Wellbeing and Health,Head of Adults,Transfer Payments,515201,Social Services Clients,08-Nov-2012,2516738-1283173H,654.00,REDACTED - PAYMENT TO INDIVIDUAL
Adults Wellbeing and Health,Head of Adults,Transfer Payments,515201,Social Services Clients,08-Nov-2012,2516740-1282939H,"1,816.00",REDACTED - PAYMENT TO INDIVIDUAL
Adults Wellbeing and Health,Head of Adults,Transfer Payments,515201,Social Services Clients,08-Nov-2012,2516741-1281110H,"1,097.12",REDACTED - PAYMENT TO INDIVIDUAL
Adults Wellbeing and Health,Head of Adults,Transfer Payments,515201,Social Services Clients,08-Nov-2012,2516744-1279673H,908.00,REDACTED - PAYMENT TO INDIVIDUAL
Adults Wellbeing and Health,Head of Adults,Transfer Payments,515201,Social Services Clients,08-Nov-2012,2516745-1282494H,635.60,REDACTED - PAYMENT TO INDIVIDUAL
Adults Wellbeing and Health,Head of Adults,Transfer Payments,515201,Social Services Clients,08-Nov-2012,2516748-1280141H,759.60,REDACTED - PAYMENT TO INDIVIDUAL
Adults Wellbeing and Health,Head of Adults,Transfer Payments,515209,Social Services Clients,08-Nov-2012,2516749-1281845D,935.68,REDACTED - PAYMENT TO INDIVIDUAL
Adults Wellbeing and Health,Head of Adults,Transfer Payments,515201,Social Services Clients,08-Nov-2012,2516752-1280162H,"1,066.92",REDACTED - PAYMENT TO INDIVIDUAL
Adults Wellbeing and Health,Head of Adults,Transfer Payments,515201,Social Services Clients,08-Nov-2012,2516756-1279638H,908.00,REDACTED - PAYMENT TO INDIVIDUAL
Adults Wellbeing and Health,Head of Adults,Transfer Payments,515201,Social Services Clients,08-Nov-2012,2516760-1284661H,611.92,REDACTED - PAYMENT TO INDIVIDUAL
Adults Wellbeing and Health,Head of Adults,Transfer Payments,515201,Social Services Clients,08-Nov-2012,2516764-1281422H,633.00,REDACTED - PAYMENT TO INDIVIDUAL
Adults Wellbeing and Health,Head of Adults,Transfer Payments,515201,Social Services Clients,08-Nov-2012,2516765-1284591H,669.64,REDACTED - PAYMENT TO INDIVIDUAL
Adults Wellbeing and Health,Head of Adults,Transfer Payments,515201,Social Services Clients,08-Nov-2012,2516766-1284863H,696.32,REDACTED - PAYMENT TO INDIVIDUAL
Adults Wellbeing and Health,Head of Adults,Transfer Payments,515201,Social Services Clients,08-Nov-2012,2516768-1284429H,839.92,REDACTED - PAYMENT TO INDIVIDUAL
Adults Wellbeing and Health,Head of Adults,Transfer Payments,515201,Social Services Clients,08-Nov-2012,2516769-1282705H,908.00,REDACTED - PAYMENT TO INDIVIDUAL
Adults Wellbeing and Health,Head of Adults,Transfer Payments,515209,Social Services Clients,08-Nov-2012,2516771-1281684D,"1,663.40",REDACTED - PAYMENT TO INDIVIDUAL
Adults Wellbeing and Health,Head of Adults,Transfer Payments,515201,Social Services Clients,08-Nov-2012,2516772-1281464H,794.52,REDACTED - PAYMENT TO INDIVIDUAL
Adults Wellbeing and Health,Head of Adults,Transfer Payments,515201,Social Services Clients,08-Nov-2012,2516776-1282840H,516.64,REDACTED - PAYMENT TO INDIVIDUAL
Adults Wellbeing and Health,Head of Adults,Transfer Payments,515209,Social Services Clients,08-Nov-2012,2516779-1284491D,528.00,REDACTED - PAYMENT TO INDIVIDUAL
Adults Wellbeing and Health,Head of Adults,Transfer Payments,515201,Social Services Clients,08-Nov-2012,2516782-1284854H,726.40,REDACTED - PAYMENT TO INDIVIDUAL
Adults Wellbeing and Health,Head of Adults,Transfer Payments,515201,Social Services Clients,08-Nov-2012,2516787-1285756H,"1,730.20",REDACTED - PAYMENT TO INDIVIDUAL
Adults Wellbeing and Health,Head of Adults,Transfer Payments,515201,Social Services Clients,08-Nov-2012,2516792-1285036H,783.16,REDACTED - PAYMENT TO INDIVIDUAL
Adults Wellbeing and Health,Head of Adults,Transfer Payments,515209,Social Services Clients,08-Nov-2012,2516793-1282427D,580.00,REDACTED - PAYMENT TO INDIVIDUAL
